Department Family,Entity,Date,Expense Type,Expense area,Supplier,Transaction Number,Amount,VAT registration Number
Department of Health,Salisbury NHS Foundation Trust,01-Jul-13,MEDICAL EQUIPMENT 10 YEARS,Capital Projects,MAQUET LIMITED,3590060324,78744,
Department of Health,Salisbury NHS Foundation Trust,01-Jul-13,MEDICAL EQUIPMENT 10 YEARS,Capital Projects,MAQUET LIMITED,3590060324,10656,
Department of Health,Salisbury NHS Foundation Trust,01-Jul-13,MEDICAL EQUIPMENT 10 YEARS,Capital Projects,MAQUET LIMITED,3590060324,15748.8,
Department of Health,Salisbury NHS Foundation Trust,01-Jul-13,MEDICAL EQUIPMENT 10 YEARS,Capital Projects,MAQUET LIMITED,3590060324,2131.2,
Department of Health,Salisbury NHS Foundation Trust,01-Jul-13,DI & RADIO - RADIOLOGY EQUIPMENT,Clinical Support and Family Services,NHS SUPPLY CHAIN,2014002469,17433.18,
Department of Health,Salisbury NHS Foundation Trust,01-Jul-13,DI & RADIO - RADIOLOGY EQUIPMENT,Clinical Support and Family Services,NHS SUPPLY CHAIN,2014002469,8470.22,
Department of Health,Salisbury NHS Foundation Trust,01-Jul-13,HEALTHCARE - NHS TRUSTS,Corporate Directorate,CARE QUALITY COMMISSION,41870303,70000,
Department of Health,Salisbury NHS Foundation Trust,01-Jul-13,DI & RADIO - RADIOLOGY EQUIPMENT,Clinical Support and Family Services,CSC COMPUTER SCIENCES LTD,5201330635,31819.53,
Department of Health,Salisbury NHS Foundation Trust,01-Jul-13,HEALTHCARE - NHS TRUSTS,Surgery,DORSET HEALTHCARE UNIVERSITY NHS FOUNDATION TRUST,D0004987,1752,
Department of Health,Salisbury NHS Foundation Trust,01-Jul-13,HEALTHCARE - NHS TRUSTS,Surgery,DORSET HEALTHCARE UNIVERSITY NHS FOUNDATION TRUST,D0004987,363,
Department of Health,Salisbury NHS Foundation Trust,01-Jul-13,HEALTHCARE - NHS TRUSTS,Medicine,DORSET HEALTHCARE UNIVERSITY NHS FOUNDATION TRUST,D0004987,1308,
Department of Health,Salisbury NHS Foundation Trust,01-Jul-13,HEALTHCARE - NHS TRUSTS,Medicine,DORSET HEALTHCARE UNIVERSITY NHS FOUNDATION TRUST,D0004987,3837,
Department of Health,Salisbury NHS Foundation Trust,01-Jul-13,HEALTHCARE - NHS TRUSTS,Medicine,DORSET HEALTHCARE UNIVERSITY NHS FOUNDATION TRUST,D0004987,2190,
Department of Health,Salisbury NHS Foundation Trust,01-Jul-13,HEALTHCARE - NHS TRUSTS,Medicine,DORSET HEALTHCARE UNIVERSITY NHS FOUNDATION TRUST,D0004987,225,
Department of Health,Salisbury NHS Foundation Trust,01-Jul-13,HEALTHCARE - NHS TRUSTS,Surgery,DORSET HEALTHCARE UNIVERSITY NHS FOUNDATION TRUST,D0004987,2193,
Department of Health,Salisbury NHS Foundation Trust,01-Jul-13,HEALTHCARE - NHS TRUSTS,Medicine,DORSET HEALTHCARE UNIVERSITY NHS FOUNDATION TRUST,D0004987,225,
Department of Health,Salisbury NHS Foundation Trust,01-Jul-13,HEALTHCARE - NHS TRUSTS,Critical care,DORSET HEALTHCARE UNIVERSITY NHS FOUNDATION TRUST,D0004987,1809,
Department of Health,Salisbury NHS Foundation Trust,01-Jul-13,HEALTHCARE - NHS TRUSTS,Clinical Support and Family Services,DORSET HEALTHCARE UNIVERSITY NHS FOUNDATION TRUST,D0004987,2397,
Department of Health,Salisbury NHS Foundation Trust,01-Jul-13,HEALTHCARE - NHS TRUSTS,Surgery,DORSET HEALTHCARE UNIVERSITY NHS FOUNDATION TRUST,D0004987,5121,
Department of Health,Salisbury NHS Foundation Trust,01-Jul-13,HEALTHCARE - NHS TRUSTS,Critical care,DORSET HEALTHCARE UNIVERSITY NHS FOUNDATION TRUST,D0004987,5055.54,
Department of Health,Salisbury NHS Foundation Trust,01-Jul-13,HEALTHCARE - NHS TRUSTS,Clinical Support and Family Services,DORSET HEALTHCARE UNIVERSITY NHS FOUNDATION TRUST,D0004987,885,
Department of Health,Salisbury NHS Foundation Trust,01-Jul-13,HEALTHCARE - NHS TRUSTS,Critical care,DORSET HEALTHCARE UNIVERSITY NHS FOUNDATION TRUST,D0004987,930,
Department of Health,Salisbury NHS Foundation Trust,01-Jul-13,HEALTHCARE - NHS TRUSTS,Surgery,DORSET HEALTHCARE UNIVERSITY NHS FOUNDATION TRUST,D0004987,960,
Department of Health,Salisbury NHS Foundation Trust,01-Jul-13,ENERGY WATER - ELECTRICITY,Facilities Directorate,EDF ENERGY,22,64541.13,
Department of Health,Salisbury NHS Foundation Trust,01-Jul-13,OTH ENGINEERING PLANT&EQUIP,Capital Projects,VES ANDOVER LTD,PJH6010624,41191,
Department of Health,Salisbury NHS Foundation Trust,05-Jul-13,ISOF 7 CONTRACT,Corporate Directorate,CSC COMPUTER SCIENCES LTD,5201331799,617672.17,
Department of Health,Salisbury NHS Foundation Trust,05-Jul-13,ISOF 7 CONTRACT,Corporate Directorate,CSC COMPUTER SCIENCES LTD,5201331799,7143.29,
Department of Health,Salisbury NHS Foundation Trust,05-Jul-13,HEALTHCARE - NHS TRUSTS,Medicine,UNIVERSITY HOSPITAL SOUTHAMPTON NHS FOUNDATION TRUST,7224962,36679.78,
Department of Health,Salisbury NHS Foundation Trust,05-Jul-13,DI & RADIO-RADIOTHERAPY EQUIPMENT,Surgery,NHS SUPPLY CHAIN,2014002559,9597.51,
Department of Health,Salisbury NHS Foundation Trust,05-Jul-13,CONTRACTS - MAINTENANCE FIXED COST,Medicine,NHS SUPPLY CHAIN,2014002559,10452.55,
Department of Health,Salisbury NHS Foundation Trust,05-Jul-13,DI & RADIO - RADIOLOGY EQUIPMENT,Clinical Support and Family Services,NHS SUPPLY CHAIN,2014002559,10207.09,
Department of Health,Salisbury NHS Foundation Trust,05-Jul-13,DI & RADIO - RADIOLOGY EQUIPMENT,Surgery,NHS SUPPLY CHAIN,2014002559,2750.74,
Department of Health,Salisbury NHS Foundation Trust,05-Jul-13,DI & RADIO - RADIOLOGY EQUIPMENT,Surgery,NHS SUPPLY CHAIN,2014002559,4685.64,
Department of Health,Salisbury NHS Foundation Trust,05-Jul-13,DI & RADIO - RADIOLOGY EQUIPMENT,Medicine,NHS SUPPLY CHAIN,2014002559,4310.1,
Department of Health,Salisbury NHS Foundation Trust,05-Jul-13,DI & RADIO - RADIOLOGY EQUIPMENT,Clinical Support and Family Services,NHS SUPPLY CHAIN,2014002531,22126.95,
Department of Health,Salisbury NHS Foundation Trust,05-Jul-13,DI & RADIO - RADIOLOGY EQUIPMENT,Clinical Support and Family Services,NHS SUPPLY CHAIN,2014002531,3387.23,
Department of Health,Salisbury NHS Foundation Trust,05-Jul-13,DRUGS,Clinical Support and Family Services,NOVARTIS PHARMACEUTICALS UK LTD,91239793,22450.21,
Department of Health,Salisbury NHS Foundation Trust,05-Jul-13,DRUGS,Clinical Support and Family Services,NOVARTIS PHARMACEUTICALS UK LTD,91239793,4490.04,
Department of Health,Salisbury NHS Foundation Trust,05-Jul-13,DRUGS,Clinical Support and Family Services,NOVARTIS PHARMACEUTICALS UK LTD,91237787,32931.83,
Department of Health,Salisbury NHS Foundation Trust,05-Jul-13,DRUGS,Clinical Support and Family Services,NOVARTIS PHARMACEUTICALS UK LTD,91237787,6586.37,
Department of Health,Salisbury NHS Foundation Trust,05-Jul-13,DRUGS,Clinical Support and Family Services,ROCHE PRODUCTS LTD,1321593964,33143.46,
Department of Health,Salisbury NHS Foundation Trust,05-Jul-13,DRUGS,Clinical Support and Family Services,ROCHE PRODUCTS LTD,1321593964,6628.69,
Department of Health,Salisbury NHS Foundation Trust,05-Jul-13,MEDICAL EQUIPMENT 10 YEARS,Capital Projects,SD HEALTHCARE LTD,inv-081524,24000,
Department of Health,Salisbury NHS Foundation Trust,05-Jul-13,MEDICAL EQUIPMENT 10 YEARS,Capital Projects,SD HEALTHCARE LTD,inv-081524,4800,
Department of Health,Salisbury NHS Foundation Trust,08-Jul-13,DRUGS,Clinical Support and Family Services,ROCHE PRODUCTS LTD,1321596306,30297.4,
Department of Health,Salisbury NHS Foundation Trust,08-Jul-13,DRUGS,Clinical Support and Family Services,ROCHE PRODUCTS LTD,1321596306,6059.48,
Department of Health,Salisbury NHS Foundation Trust,08-Jul-13,ETS UNITARY CHARGE,Facilities Directorate,SALISBURY HEALTHCARE FACILITIES LTD,176,285772.06,
Department of Health,Salisbury NHS Foundation Trust,08-Jul-13,OTH ENGINEERING PLANT&EQUIP,Capital Projects,THE WESSEX GROUP,1510621,79649.32,
Department of Health,Salisbury NHS Foundation Trust,08-Jul-13,OTH ENGINEERING PLANT&EQUIP,Capital Projects,THE WESSEX GROUP,1510621,15929.86,
Department of Health,Salisbury NHS Foundation Trust,12-Jul-13,ENERGY WATER - WATER MAINS,Facilities Directorate,BWBSL,4064660203,32048.8,
Department of Health,Salisbury NHS Foundation Trust,12-Jul-13,ENERGY WATER - WATER MAINS,Facilities Directorate,BWBSL,4064660203,11165.21,
Department of Health,Salisbury NHS Foundation Trust,12-Jul-13,NETWORKING COSTS,Capital Projects,INSIGHT UK,1366996,28519.32,
Department of Health,Salisbury NHS Foundation Trust,12-Jul-13,NETWORKING COSTS,Capital Projects,INSIGHT UK,1366996,6054.84,
Department of Health,Salisbury NHS Foundation Trust,12-Jul-13,NETWORKING COSTS,Capital Projects,INSIGHT UK,1366996,5298.92,
Department of Health,Salisbury NHS Foundation Trust,12-Jul-13,NETWORKING COSTS,Capital Projects,INSIGHT UK,1366996,5703.86,
Department of Health,Salisbury NHS Foundation Trust,12-Jul-13,NETWORKING COSTS,Capital Projects,INSIGHT UK,1366996,1210.97,
Department of Health,Salisbury NHS Foundation Trust,12-Jul-13,NETWORKING COSTS,Capital Projects,INSIGHT UK,1366996,1059.78,
Department of Health,Salisbury NHS Foundation Trust,12-Jul-13,BLOOD PRODUCTS,Clinical Support and Family Services,NATIONAL BLOOD SERVICE,823402,66064.51,
Department of Health,Salisbury NHS Foundation Trust,12-Jul-13,CHILDRENS HEARING AIDS,Surgery,NHS LOGISTICS,1014043464,209.08,
Department of Health,Salisbury NHS Foundation Trust,12-Jul-13,MEDSURGCONS - OTHER,Medicine,NHS LOGISTICS,1014043464,95.34,
Department of Health,Salisbury NHS Foundation Trust,12-Jul-13,PAPER ITEMS GENERAL STATIONERY SUNDRIES,Clinical Support and Family Services,NHS LOGISTICS,1014043464,58.96,
Department of Health,Salisbury NHS Foundation Trust,12-Jul-13,LAB EQUIP-LABORATORY APPARATUS,Clinical Support and Family Services,NHS LOGISTICS,1014043464,49.07,
Department of Health,Salisbury NHS Foundation Trust,12-Jul-13,LAB EQUIP-LABORATORY APPARATUS,Clinical Support and Family Services,NHS LOGISTICS,1014043464,39.41,
Department of Health,Salisbury NHS Foundation Trust,12-Jul-13,TISSUES HAND TOWELS & TOILET PAPER,Clinical Support and Family Services,NHS LOGISTICS,1014043464,10.9,
Department of Health,Salisbury NHS Foundation Trust,12-Jul-13,MEDSURGCONS - OTHER,Clinical Support and Family Services,NHS LOGISTICS,1014043464,39.67,
Department of Health,Salisbury NHS Foundation Trust,12-Jul-13,MEDSURGCONS - OTHER,Clinical Support and Family Services,NHS LOGISTICS,1014043464,39.67,
Department of Health,Salisbury NHS Foundation Trust,12-Jul-13,STATIONERY SUNDRIES,Corporate Directorate,NHS LOGISTICS,1014043464,2,
Department of Health,Salisbury NHS Foundation Trust,12-Jul-13,STATIONERY SUNDRIES,Corporate Directorate,NHS LOGISTICS,1014043464,2,
Department of Health,Salisbury NHS Foundation Trust,12-Jul-13,CLEANING MATERIALS PRODUCTS SUNDRIES,Corporate Directorate,NHS LOGISTICS,1014043464,2.85,
Department of Health,Salisbury NHS Foundation Trust,12-Jul-13,ADULTS HEARING AIDS,Surgery,NHS LOGISTICS,1014043464,130,
Department of Health,Salisbury NHS Foundation Trust,12-Jul-13,ADULTS HEARING AIDS,Surgery,NHS LOGISTICS,1014043464,23.38,
Department of Health,Salisbury NHS Foundation Trust,12-Jul-13,ADULTS HEARING AIDS,Surgery,NHS LOGISTICS,1014043464,343.21,
Department of Health,Salisbury NHS Foundation Trust,12-Jul-13,ADULTS HEARING AIDS,Surgery,NHS LOGISTICS,1014043464,55.43,
Department of Health,Salisbury NHS Foundation Trust,12-Jul-13,STATIONERY SUNDRIES,Clinical Support and Family Services,NHS LOGISTICS,1014043464,2.75,
Department of Health,Salisbury NHS Foundation Trust,12-Jul-13,DRESSINGS - PRE STERILE,Critical care,NHS LOGISTICS,1014043464,4.33,
Department of Health,Salisbury NHS Foundation Trust,12-Jul-13,SURGICAL INSTRUMENTS: GENERAL,Clinical Support and Family Services,NHS LOGISTICS,1014043464,61.17,
Department of Health,Salisbury NHS Foundation Trust,12-Jul-13,STATIONERY SUNDRIES,Surgery,NHS LOGISTICS,1014043464,6,
Department of Health,Salisbury NHS Foundation Trust,12-Jul-13,MEDSURGCONS - OTHER,Surgery,NHS LOGISTICS,1014043464,38.34,
Department of Health,Salisbury NHS Foundation Trust,12-Jul-13,SURGICAL INSTRUMENTS: GENERAL,Surgery,NHS LOGISTICS,1014043464,86.63,
Department of Health,Salisbury NHS Foundation Trust,12-Jul-13,LAB EQUIP-ANALYSERS,Clinical Support and Family Services,NHS LOGISTICS,1014043464,65.5,
Department of Health,Salisbury NHS Foundation Trust,12-Jul-13,STATIONERY SUNDRIES,Clinical Effctiveness Directorate,NHS LOGISTICS,1014043464,11.89,
Department of Health,Salisbury NHS Foundation Trust,12-Jul-13,STATIONERY SUNDRIES,Clinical Effctiveness Directorate,NHS LOGISTICS,1014043464,20.33,
Department of Health,Salisbury NHS Foundation Trust,12-Jul-13,PAPER ITEMS GENERAL STATIONERY SUNDRIES,Surgery,NHS LOGISTICS,1014043464,37.33,
Department of Health,Salisbury NHS Foundation Trust,12-Jul-13,MEDSURGCONS - OTHER,Clinical Support and Family Services,NHS LOGISTICS,1014043464,35,
Department of Health,Salisbury NHS Foundation Trust,12-Jul-13,MEDSURGCONS - OTHER,Clinical Support and Family Services,NHS LOGISTICS,1014043464,23.29,
Department of Health,Salisbury NHS Foundation Trust,12-Jul-13,MEDSURGCONS - OTHER,Clinical Support and Family Services,NHS LOGISTICS,1014043464,23.29,
Department of Health,Salisbury NHS Foundation Trust,12-Jul-13,DISPOSABLE THEATRE DRAPES WIPES,Clinical Support and Family Services,NHS LOGISTICS,1014043464,42.47,
Department of Health,Salisbury NHS Foundation Trust,12-Jul-13,DISPOSABLE THEATRE DRAPES WIPES,Clinical Support and Family Services,NHS LOGISTICS,1014043464,12.5,
Department of Health,Salisbury NHS Foundation Trust,12-Jul-13,STATIONERY SUNDRIES,Clinical Effctiveness Directorate,NHS LOGISTICS,1014043464,8.8,
Department of Health,Salisbury NHS Foundation Trust,12-Jul-13,STATIONERY SUNDRIES,Medicine,NHS LOGISTICS,1014043464,0.75,
Department of Health,Salisbury NHS Foundation Trust,12-Jul-13,PAPER ITEMS GENERAL STATIONERY SUNDRIES,Medicine,NHS LOGISTICS,1014043464,3,
Department of Health,Salisbury NHS Foundation Trust,12-Jul-13,STATIONERY SUNDRIES,Medicine,NHS LOGISTICS,1014043464,1.6,
Department of Health,Salisbury NHS Foundation Trust,12-Jul-13,PAPER ITEMS GENERAL STATIONERY SUNDRIES,Medicine,NHS LOGISTICS,1014043464,37.33,
Department of Health,Salisbury NHS Foundation Trust,12-Jul-13,STATIONERY SUNDRIES,Medicine,NHS LOGISTICS,1014043464,1.07,
Department of Health,Salisbury NHS Foundation Trust,12-Jul-13,STATIONERY SUNDRIES,Medicine,NHS LOGISTICS,1014043464,2,
Department of Health,Salisbury NHS Foundation Trust,12-Jul-13,STATIONERY SUNDRIES,Medicine,NHS LOGISTICS,1014043464,6.67,
Department of Health,Salisbury NHS Foundation Trust,12-Jul-13,STATIONERY SUNDRIES,Medicine,NHS LOGISTICS,1014043464,2.13,
Department of Health,Salisbury NHS Foundation Trust,12-Jul-13,PAPER ITEMS GENERAL STATIONERY SUNDRIES,Medicine,NHS LOGISTICS,1014043464,37.33,
Department of Health,Salisbury NHS Foundation Trust,12-Jul-13,HEALTHCARE - WEAR,Facilities Directorate,NHS LOGISTICS,1014043464,27.33,
Department of Health,Salisbury NHS Foundation Trust,12-Jul-13,STATIONERY SUNDRIES,Medicine,NHS LOGISTICS,1014043464,2.74,
Department of Health,Salisbury NHS Foundation Trust,12-Jul-13,STATIONERY SUNDRIES,Medicine,NHS LOGISTICS,1014043464,6,
Department of Health,Salisbury NHS Foundation Trust,12-Jul-13,PAPER ITEMS GENERAL STATIONERY SUNDRIES,Corporate Directorate,NHS LOGISTICS,1014043464,2.9,
Department of Health,Salisbury NHS Foundation Trust,12-Jul-13,PAPER ITEMS GENERAL STATIONERY SUNDRIES,Corporate Directorate,NHS LOGISTICS,1014043464,0.73,
Department of Health,Salisbury NHS Foundation Trust,12-Jul-13,STATIONERY SUNDRIES,Corporate Directorate,NHS LOGISTICS,1014043464,1.24,
Department of Health,Salisbury NHS Foundation Trust,12-Jul-13,STATIONERY SUNDRIES,Corporate Directorate,NHS LOGISTICS,1014043464,0.94,
Department of Health,Salisbury NHS Foundation Trust,12-Jul-13,STATIONERY SUNDRIES,Corporate Directorate,NHS LOGISTICS,1014043464,1.07,
Department of Health,Salisbury NHS Foundation Trust,12-Jul-13,STATIONERY SUNDRIES,Corporate Directorate,NHS LOGISTICS,1014043464,1.07,
Department of Health,Salisbury NHS Foundation Trust,12-Jul-13,MEDSURGCONS - OTHER,Clinical Support and Family Services,NHS LOGISTICS,1014043464,21.52,
Department of Health,Salisbury NHS Foundation Trust,12-Jul-13,MEDSURGCONS - OTHER,Clinical Support and Family Services,NHS LOGISTICS,1014043464,19.78,
Department of Health,Salisbury NHS Foundation Trust,12-Jul-13,MEDSURGCONS - OTHER,Clinical Support and Family Services,NHS LOGISTICS,1014043464,31.32,
Department of Health,Salisbury NHS Foundation Trust,12-Jul-13,MEDSURGCONS - OTHER,Clinical Support and Family Services,NHS LOGISTICS,1014043464,68.47,
Department of Health,Salisbury NHS Foundation Trust,12-Jul-13,MEDSURGCONS - OTHER,Clinical Support and Family Services,NHS LOGISTICS,1014043464,10.42,
Department of Health,Salisbury NHS Foundation Trust,12-Jul-13,TISSUES HAND TOWELS & TOILET PAPER,Clinical Support and Family Services,NHS LOGISTICS,1014043464,20.1,
Department of Health,Salisbury NHS Foundation Trust,12-Jul-13,DRESSINGS  -  PROCEDURE PACKS,Clinical Support and Family Services,NHS LOGISTICS,1014043464,21.67,
Department of Health,Salisbury NHS Foundation Trust,12-Jul-13,PAPER ITEMS GENERAL STATIONERY SUNDRIES,Clinical Support and Family Services,NHS LOGISTICS,1014043464,46.42,
Department of Health,Salisbury NHS Foundation Trust,12-Jul-13,STATIONERY SUNDRIES,Medicine,NHS LOGISTICS,1014043464,0.75,
Department of Health,Salisbury NHS Foundation Trust,12-Jul-13,TOILETRIES PERSONAL HYGIENE PRODUCTS,Medicine,NHS LOGISTICS,1014043464,6.5,
Department of Health,Salisbury NHS Foundation Trust,12-Jul-13,CLEANING MATERIALS PRODUCTS SUNDRIES,Clinical Support and Family Services,NHS LOGISTICS,1014043464,7.91,
Department of Health,Salisbury NHS Foundation Trust,12-Jul-13,PAPER ITEMS GENERAL STATIONERY SUNDRIES,Clinical Support and Family Services,NHS LOGISTICS,1014043464,8.7,
Department of Health,Salisbury NHS Foundation Trust,12-Jul-13,PAPER ITEMS GENERAL STATIONERY SUNDRIES,Clinical Support and Family Services,NHS LOGISTICS,1014043464,3.64,
Department of Health,Salisbury NHS Foundation Trust,12-Jul-13,PAPER ITEMS GENERAL STATIONERY SUNDRIES,Clinical Support and Family Services,NHS LOGISTICS,1014043464,0.32,
Department of Health,Salisbury NHS Foundation Trust,12-Jul-13,OFFICE EQUIP MACHINERY  -  OTHER,Clinical Support and Family Services,NHS LOGISTICS,1014043464,1.98,
Department of Health,Salisbury NHS Foundation Trust,12-Jul-13,PAPER ITEMS GENERAL STATIONERY SUNDRIES,Clinical Support and Family Services,NHS LOGISTICS,1014043464,55.6,
Department of Health,Salisbury NHS Foundation Trust,12-Jul-13,PAPER ITEMS GENERAL STATIONERY SUNDRIES,Clinical Support and Family Services,NHS LOGISTICS,1014043464,6.13,
Department of Health,Salisbury NHS Foundation Trust,12-Jul-13,STATIONERY SUNDRIES,Clinical Support and Family Services,NHS LOGISTICS,1014043464,2.13,
Department of Health,Salisbury NHS Foundation Trust,12-Jul-13,STATIONERY SUNDRIES,Clinical Support and Family Services,NHS LOGISTICS,1014043464,0.62,
Department of Health,Salisbury NHS Foundation Trust,12-Jul-13,STATIONERY SUNDRIES,Clinical Support and Family Services,NHS LOGISTICS,1014043464,0.22,
Department of Health,Salisbury NHS Foundation Trust,12-Jul-13,STATIONERY SUNDRIES,Clinical Support and Family Services,NHS LOGISTICS,1014043464,0.93,
Department of Health,Salisbury NHS Foundation Trust,12-Jul-13,DRESSINGS  -  PROCEDURE PACKS,Surgery,NHS LOGISTICS,1014043464,1.75,
Department of Health,Salisbury NHS Foundation Trust,12-Jul-13,DRESSINGS  -  PROCEDURE PACKS,Surgery,NHS LOGISTICS,1014043464,4.38,
Department of Health,Salisbury NHS Foundation Trust,12-Jul-13,LAB EQUIP-LABORATORY APPARATUS,Clinical Support and Family Services,NHS LOGISTICS,1014043464,25.23,
Department of Health,Salisbury NHS Foundation Trust,12-Jul-13,LAB EQUIP-LABORATORY APPARATUS,Clinical Support and Family Services,NHS LOGISTICS,1014043464,117.5,
Department of Health,Salisbury NHS Foundation Trust,12-Jul-13,LAB EQUIP-LABORATORY APPARATUS,Clinical Support and Family Services,NHS LOGISTICS,1014043464,56.4,
Department of Health,Salisbury NHS Foundation Trust,12-Jul-13,LAB EQUIP-LABORATORY APPARATUS,Clinical Support and Family Services,NHS LOGISTICS,1014043464,24.7,
Department of Health,Salisbury NHS Foundation Trust,12-Jul-13,LAB EQUIP-LABORATORY APPARATUS,Clinical Support and Family Services,NHS LOGISTICS,1014043464,59.42,
Department of Health,Salisbury NHS Foundation Trust,12-Jul-13,LAB EQUIP-LABORATORY APPARATUS,Clinical Support and Family Services,NHS LOGISTICS,1014043464,12.93,
Department of Health,Salisbury NHS Foundation Trust,12-Jul-13,LAB EQUIP-LABORATORY APPARATUS,Clinical Support and Family Services,NHS LOGISTICS,1014043464,741.33,
Department of Health,Salisbury NHS Foundation Trust,12-Jul-13,LAB EQUIP-LABORATORY APPARATUS,Clinical Support and Family Services,NHS LOGISTICS,1014043464,50.87,
Department of Health,Salisbury NHS Foundation Trust,12-Jul-13,LAB EQUIP-LABORATORY APPARATUS,Clinical Support and Family Services,NHS LOGISTICS,1014043464,122.83,
Department of Health,Salisbury NHS Foundation Trust,12-Jul-13,LAB EQUIP-LABORATORY APPARATUS,Clinical Support and Family Services,NHS LOGISTICS,1014043464,177.92,
Department of Health,Salisbury NHS Foundation Trust,12-Jul-13,LAB EQUIP-LABORATORY APPARATUS,Clinical Support and Family Services,NHS LOGISTICS,1014043464,3.04,
Department of Health,Salisbury NHS Foundation Trust,12-Jul-13,LAB EQUIP-LABORATORY APPARATUS,Clinical Support and Family Services,NHS LOGISTICS,1014043464,70.2,
Department of Health,Salisbury NHS Foundation Trust,12-Jul-13,OTHER MEDICAL SUPPLIES,Clinical Support and Family Services,NHS LOGISTICS,1014043464,181.33,
Department of Health,Salisbury NHS Foundation Trust,12-Jul-13,DRESSINGS - PRE STERILE,Clinical Support and Family Services,NHS LOGISTICS,1014043464,2.1,
Department of Health,Salisbury NHS Foundation Trust,12-Jul-13,DRESSINGS - PRE STERILE,Clinical Support and Family Services,NHS LOGISTICS,1014043464,2.88,
Department of Health,Salisbury NHS Foundation Trust,12-Jul-13,LAB EQUIP-LABORATORY APPARATUS,Clinical Support and Family Services,NHS LOGISTICS,1014043464,31.78,
Department of Health,Salisbury NHS Foundation Trust,12-Jul-13,PATIENTS BEDWEAR UNISEX,Surgery,NHS LOGISTICS,1014043464,105.02,
Department of Health,Salisbury NHS Foundation Trust,12-Jul-13,PAPER ITEMS GENERAL STATIONERY SUNDRIES,Surgery,NHS LOGISTICS,1014043464,12.74,
Department of Health,Salisbury NHS Foundation Trust,12-Jul-13,PAPER ITEMS GENERAL STATIONERY SUNDRIES,Surgery,NHS LOGISTICS,1014043464,45.83,
Department of Health,Salisbury NHS Foundation Trust,12-Jul-13,MEDSURGCONS - OTHER,Surgery,NHS LOGISTICS,1014043464,30.83,
Department of Health,Salisbury NHS Foundation Trust,12-Jul-13,DRESSINGS - PRE STERILE,Surgery,NHS LOGISTICS,1014043464,65.52,
Department of Health,Salisbury NHS Foundation Trust,12-Jul-13,DRESSINGS - PRE STERILE,Critical care,NHS LOGISTICS,1014043464,33.8,
Department of Health,Salisbury NHS Foundation Trust,12-Jul-13,STATIONERY SUNDRIES,Clinical Support and Family Services,NHS LOGISTICS,1014043464,3.23,
Department of Health,Salisbury NHS Foundation Trust,12-Jul-13,PAPER ITEMS GENERAL STATIONERY SUNDRIES,Clinical Support and Family Services,NHS LOGISTICS,1014043464,17.4,
Department of Health,Salisbury NHS Foundation Trust,12-Jul-13,PAPER ITEMS GENERAL STATIONERY SUNDRIES,Clinical Support and Family Services,NHS LOGISTICS,1014043464,55.6,
Department of Health,Salisbury NHS Foundation Trust,12-Jul-13,STATIONERY SUNDRIES,Clinical Support and Family Services,NHS LOGISTICS,1014043464,2.13,
Department of Health,Salisbury NHS Foundation Trust,12-Jul-13,OTHER MEDICAL SUPPLIES,Surgery,NHS LOGISTICS,1014043464,22.08,
Department of Health,Salisbury NHS Foundation Trust,12-Jul-13,OTHER MEDICAL SUPPLIES,Medicine,NHS LOGISTICS,1014043464,4.42,
Department of Health,Salisbury NHS Foundation Trust,12-Jul-13,OTHER MEDICAL SUPPLIES,Medicine,NHS LOGISTICS,1014043464,600,
Department of Health,Salisbury NHS Foundation Trust,12-Jul-13,OTHER MEDICAL SUPPLIES,Medicine,NHS LOGISTICS,1014043464,10.23,
Department of Health,Salisbury NHS Foundation Trust,12-Jul-13,HEALTHCARE - WEAR,Medicine,NHS LOGISTICS,1014043464,10.28,
Department of Health,Salisbury NHS Foundation Trust,12-Jul-13,TISSUES HAND TOWELS & TOILET PAPER,Medicine,NHS LOGISTICS,1014043464,2.21,
Department of Health,Salisbury NHS Foundation Trust,12-Jul-13,OTHER MEDICAL SUPPLIES,Medicine,NHS LOGISTICS,1014043464,2.98,
Department of Health,Salisbury NHS Foundation Trust,12-Jul-13,DRESSINGS - PRE STERILE,Medicine,NHS LOGISTICS,1014043464,27.23,
Department of Health,Salisbury NHS Foundation Trust,12-Jul-13,DRESSINGS - PRE STERILE,Medicine,NHS LOGISTICS,1014043464,1.13,
Department of Health,Salisbury NHS Foundation Trust,12-Jul-13,MEDSURGCONS - OTHER,Medicine,NHS LOGISTICS,1014043464,10.42,
Department of Health,Salisbury NHS Foundation Trust,12-Jul-13,MEDSURGCONS - OTHER,Human Resources,NHS LOGISTICS,1014043464,5.66,
Department of Health,Salisbury NHS Foundation Trust,12-Jul-13,PAPER ITEMS GENERAL STATIONERY SUNDRIES,Surgery,NHS LOGISTICS,1014043464,6.08,
Department of Health,Salisbury NHS Foundation Trust,12-Jul-13,PAPER ITEMS GENERAL STATIONERY SUNDRIES,Surgery,NHS LOGISTICS,1014043464,1.97,
Department of Health,Salisbury NHS Foundation Trust,12-Jul-13,PAPER ITEMS GENERAL STATIONERY SUNDRIES,Surgery,NHS LOGISTICS,1014043464,9.33,
Department of Health,Salisbury NHS Foundation Trust,12-Jul-13,STATIONERY SUNDRIES,Surgery,NHS LOGISTICS,1014043464,3.07,
Department of Health,Salisbury NHS Foundation Trust,12-Jul-13,STATIONERY SUNDRIES,Surgery,NHS LOGISTICS,1014043464,2.74,
Department of Health,Salisbury NHS Foundation Trust,12-Jul-13,STATIONERY SUNDRIES,Surgery,NHS LOGISTICS,1014043464,2.74,
Department of Health,Salisbury NHS Foundation Trust,12-Jul-13,STATIONERY SUNDRIES,Surgery,NHS LOGISTICS,1014043464,2.74,
Department of Health,Salisbury NHS Foundation Trust,12-Jul-13,OTHER MEDICAL SUPPLIES,Medicine,NHS LOGISTICS,1014043464,22.08,
Department of Health,Salisbury NHS Foundation Trust,12-Jul-13,PATIENTS INCONTINENCE,Medicine,NHS LOGISTICS,1014043464,9.08,
Department of Health,Salisbury NHS Foundation Trust,12-Jul-13,TISSUES HAND TOWELS & TOILET PAPER,Medicine,NHS LOGISTICS,1014043464,0.36,
Department of Health,Salisbury NHS Foundation Trust,12-Jul-13,PATIENT APPLIANCES,Medicine,NHS LOGISTICS,1014043464,7.92,
Department of Health,Salisbury NHS Foundation Trust,12-Jul-13,PATIENT APPLIANCES,Medicine,NHS LOGISTICS,1014043464,1.92,
Department of Health,Salisbury NHS Foundation Trust,12-Jul-13,OTHER MEDICAL SUPPLIES,Medicine,NHS LOGISTICS,1014043464,22.08,
Department of Health,Salisbury NHS Foundation Trust,12-Jul-13,DRESSINGS - PRE STERILE,Medicine,NHS LOGISTICS,1014043464,6.64,
Department of Health,Salisbury NHS Foundation Trust,12-Jul-13,TISSUES HAND TOWELS & TOILET PAPER,Medicine,NHS LOGISTICS,1014043464,1.82,
Department of Health,Salisbury NHS Foundation Trust,12-Jul-13,PATIENTS INCONTINENCE,Medicine,NHS LOGISTICS,1014043464,27.13,
Department of Health,Salisbury NHS Foundation Trust,12-Jul-13,PATIENTS INCONTINENCE,Medicine,NHS LOGISTICS,1014043464,56.6,
Department of Health,Salisbury NHS Foundation Trust,12-Jul-13,MEDSURGCONS - OTHER,Medicine,NHS LOGISTICS,1014043464,17.91,
Department of Health,Salisbury NHS Foundation Trust,12-Jul-13,NON DISPOSABLE BED LINEN,Medicine,NHS LOGISTICS,1014043464,21.77,
Department of Health,Salisbury NHS Foundation Trust,12-Jul-13,PATIENT APPLIANCES,Medicine,NHS LOGISTICS,1014043464,7.92,
Department of Health,Salisbury NHS Foundation Trust,12-Jul-13,OTHER MEDICAL SUPPLIES,Medicine,NHS LOGISTICS,1014043464,22.08,
Department of Health,Salisbury NHS Foundation Trust,12-Jul-13,DRESSINGS - PRE STERILE,Medicine,NHS LOGISTICS,1014043464,66.42,
Department of Health,Salisbury NHS Foundation Trust,12-Jul-13,MED SURG EQUIP REP MAINT CLEANING,Medicine,NHS LOGISTICS,1014043464,34.5,
Department of Health,Salisbury NHS Foundation Trust,12-Jul-13,OTHER MEDICAL SUPPLIES,Medicine,NHS LOGISTICS,1014043464,5.68,
Department of Health,Salisbury NHS Foundation Trust,12-Jul-13,PATIENTS INCONTINENCE,Medicine,NHS LOGISTICS,1014043464,15.15,
Department of Health,Salisbury NHS Foundation Trust,12-Jul-13,DRESSINGS - PRE STERILE,Medicine,NHS LOGISTICS,1014043464,0.43,
Department of Health,Salisbury NHS Foundation Trust,12-Jul-13,NON DISPOSABLE BED LINEN,Medicine,NHS LOGISTICS,1014043464,21.77,
Department of Health,Salisbury NHS Foundation Trust,12-Jul-13,PATIENT APPLIANCES,Medicine,NHS LOGISTICS,1014043464,7.92,
Department of Health,Salisbury NHS Foundation Trust,12-Jul-13,PATIENT APPLIANCES,Medicine,NHS LOGISTICS,1014043464,5.32,
Department of Health,Salisbury NHS Foundation Trust,12-Jul-13,PATIENT APPLIANCES,Medicine,NHS LOGISTICS,1014043464,1.92,
Department of Health,Salisbury NHS Foundation Trust,12-Jul-13,DRESSINGS - PRE STERILE,Critical care,NHS LOGISTICS,1014043464,9.57,
Department of Health,Salisbury NHS Foundation Trust,12-Jul-13,DRESSINGS  -  PROCEDURE PACKS,Critical care,NHS LOGISTICS,1014043464,11.25,
Department of Health,Salisbury NHS Foundation Trust,12-Jul-13,PAPER ITEMS GENERAL STATIONERY SUNDRIES,Corporate Directorate,NHS LOGISTICS,1014043464,19,
Department of Health,Salisbury NHS Foundation Trust,12-Jul-13,PAPER ITEMS GENERAL STATIONERY SUNDRIES,Corporate Directorate,NHS LOGISTICS,1014043464,16.25,
Department of Health,Salisbury NHS Foundation Trust,12-Jul-13,PAPER ITEMS GENERAL STATIONERY SUNDRIES,Corporate Directorate,NHS LOGISTICS,1014043464,45.83,
Department of Health,Salisbury NHS Foundation Trust,12-Jul-13,STATIONERY SUNDRIES,Corporate Directorate,NHS LOGISTICS,1014043464,4,
Department of Health,Salisbury NHS Foundation Trust,12-Jul-13,STATIONERY SUNDRIES,Surgery,NHS LOGISTICS,1014043464,8.37,
Department of Health,Salisbury NHS Foundation Trust,12-Jul-13,BAGS SACKS - OTHER,Facilities Directorate,NHS LOGISTICS,1014043464,11.6,
Department of Health,Salisbury NHS Foundation Trust,12-Jul-13,BAGS SACKS - OTHER,Facilities Directorate,NHS LOGISTICS,1014043464,88.61,
Department of Health,Salisbury NHS Foundation Trust,12-Jul-13,BAGS SACKS - OTHER,Facilities Directorate,NHS LOGISTICS,1014043464,16.52,
Department of Health,Salisbury NHS Foundation Trust,12-Jul-13,BAGS SACKS - OTHER,Facilities Directorate,NHS LOGISTICS,1014043464,27.45,
Department of Health,Salisbury NHS Foundation Trust,12-Jul-13,CLEANING MATERIALS PRODUCTS SUNDRIES,Facilities Directorate,NHS LOGISTICS,1014043464,33,
Department of Health,Salisbury NHS Foundation Trust,12-Jul-13,CLEANING MATERIALS PRODUCTS SUNDRIES,Facilities Directorate,NHS LOGISTICS,1014043464,66,
Department of Health,Salisbury NHS Foundation Trust,12-Jul-13,LIQUID REFRESHMENTS,Facilities Directorate,NHS LOGISTICS,1014043464,3.83,
Department of Health,Salisbury NHS Foundation Trust,12-Jul-13,CLEANING MATERIALS PRODUCTS SUNDRIES,Facilities Directorate,NHS LOGISTICS,1014043464,6.73,
Department of Health,Salisbury NHS Foundation Trust,12-Jul-13,CLEANING MATERIALS PRODUCTS SUNDRIES,Facilities Directorate,NHS LOGISTICS,1014043464,19.8,
Department of Health,Salisbury NHS Foundation Trust,12-Jul-13,MEDSURGCONS - OTHER,Facilities Directorate,NHS LOGISTICS,1014043464,9.32,
Department of Health,Salisbury NHS Foundation Trust,12-Jul-13,CLEANING MATERIALS PRODUCTS SUNDRIES,Facilities Directorate,NHS LOGISTICS,1014043464,69.6,
Department of Health,Salisbury NHS Foundation Trust,12-Jul-13,CLEANING MATERIALS PRODUCTS SUNDRIES,Surgery,NHS LOGISTICS,1014043464,11.33,
Department of Health,Salisbury NHS Foundation Trust,12-Jul-13,DISPOSABLE THEATRE DRAPES WIPES,Surgery,NHS LOGISTICS,1014043464,11.27,
Department of Health,Salisbury NHS Foundation Trust,12-Jul-13,OTHER MEDICAL SUPPLIES,Medicine,NHS LOGISTICS,1014043464,1.75,
Department of Health,Salisbury NHS Foundation Trust,12-Jul-13,MEDSURGCONS - OTHER,Medicine,NHS LOGISTICS,1014043464,8.78,
Department of Health,Salisbury NHS Foundation Trust,12-Jul-13,OTHER MEDICAL SUPPLIES,Medicine,NHS LOGISTICS,1014043464,115.41,
Department of Health,Salisbury NHS Foundation Trust,12-Jul-13,TISSUES HAND TOWELS & TOILET PAPER,Medicine,NHS LOGISTICS,1014043464,1.82,
Department of Health,Salisbury NHS Foundation Trust,12-Jul-13,PATIENTS INCONTINENCE,Medicine,NHS LOGISTICS,1014043464,3.63,
Department of Health,Salisbury NHS Foundation Trust,12-Jul-13,PATIENTS INCONTINENCE,Medicine,NHS LOGISTICS,1014043464,1.85,
Department of Health,Salisbury NHS Foundation Trust,12-Jul-13,PATIENTS INCONTINENCE,Medicine,NHS LOGISTICS,1014043464,37.73,
Department of Health,Salisbury NHS Foundation Trust,12-Jul-13,PAPER ITEMS GENERAL STATIONERY SUNDRIES,Clinical Support and Family Services,NHS LOGISTICS,1014043464,52.83,
Department of Health,Salisbury NHS Foundation Trust,12-Jul-13,PAPER ITEMS GENERAL STATIONERY SUNDRIES,Clinical Support and Family Services,NHS LOGISTICS,1014043464,6.13,
Department of Health,Salisbury NHS Foundation Trust,12-Jul-13,PAPER ITEMS GENERAL STATIONERY SUNDRIES,Clinical Support and Family Services,NHS LOGISTICS,1014043464,3.93,
Department of Health,Salisbury NHS Foundation Trust,12-Jul-13,PAPER ITEMS GENERAL STATIONERY SUNDRIES,Clinical Support and Family Services,NHS LOGISTICS,1014043464,9.33,
Department of Health,Salisbury NHS Foundation Trust,12-Jul-13,DRESSINGS - PRE STERILE,Medicine,NHS LOGISTICS,1014043464,26.92,
Department of Health,Salisbury NHS Foundation Trust,12-Jul-13,DRESSINGS - PRE STERILE,Medicine,NHS LOGISTICS,1014043464,34.58,
Department of Health,Salisbury NHS Foundation Trust,12-Jul-13,DRESSINGS - PRE STERILE,Medicine,NHS LOGISTICS,1014043464,22.12,
Department of Health,Salisbury NHS Foundation Trust,12-Jul-13,TISSUES HAND TOWELS & TOILET PAPER,Medicine,NHS LOGISTICS,1014043464,0.88,
Department of Health,Salisbury NHS Foundation Trust,12-Jul-13,MEDSURGCONS-SUTURES,Medicine,NHS LOGISTICS,1014043464,22.88,
Department of Health,Salisbury NHS Foundation Trust,12-Jul-13,MED SURG EQUIP REP MAINT CLEANING,Medicine,NHS LOGISTICS,1014043464,48.3,
Department of Health,Salisbury NHS Foundation Trust,12-Jul-13,STATIONERY SUNDRIES,Medicine,NHS LOGISTICS,1014043464,1.62,
Department of Health,Salisbury NHS Foundation Trust,12-Jul-13,PAPER ITEMS GENERAL STATIONERY SUNDRIES,Medicine,NHS LOGISTICS,1014043464,1.25,
Department of Health,Salisbury NHS Foundation Trust,12-Jul-13,STATIONERY SUNDRIES,Medicine,NHS LOGISTICS,1014043464,0.94,
Department of Health,Salisbury NHS Foundation Trust,12-Jul-13,STATIONERY SUNDRIES,Medicine,NHS LOGISTICS,1014043464,0.93,
Department of Health,Salisbury NHS Foundation Trust,12-Jul-13,STATIONERY SUNDRIES,Medicine,NHS LOGISTICS,1014043464,1.55,
Department of Health,Salisbury NHS Foundation Trust,12-Jul-13,HARD/SOFTWARE-COMPUTER ACCESSORIES  TEST EQUIPMENT,Medicine,NHS LOGISTICS,1014043464,13.53,
Department of Health,Salisbury NHS Foundation Trust,12-Jul-13,HARD/SOFTWARE-COMPUTER ACCESSORIES  TEST EQUIPMENT,Medicine,NHS LOGISTICS,1014043464,10.95,
Department of Health,Salisbury NHS Foundation Trust,12-Jul-13,STATIONERY SUNDRIES,Medicine,NHS LOGISTICS,1014043464,3.03,
Department of Health,Salisbury NHS Foundation Trust,12-Jul-13,REFUSE DISPOSAL - CLINICAL CONT SERVICES,Facilities Directorate,NHS LOGISTICS,1014043464,368.6,
Department of Health,Salisbury NHS Foundation Trust,12-Jul-13,PAPER ITEMS GENERAL STATIONERY SUNDRIES,Clinical Support and Family Services,NHS LOGISTICS,1014043464,6.25,
Department of Health,Salisbury NHS Foundation Trust,12-Jul-13,STATIONERY SUNDRIES,Clinical Support and Family Services,NHS LOGISTICS,1014043464,2.2,
Department of Health,Salisbury NHS Foundation Trust,12-Jul-13,STATIONERY SUNDRIES,Clinical Support and Family Services,NHS LOGISTICS,1014043464,0.43,
Department of Health,Salisbury NHS Foundation Trust,12-Jul-13,HARD/SOFTWARE-MEDIA  TAPES  DISCS,Surgery,NHS LOGISTICS,1014043464,3.63,
Department of Health,Salisbury NHS Foundation Trust,12-Jul-13,STATIONERY SUNDRIES,Surgery,NHS LOGISTICS,1014043464,20.33,
Department of Health,Salisbury NHS Foundation Trust,12-Jul-13,PAPER ITEMS GENERAL STATIONERY SUNDRIES,Surgery,NHS LOGISTICS,1014043464,43.75,
Department of Health,Salisbury NHS Foundation Trust,12-Jul-13,PAPER ITEMS GENERAL STATIONERY SUNDRIES,Surgery,NHS LOGISTICS,1014043464,4.35,
Department of Health,Salisbury NHS Foundation Trust,12-Jul-13,PAPER ITEMS GENERAL STATIONERY SUNDRIES,Medicine,NHS LOGISTICS,1014043464,37.33,
Department of Health,Salisbury NHS Foundation Trust,12-Jul-13,STATIONERY SUNDRIES,Medicine,NHS LOGISTICS,1014043464,0.81,
Department of Health,Salisbury NHS Foundation Trust,12-Jul-13,PAPER ITEMS GENERAL STATIONERY SUNDRIES,Medicine,NHS LOGISTICS,1014043464,28,
Department of Health,Salisbury NHS Foundation Trust,12-Jul-13,LAB EQUIP-LABORATORY APPARATUS,Surgery,NHS LOGISTICS,1014043464,6.85,
Department of Health,Salisbury NHS Foundation Trust,12-Jul-13,MEDSURGCONS - OTHER,Clinical Support and Family Services,NHS LOGISTICS,1014043464,3.29,
Department of Health,Salisbury NHS Foundation Trust,12-Jul-13,MEDSURGCONS - OTHER,Clinical Support and Family Services,NHS LOGISTICS,1014043464,13.17,
Department of Health,Salisbury NHS Foundation Trust,12-Jul-13,MEDSURGCONS - OTHER,Clinical Support and Family Services,NHS LOGISTICS,1014043464,1.38,
Department of Health,Salisbury NHS Foundation Trust,12-Jul-13,OTHER MEDICAL SUPPLIES,Clinical Support and Family Services,NHS LOGISTICS,1014043464,2.28,
Department of Health,Salisbury NHS Foundation Trust,12-Jul-13,MEDSURGCONS-SUTURES,Clinical Support and Family Services,NHS LOGISTICS,1014043464,26.68,
Department of Health,Salisbury NHS Foundation Trust,12-Jul-13,MEDSURGCONS-SUTURES,Clinical Support and Family Services,NHS LOGISTICS,1014043464,68.13,
Department of Health,Salisbury NHS Foundation Trust,12-Jul-13,TUBES,Clinical Support and Family Services,NHS LOGISTICS,1014043464,2.33,
Department of Health,Salisbury NHS Foundation Trust,12-Jul-13,TUBES,Clinical Support and Family Services,NHS LOGISTICS,1014043464,3.46,
Department of Health,Salisbury NHS Foundation Trust,12-Jul-13,NON DISPOSABLE BED LINEN,Clinical Support and Family Services,NHS LOGISTICS,1014043464,22.52,
Department of Health,Salisbury NHS Foundation Trust,12-Jul-13,PAPER ITEMS GENERAL STATIONERY SUNDRIES,Surgery,NHS LOGISTICS,1014043464,0.78,
Department of Health,Salisbury NHS Foundation Trust,12-Jul-13,PAPER ITEMS GENERAL STATIONERY SUNDRIES,Surgery,NHS LOGISTICS,1014043464,0.25,
Department of Health,Salisbury NHS Foundation Trust,12-Jul-13,STATIONERY SUNDRIES,Surgery,NHS LOGISTICS,1014043464,0.73,
Department of Health,Salisbury NHS Foundation Trust,12-Jul-13,STATIONERY SUNDRIES,Surgery,NHS LOGISTICS,1014043464,0.92,
Department of Health,Salisbury NHS Foundation Trust,12-Jul-13,DRUGS,Clinical Support and Family Services,NHS LOGISTICS,1014043464,15.92,
Department of Health,Salisbury NHS Foundation Trust,12-Jul-13,M & S EQUIPELECTEQUIPINST - OTHER,Clinical Support and Family Services,NHS LOGISTICS,1014043464,10.94,
Department of Health,Salisbury NHS Foundation Trust,12-Jul-13,DRESSINGS - PRE STERILE,Critical care,NHS LOGISTICS,1014043464,6.64,
Department of Health,Salisbury NHS Foundation Trust,12-Jul-13,TISSUES HAND TOWELS & TOILET PAPER,Critical care,NHS LOGISTICS,1014043464,5.45,
Department of Health,Salisbury NHS Foundation Trust,12-Jul-13,CLEANING MATERIALS PRODUCTS SUNDRIES,Critical care,NHS LOGISTICS,1014043464,7.3,
Department of Health,Salisbury NHS Foundation Trust,12-Jul-13,PATIENTS INCONTINENCE,Critical care,NHS LOGISTICS,1014043464,3.42,
Department of Health,Salisbury NHS Foundation Trust,12-Jul-13,PATIENTS INCONTINENCE,Critical care,NHS LOGISTICS,1014043464,9.08,
Department of Health,Salisbury NHS Foundation Trust,12-Jul-13,MEDSURGCONS - OTHER,Critical care,NHS LOGISTICS,1014043464,10.42,
Department of Health,Salisbury NHS Foundation Trust,12-Jul-13,TOILETRIES PERSONAL HYGIENE PRODUCTS,Critical care,NHS LOGISTICS,1014043464,3.22,
Department of Health,Salisbury NHS Foundation Trust,12-Jul-13,NON DISPOSABLE BED LINEN,Critical care,NHS LOGISTICS,1014043464,11.18,
Department of Health,Salisbury NHS Foundation Trust,12-Jul-13,PATIENT APPLIANCES,Critical care,NHS LOGISTICS,1014043464,5.32,
Department of Health,Salisbury NHS Foundation Trust,12-Jul-13,STATIONERY SUNDRIES,Surgery,NHS LOGISTICS,1014043464,0.15,
Department of Health,Salisbury NHS Foundation Trust,12-Jul-13,STATIONERY SUNDRIES,Surgery,NHS LOGISTICS,1014043464,0.1,
Department of Health,Salisbury NHS Foundation Trust,12-Jul-13,STATIONERY SUNDRIES,Surgery,NHS LOGISTICS,1014043464,1.6,
Department of Health,Salisbury NHS Foundation Trust,12-Jul-13,PAPER ITEMS GENERAL STATIONERY SUNDRIES,Surgery,NHS LOGISTICS,1014043464,2.63,
Department of Health,Salisbury NHS Foundation Trust,12-Jul-13,PAPER ITEMS GENERAL STATIONERY SUNDRIES,Surgery,NHS LOGISTICS,1014043464,0.65,
Department of Health,Salisbury NHS Foundation Trust,12-Jul-13,STATIONERY SUNDRIES,Surgery,NHS LOGISTICS,1014043464,1.07,
Department of Health,Salisbury NHS Foundation Trust,12-Jul-13,STATIONERY SUNDRIES,Surgery,NHS LOGISTICS,1014043464,4.58,
Department of Health,Salisbury NHS Foundation Trust,12-Jul-13,MEDSURGCONS - OTHER,Clinical Support and Family Services,NHS LOGISTICS,1014043464,46.68,
Department of Health,Salisbury NHS Foundation Trust,12-Jul-13,TUBES,Clinical Support and Family Services,NHS LOGISTICS,1014043464,6.16,
Department of Health,Salisbury NHS Foundation Trust,12-Jul-13,TOILETRIES PERSONAL HYGIENE PRODUCTS,Clinical Support and Family Services,NHS LOGISTICS,1014043464,3.83,
Department of Health,Salisbury NHS Foundation Trust,12-Jul-13,DRESSINGS - PRE STERILE,Clinical Support and Family Services,NHS LOGISTICS,1014043464,1.59,
Department of Health,Salisbury NHS Foundation Trust,12-Jul-13,PAPER ITEMS GENERAL STATIONERY SUNDRIES,Medicine,NHS LOGISTICS,1014043464,18.67,
Department of Health,Salisbury NHS Foundation Trust,12-Jul-13,OTHER MEDICAL SUPPLIES,Clinical Support and Family Services,NHS LOGISTICS,1014043464,8.83,
Department of Health,Salisbury NHS Foundation Trust,12-Jul-13,DRESSINGS  -  PROCEDURE PACKS,Clinical Support and Family Services,NHS LOGISTICS,1014043464,44.33,
Department of Health,Salisbury NHS Foundation Trust,12-Jul-13,MED SURG EQUIP REP MAINT CLEANING,Clinical Support and Family Services,NHS LOGISTICS,1014043464,11.1,
Department of Health,Salisbury NHS Foundation Trust,12-Jul-13,PATIENT APPLIANCES,Clinical Support and Family Services,NHS LOGISTICS,1014043464,5.32,
Department of Health,Salisbury NHS Foundation Trust,12-Jul-13,CLEANING MATERIALS PRODUCTS SUNDRIES,Human Resources,NHS LOGISTICS,1014043464,3.65,
Department of Health,Salisbury NHS Foundation Trust,12-Jul-13,TISSUES HAND TOWELS & TOILET PAPER,Human Resources,NHS LOGISTICS,1014043464,6.63,
Department of Health,Salisbury NHS Foundation Trust,12-Jul-13,DRESSINGS - PRE STERILE,Critical care,NHS LOGISTICS,1014043464,13.28,
Department of Health,Salisbury NHS Foundation Trust,12-Jul-13,CLEANING MATERIALS PRODUCTS SUNDRIES,Critical care,NHS LOGISTICS,1014043464,7.91,
Department of Health,Salisbury NHS Foundation Trust,12-Jul-13,PATIENT APPLIANCES,Critical care,NHS LOGISTICS,1014043464,5.32,
Department of Health,Salisbury NHS Foundation Trust,12-Jul-13,DRESSINGS - PRE STERILE,Critical care,NHS LOGISTICS,1014043464,13.28,
Department of Health,Salisbury NHS Foundation Trust,12-Jul-13,DRESSINGS - PRE STERILE,Critical care,NHS LOGISTICS,1014043464,0.83,
Department of Health,Salisbury NHS Foundation Trust,12-Jul-13,TISSUES HAND TOWELS & TOILET PAPER,Critical care,NHS LOGISTICS,1014043464,1.82,
Department of Health,Salisbury NHS Foundation Trust,12-Jul-13,PATIENTS INCONTINENCE,Critical care,NHS LOGISTICS,1014043464,4.54,
Department of Health,Salisbury NHS Foundation Trust,12-Jul-13,DRESSINGS - PRE STERILE,Critical care,NHS LOGISTICS,1014043464,5.48,
Department of Health,Salisbury NHS Foundation Trust,12-Jul-13,NON DISPOSABLE BED LINEN,Critical care,NHS LOGISTICS,1014043464,11.18,
Department of Health,Salisbury NHS Foundation Trust,12-Jul-13,PATIENT APPLIANCES,Critical care,NHS LOGISTICS,1014043464,5.32,
Department of Health,Salisbury NHS Foundation Trust,12-Jul-13,PATIENTS BEDWEAR UNISEX,Medicine,NHS LOGISTICS,1014043464,105.02,
Department of Health,Salisbury NHS Foundation Trust,12-Jul-13,STATIONERY SUNDRIES,Critical care,NHS LOGISTICS,1014043464,2.67,
Department of Health,Salisbury NHS Foundation Trust,12-Jul-13,PAPER ITEMS GENERAL STATIONERY SUNDRIES,Critical care,NHS LOGISTICS,1014043464,6.13,
Department of Health,Salisbury NHS Foundation Trust,12-Jul-13,PAPER ITEMS GENERAL STATIONERY SUNDRIES,Critical care,NHS LOGISTICS,1014043464,7.98,
Department of Health,Salisbury NHS Foundation Trust,12-Jul-13,PAPER ITEMS GENERAL STATIONERY SUNDRIES,Critical care,NHS LOGISTICS,1014043464,3.99,
Department of Health,Salisbury NHS Foundation Trust,12-Jul-13,OFFICE EQUIP MACHINERY  -  OTHER,Critical care,NHS LOGISTICS,1014043464,3.18,
Department of Health,Salisbury NHS Foundation Trust,12-Jul-13,CLEANING MATERIALS PRODUCTS SUNDRIES,Critical care,NHS LOGISTICS,1014043464,2.85,
Department of Health,Salisbury NHS Foundation Trust,12-Jul-13,DRESSINGS - PRE STERILE,Medicine,NHS LOGISTICS,1014043464,41.74,
Department of Health,Salisbury NHS Foundation Trust,12-Jul-13,DRUGS,Surgery,NHS LOGISTICS,1014043464,45.3,
Department of Health,Salisbury NHS Foundation Trust,12-Jul-13,DRUGS,Surgery,NHS LOGISTICS,1014043464,45.3,
Department of Health,Salisbury NHS Foundation Trust,12-Jul-13,BAGS SACKS - OTHER,Clinical Support and Family Services,NHS LOGISTICS,1014043464,4.78,
Department of Health,Salisbury NHS Foundation Trust,12-Jul-13,OTHER MEDICAL SUPPLIES,Clinical Support and Family Services,NHS LOGISTICS,1014043464,14.27,
Department of Health,Salisbury NHS Foundation Trust,12-Jul-13,MEDSURGCONS - OTHER,Clinical Support and Family Services,NHS LOGISTICS,1014043464,31.32,
Department of Health,Salisbury NHS Foundation Trust,12-Jul-13,DRESSINGS  -  PROCEDURE PACKS,Surgery,NHS LOGISTICS,1014043464,12.08,
Department of Health,Salisbury NHS Foundation Trust,12-Jul-13,TUBES,Surgery,NHS LOGISTICS,1014043464,41.25,
Department of Health,Salisbury NHS Foundation Trust,12-Jul-13,TOILETRIES PERSONAL HYGIENE PRODUCTS,Surgery,NHS LOGISTICS,1014043464,30.73,
Department of Health,Salisbury NHS Foundation Trust,12-Jul-13,DRESSINGS - PRE STERILE,Surgery,NHS LOGISTICS,1014043464,13.4,
Department of Health,Salisbury NHS Foundation Trust,12-Jul-13,PAPER ITEMS GENERAL STATIONERY SUNDRIES,Surgery,NHS LOGISTICS,1014043464,9.33,
Department of Health,Salisbury NHS Foundation Trust,12-Jul-13,MEDSURGCONS - OTHER,Surgery,NHS LOGISTICS,1014043464,9.89,
Department of Health,Salisbury NHS Foundation Trust,12-Jul-13,MEDSURGCONS - OTHER,Surgery,NHS LOGISTICS,1014043464,10.11,
Department of Health,Salisbury NHS Foundation Trust,12-Jul-13,MEDSURGCONS - OTHER,Surgery,NHS LOGISTICS,1014043464,6.87,
Department of Health,Salisbury NHS Foundation Trust,12-Jul-13,DRESSINGS - PRE STERILE,Surgery,NHS LOGISTICS,1014043464,5.98,
Department of Health,Salisbury NHS Foundation Trust,12-Jul-13,OTHER MEDICAL SUPPLIES,Surgery,NHS LOGISTICS,1014043464,26.67,
Department of Health,Salisbury NHS Foundation Trust,12-Jul-13,DISPOSABLE THEATRE DRAPES WIPES,Surgery,NHS LOGISTICS,1014043464,18.75,
Department of Health,Salisbury NHS Foundation Trust,12-Jul-13,DISPOSABLE THEATRE DRAPES WIPES,Surgery,NHS LOGISTICS,1014043464,7.58,
Department of Health,Salisbury NHS Foundation Trust,12-Jul-13,HEALTHCARE - WEAR,Surgery,NHS LOGISTICS,1014043464,77.84,
Department of Health,Salisbury NHS Foundation Trust,12-Jul-13,HEALTHCARE - WEAR,Surgery,NHS LOGISTICS,1014043464,81.3,
Department of Health,Salisbury NHS Foundation Trust,12-Jul-13,HEALTHCARE - WEAR,Surgery,NHS LOGISTICS,1014043464,81.3,
Department of Health,Salisbury NHS Foundation Trust,12-Jul-13,ADULTS HEARING AIDS,Surgery,NHS LOGISTICS,1014043464,2363,
Department of Health,Salisbury NHS Foundation Trust,12-Jul-13,TISSUES HAND TOWELS & TOILET PAPER,Surgery,NHS LOGISTICS,1014043464,10.9,
Department of Health,Salisbury NHS Foundation Trust,12-Jul-13,TISSUES HAND TOWELS & TOILET PAPER,Surgery,NHS LOGISTICS,1014043464,0.88,
Department of Health,Salisbury NHS Foundation Trust,12-Jul-13,MEDSURGCONS - OTHER,Surgery,NHS LOGISTICS,1014043464,21.85,
Department of Health,Salisbury NHS Foundation Trust,12-Jul-13,DRESSINGS - PRE STERILE,Surgery,NHS LOGISTICS,1014043464,0.39,
Department of Health,Salisbury NHS Foundation Trust,12-Jul-13,M & S EQUIPELECTEQUIPINST - OTHER,Surgery,NHS LOGISTICS,1014043464,18.37,
Department of Health,Salisbury NHS Foundation Trust,12-Jul-13,PAPER ITEMS GENERAL STATIONERY SUNDRIES,Critical care,NHS LOGISTICS,1014043464,18.67,
Department of Health,Salisbury NHS Foundation Trust,12-Jul-13,PAPER ITEMS GENERAL STATIONERY SUNDRIES,Clinical Support and Family Services,NHS LOGISTICS,1014043464,2.67,
Department of Health,Salisbury NHS Foundation Trust,12-Jul-13,PAPER ITEMS GENERAL STATIONERY SUNDRIES,Clinical Support and Family Services,NHS LOGISTICS,1014043464,0.75,
Department of Health,Salisbury NHS Foundation Trust,12-Jul-13,PAPER ITEMS GENERAL STATIONERY SUNDRIES,Clinical Support and Family Services,NHS LOGISTICS,1014043464,0.5,
Department of Health,Salisbury NHS Foundation Trust,12-Jul-13,STATIONERY SUNDRIES,Clinical Support and Family Services,NHS LOGISTICS,1014043464,1.85,
Department of Health,Salisbury NHS Foundation Trust,12-Jul-13,PAPER ITEMS GENERAL STATIONERY SUNDRIES,Clinical Support and Family Services,NHS LOGISTICS,1014043464,37.33,
Department of Health,Salisbury NHS Foundation Trust,12-Jul-13,STATIONERY SUNDRIES,Clinical Support and Family Services,NHS LOGISTICS,1014043464,2.74,
Department of Health,Salisbury NHS Foundation Trust,12-Jul-13,STATIONERY SUNDRIES,Clinical Support and Family Services,NHS LOGISTICS,1014043464,1.55,
Department of Health,Salisbury NHS Foundation Trust,12-Jul-13,STATIONERY SUNDRIES,Clinical Support and Family Services,NHS LOGISTICS,1014043464,0.92,
Department of Health,Salisbury NHS Foundation Trust,12-Jul-13,MEDSURGCONS-LAPAROSCOPIC EQUIPMENT,Surgery,NHS LOGISTICS,1014043464,134.72,
Department of Health,Salisbury NHS Foundation Trust,12-Jul-13,OTHER MEDICAL SUPPLIES,Surgery,NHS LOGISTICS,1014043464,35.33,
Department of Health,Salisbury NHS Foundation Trust,12-Jul-13,DRESSINGS - PRE STERILE,Surgery,NHS LOGISTICS,1014043464,32.41,
Department of Health,Salisbury NHS Foundation Trust,12-Jul-13,DRESSINGS - PRE STERILE,Surgery,NHS LOGISTICS,1014043464,32.76,
Department of Health,Salisbury NHS Foundation Trust,12-Jul-13,DRESSINGS  -  PROCEDURE PACKS,Surgery,NHS LOGISTICS,1014043464,2.78,
Department of Health,Salisbury NHS Foundation Trust,12-Jul-13,MEDSURGCONS - OTHER,Surgery,NHS LOGISTICS,1014043464,20.63,
Department of Health,Salisbury NHS Foundation Trust,12-Jul-13,DRESSINGS  -  PROCEDURE PACKS,Surgery,NHS LOGISTICS,1014043464,2.92,
Department of Health,Salisbury NHS Foundation Trust,12-Jul-13,DRESSINGS  -  PROCEDURE PACKS,Surgery,NHS LOGISTICS,1014043464,6.12,
Department of Health,Salisbury NHS Foundation Trust,12-Jul-13,DRESSINGS - PRE STERILE,Surgery,NHS LOGISTICS,1014043464,3.63,
Department of Health,Salisbury NHS Foundation Trust,12-Jul-13,DRUGS,Surgery,NHS LOGISTICS,1014043464,45.3,
Department of Health,Salisbury NHS Foundation Trust,12-Jul-13,DRUGS,Surgery,NHS LOGISTICS,1014043464,38.58,
Department of Health,Salisbury NHS Foundation Trust,12-Jul-13,DRESSINGS - PRE STERILE,Surgery,NHS LOGISTICS,1014043464,20.03,
Department of Health,Salisbury NHS Foundation Trust,12-Jul-13,DRESSINGS - PRE STERILE,Surgery,NHS LOGISTICS,1014043464,2.25,
Department of Health,Salisbury NHS Foundation Trust,12-Jul-13,MEDSURGCONS - OTHER,Surgery,NHS LOGISTICS,1014043464,9.89,
Department of Health,Salisbury NHS Foundation Trust,12-Jul-13,MEDSURGCONS - OTHER,Surgery,NHS LOGISTICS,1014043464,9.77,
Department of Health,Salisbury NHS Foundation Trust,12-Jul-13,DRESSINGS - PRE STERILE,Surgery,NHS LOGISTICS,1014043464,3.89,
Department of Health,Salisbury NHS Foundation Trust,12-Jul-13,DRESSINGS - PRE STERILE,Surgery,NHS LOGISTICS,1014043464,34.8,
Department of Health,Salisbury NHS Foundation Trust,12-Jul-13,PATIENT APPLIANCES,Surgery,NHS LOGISTICS,1014043464,5.32,
Department of Health,Salisbury NHS Foundation Trust,12-Jul-13,DISPOSABLE THEATRE DRAPES WIPES,Surgery,NHS LOGISTICS,1014043464,9.5,
Department of Health,Salisbury NHS Foundation Trust,12-Jul-13,DISPOSABLE THEATRE DRAPES WIPES,Surgery,NHS LOGISTICS,1014043464,11.27,
Department of Health,Salisbury NHS Foundation Trust,12-Jul-13,DRESSINGS - PRE STERILE,Surgery,NHS LOGISTICS,1014043464,10.55,
Department of Health,Salisbury NHS Foundation Trust,12-Jul-13,DRESSINGS  -  PROCEDURE PACKS,Surgery,NHS LOGISTICS,1014043464,2.33,
Department of Health,Salisbury NHS Foundation Trust,12-Jul-13,DRESSINGS  -  PROCEDURE PACKS,Surgery,NHS LOGISTICS,1014043464,13.67,
Department of Health,Salisbury NHS Foundation Trust,12-Jul-13,DRESSINGS - PRE STERILE,Surgery,NHS LOGISTICS,1014043464,29.35,
Department of Health,Salisbury NHS Foundation Trust,12-Jul-13,DRESSINGS - PRE STERILE,Surgery,NHS LOGISTICS,1014043464,39.41,
Department of Health,Salisbury NHS Foundation Trust,12-Jul-13,DRESSINGS - PRE STERILE,Surgery,NHS LOGISTICS,1014043464,38.13,
Department of Health,Salisbury NHS Foundation Trust,12-Jul-13,OTHER MEDICAL SUPPLIES,Surgery,NHS LOGISTICS,1014043464,26.5,
Department of Health,Salisbury NHS Foundation Trust,12-Jul-13,DRESSINGS  -  PROCEDURE PACKS,Surgery,NHS LOGISTICS,1014043464,9.38,
Department of Health,Salisbury NHS Foundation Trust,12-Jul-13,DRESSINGS - PRE STERILE,Surgery,NHS LOGISTICS,1014043464,3.42,
Department of Health,Salisbury NHS Foundation Trust,12-Jul-13,PAPER ITEMS GENERAL STATIONERY SUNDRIES,Clinical Support and Family Services,NHS LOGISTICS,1014043464,27.8,
Department of Health,Salisbury NHS Foundation Trust,12-Jul-13,PAPER ITEMS GENERAL STATIONERY SUNDRIES,Clinical Support and Family Services,NHS LOGISTICS,1014043464,6.13,
Department of Health,Salisbury NHS Foundation Trust,12-Jul-13,PAPER ITEMS GENERAL STATIONERY SUNDRIES,Clinical Support and Family Services,NHS LOGISTICS,1014043464,37.33,
Department of Health,Salisbury NHS Foundation Trust,12-Jul-13,MEDSURGCONS - OTHER,Surgery,NHS LOGISTICS,1014043464,23.1,
Department of Health,Salisbury NHS Foundation Trust,12-Jul-13,PATIENTS INCONTINENCE,Surgery,NHS LOGISTICS,1014043464,17.03,
Department of Health,Salisbury NHS Foundation Trust,12-Jul-13,PATIENT APPLIANCES,Surgery,NHS LOGISTICS,1014043464,3.92,
Department of Health,Salisbury NHS Foundation Trust,12-Jul-13,PATIENT APPLIANCES,Surgery,NHS LOGISTICS,1014043464,3.92,
Department of Health,Salisbury NHS Foundation Trust,12-Jul-13,DRESSINGS - PRE STERILE,Surgery,NHS LOGISTICS,1014043464,0.85,
Department of Health,Salisbury NHS Foundation Trust,12-Jul-13,TISSUES HAND TOWELS & TOILET PAPER,Surgery,NHS LOGISTICS,1014043464,0.72,
Department of Health,Salisbury NHS Foundation Trust,12-Jul-13,NON DISPOSABLE BED LINEN,Surgery,NHS LOGISTICS,1014043464,21.77,
Department of Health,Salisbury NHS Foundation Trust,12-Jul-13,PATIENT APPLIANCES,Surgery,NHS LOGISTICS,1014043464,7.92,
Department of Health,Salisbury NHS Foundation Trust,12-Jul-13,PATIENT APPLIANCES,Surgery,NHS LOGISTICS,1014043464,7.92,
Department of Health,Salisbury NHS Foundation Trust,12-Jul-13,PATIENT APPLIANCES,Surgery,NHS LOGISTICS,1014043464,5.32,
Department of Health,Salisbury NHS Foundation Trust,12-Jul-13,OPTICAL  -  OTHER,Surgery,NHS LOGISTICS,1014043464,43.6,
Department of Health,Salisbury NHS Foundation Trust,12-Jul-13,DRUGS,Surgery,NHS LOGISTICS,1014043464,7.72,
Department of Health,Salisbury NHS Foundation Trust,12-Jul-13,OTHER MEDICAL SUPPLIES,Medicine,NHS LOGISTICS,1014043464,39.17,
Department of Health,Salisbury NHS Foundation Trust,12-Jul-13,PATIENTS INCONTINENCE,Medicine,NHS LOGISTICS,1014043464,9.08,
Department of Health,Salisbury NHS Foundation Trust,12-Jul-13,DRESSINGS - PRE STERILE,Medicine,NHS LOGISTICS,1014043464,1.08,
Department of Health,Salisbury NHS Foundation Trust,12-Jul-13,DRESSINGS - PRE STERILE,Medicine,NHS LOGISTICS,1014043464,13.28,
Department of Health,Salisbury NHS Foundation Trust,12-Jul-13,MEDSURGCONS - OTHER,Medicine,NHS LOGISTICS,1014043464,1.13,
Department of Health,Salisbury NHS Foundation Trust,12-Jul-13,MEDSURGCONS - OTHER,Medicine,NHS LOGISTICS,1014043464,27.35,
Department of Health,Salisbury NHS Foundation Trust,12-Jul-13,PATIENT APPLIANCES,Medicine,NHS LOGISTICS,1014043464,12.35,
Department of Health,Salisbury NHS Foundation Trust,12-Jul-13,PATIENT APPLIANCES,Medicine,NHS LOGISTICS,1014043464,20.58,
Department of Health,Salisbury NHS Foundation Trust,12-Jul-13,PATIENT APPLIANCES,Medicine,NHS LOGISTICS,1014043464,8.23,
Department of Health,Salisbury NHS Foundation Trust,12-Jul-13,PATIENT APPLIANCES,Medicine,NHS LOGISTICS,1014043464,24.7,
Department of Health,Salisbury NHS Foundation Trust,12-Jul-13,PATIENT APPLIANCES,Medicine,NHS LOGISTICS,1014043464,16.47,
Department of Health,Salisbury NHS Foundation Trust,12-Jul-13,MEDSURGCONS - OTHER,Medicine,NHS LOGISTICS,1014043464,2.17,
Department of Health,Salisbury NHS Foundation Trust,12-Jul-13,OTHER MEDICAL SUPPLIES,Medicine,NHS LOGISTICS,1014043464,3.26,
Department of Health,Salisbury NHS Foundation Trust,12-Jul-13,OTHER MEDICAL SUPPLIES,Medicine,NHS LOGISTICS,1014043464,5.68,
Department of Health,Salisbury NHS Foundation Trust,12-Jul-13,DRUGS,Medicine,NHS LOGISTICS,1014043464,7.72,
Department of Health,Salisbury NHS Foundation Trust,12-Jul-13,LAB EQUIP-ANALYSERS,Medicine,NHS LOGISTICS,1014043464,3.95,
Department of Health,Salisbury NHS Foundation Trust,12-Jul-13,MEDSURGCONS-SUTURES,Medicine,NHS LOGISTICS,1014043464,13.42,
Department of Health,Salisbury NHS Foundation Trust,12-Jul-13,MEDSURGCONS - OTHER,Medicine,NHS LOGISTICS,1014043464,59.69,
Department of Health,Salisbury NHS Foundation Trust,12-Jul-13,MEDSURGCONS - OTHER,Medicine,NHS LOGISTICS,1014043464,6.87,
Department of Health,Salisbury NHS Foundation Trust,12-Jul-13,MEDSURGCONS - OTHER,Medicine,NHS LOGISTICS,1014043464,6.87,
Department of Health,Salisbury NHS Foundation Trust,12-Jul-13,MEDSURGCONS - OTHER,Medicine,NHS LOGISTICS,1014043464,20.83,
Department of Health,Salisbury NHS Foundation Trust,12-Jul-13,MEDSURGCONS - OTHER,Medicine,NHS LOGISTICS,1014043464,8.27,
Department of Health,Salisbury NHS Foundation Trust,12-Jul-13,NON DISPOSABLE BED LINEN,Medicine,NHS LOGISTICS,1014043464,21.77,
Department of Health,Salisbury NHS Foundation Trust,12-Jul-13,DRESSINGS - PRE STERILE,Critical care,NHS LOGISTICS,1014043464,27.91,
Department of Health,Salisbury NHS Foundation Trust,12-Jul-13,DRESSINGS - PRE STERILE,Critical care,NHS LOGISTICS,1014043464,19.81,
Department of Health,Salisbury NHS Foundation Trust,12-Jul-13,DRESSINGS - PRE STERILE,Critical care,NHS LOGISTICS,1014043464,19.8,
Department of Health,Salisbury NHS Foundation Trust,12-Jul-13,DRESSINGS - PRE STERILE,Critical care,NHS LOGISTICS,1014043464,45.57,
Department of Health,Salisbury NHS Foundation Trust,12-Jul-13,DRESSINGS - PRE STERILE,Critical care,NHS LOGISTICS,1014043464,22.78,
Department of Health,Salisbury NHS Foundation Trust,12-Jul-13,DRESSINGS - PRE STERILE,Critical care,NHS LOGISTICS,1014043464,22.79,
Department of Health,Salisbury NHS Foundation Trust,12-Jul-13,PATIENT APPLIANCES,Critical care,NHS LOGISTICS,1014043464,21.58,
Department of Health,Salisbury NHS Foundation Trust,12-Jul-13,DRESSINGS - PRE STERILE,Critical care,NHS LOGISTICS,1014043464,136.27,
Department of Health,Salisbury NHS Foundation Trust,12-Jul-13,DRESSINGS - PRE STERILE,Critical care,NHS LOGISTICS,1014043464,12.37,
Department of Health,Salisbury NHS Foundation Trust,12-Jul-13,DRESSINGS - PRE STERILE,Critical care,NHS LOGISTICS,1014043464,2.76,
Department of Health,Salisbury NHS Foundation Trust,12-Jul-13,TISSUES HAND TOWELS & TOILET PAPER,Critical care,NHS LOGISTICS,1014043464,10.9,
Department of Health,Salisbury NHS Foundation Trust,12-Jul-13,DRESSINGS - PRE STERILE,Critical care,NHS LOGISTICS,1014043464,28.22,
Department of Health,Salisbury NHS Foundation Trust,12-Jul-13,DRESSINGS - PRE STERILE,Critical care,NHS LOGISTICS,1014043464,55.42,
Department of Health,Salisbury NHS Foundation Trust,12-Jul-13,DRESSINGS - PRE STERILE,Critical care,NHS LOGISTICS,1014043464,20.14,
Department of Health,Salisbury NHS Foundation Trust,12-Jul-13,DRESSINGS - PRE STERILE,Critical care,NHS LOGISTICS,1014043464,46.08,
Department of Health,Salisbury NHS Foundation Trust,12-Jul-13,DRESSINGS - PRE STERILE,Critical care,NHS LOGISTICS,1014043464,6.64,
Department of Health,Salisbury NHS Foundation Trust,12-Jul-13,DRESSINGS - PRE STERILE,Critical care,NHS LOGISTICS,1014043464,2.28,
Department of Health,Salisbury NHS Foundation Trust,12-Jul-13,DRESSINGS - PRE STERILE,Critical care,NHS LOGISTICS,1014043464,1.91,
Department of Health,Salisbury NHS Foundation Trust,12-Jul-13,MEDSURGCONS-SUTURES,Critical care,NHS LOGISTICS,1014043464,36.06,
Department of Health,Salisbury NHS Foundation Trust,12-Jul-13,MEDSURGCONS - OTHER,Critical care,NHS LOGISTICS,1014043464,3.51,
Department of Health,Salisbury NHS Foundation Trust,12-Jul-13,MEDSURGCONS-SUTURES,Critical care,NHS LOGISTICS,1014043464,43.81,
Department of Health,Salisbury NHS Foundation Trust,12-Jul-13,PATIENT APPLIANCES,Critical care,NHS LOGISTICS,1014043464,16.4,
Department of Health,Salisbury NHS Foundation Trust,12-Jul-13,PATIENT APPLIANCES,Critical care,NHS LOGISTICS,1014043464,16.4,
Department of Health,Salisbury NHS Foundation Trust,12-Jul-13,PATIENT APPLIANCES,Critical care,NHS LOGISTICS,1014043464,16.4,
Department of Health,Salisbury NHS Foundation Trust,12-Jul-13,OTHER MEDICAL SUPPLIES,Clinical Support and Family Services,NHS LOGISTICS,1014043464,81.68,
Department of Health,Salisbury NHS Foundation Trust,12-Jul-13,OTHER MEDICAL SUPPLIES,Clinical Support and Family Services,NHS LOGISTICS,1014043464,80.17,
Department of Health,Salisbury NHS Foundation Trust,12-Jul-13,BABY TEXTURE MODIFIED FOODS,Clinical Support and Family Services,NHS LOGISTICS,1014043464,14.77,
Department of Health,Salisbury NHS Foundation Trust,12-Jul-13,BABY TEXTURE MODIFIED FOODS,Clinical Support and Family Services,NHS LOGISTICS,1014043464,14.77,
Department of Health,Salisbury NHS Foundation Trust,12-Jul-13,TISSUES HAND TOWELS & TOILET PAPER,Clinical Support and Family Services,NHS LOGISTICS,1014043464,1.82,
Department of Health,Salisbury NHS Foundation Trust,12-Jul-13,TISSUES HAND TOWELS & TOILET PAPER,Clinical Support and Family Services,NHS LOGISTICS,1014043464,1.33,
Department of Health,Salisbury NHS Foundation Trust,12-Jul-13,MEDSURGCONS - OTHER,Clinical Support and Family Services,NHS LOGISTICS,1014043464,5.21,
Department of Health,Salisbury NHS Foundation Trust,12-Jul-13,HABERDASHERY,Surgery,NHS LOGISTICS,1014043464,2.83,
Department of Health,Salisbury NHS Foundation Trust,12-Jul-13,MED SURG EQUIP REP MAINT CLEANING,Clinical Support and Family Services,NHS LOGISTICS,1014043464,45.92,
Department of Health,Salisbury NHS Foundation Trust,12-Jul-13,NON DISPOSABLE BED LINEN,Clinical Support and Family Services,NHS LOGISTICS,1014043464,11.18,
Department of Health,Salisbury NHS Foundation Trust,12-Jul-13,DRESSINGS - PRE STERILE,Surgery,NHS LOGISTICS,1014043464,6.5,
Department of Health,Salisbury NHS Foundation Trust,12-Jul-13,DRESSINGS - PRE STERILE,Surgery,NHS LOGISTICS,1014043464,4.92,
Department of Health,Salisbury NHS Foundation Trust,12-Jul-13,DRESSINGS - PRE STERILE,Surgery,NHS LOGISTICS,1014043464,10.19,
Department of Health,Salisbury NHS Foundation Trust,12-Jul-13,DRESSINGS - PRE STERILE,Surgery,NHS LOGISTICS,1014043464,10.19,
Department of Health,Salisbury NHS Foundation Trust,12-Jul-13,DRESSINGS - PRE STERILE,Surgery,NHS LOGISTICS,1014043464,10.19,
Department of Health,Salisbury NHS Foundation Trust,12-Jul-13,TISSUES HAND TOWELS & TOILET PAPER,Surgery,NHS LOGISTICS,1014043464,5.45,
Department of Health,Salisbury NHS Foundation Trust,12-Jul-13,TISSUES HAND TOWELS & TOILET PAPER,Surgery,NHS LOGISTICS,1014043464,14.53,
Department of Health,Salisbury NHS Foundation Trust,12-Jul-13,PATIENT APPLIANCES,Surgery,NHS LOGISTICS,1014043464,16.03,
Department of Health,Salisbury NHS Foundation Trust,12-Jul-13,HEALTHCARE - WEAR,Critical care,NHS LOGISTICS,1014043464,62.25,
Department of Health,Salisbury NHS Foundation Trust,12-Jul-13,HEALTHCARE - WEAR,Critical care,NHS LOGISTICS,1014043464,27.08,
Department of Health,Salisbury NHS Foundation Trust,12-Jul-13,TISSUES HAND TOWELS & TOILET PAPER,Critical care,NHS LOGISTICS,1014043464,20.6,
Department of Health,Salisbury NHS Foundation Trust,12-Jul-13,PATIENT APPLIANCES,Critical care,NHS LOGISTICS,1014043464,7.8,
Department of Health,Salisbury NHS Foundation Trust,12-Jul-13,DRESSINGS - PRE STERILE,Critical care,NHS LOGISTICS,1014043464,29.6,
Department of Health,Salisbury NHS Foundation Trust,12-Jul-13,MED SURG EQUIP REP MAINT CLEANING,Medicine,NHS LOGISTICS,1014043464,41.35,
Department of Health,Salisbury NHS Foundation Trust,12-Jul-13,TISSUES HAND TOWELS & TOILET PAPER,Medicine,NHS LOGISTICS,1014043464,0.88,
Department of Health,Salisbury NHS Foundation Trust,12-Jul-13,OTHER MEDICAL SUPPLIES,Medicine,NHS LOGISTICS,1014043464,3.26,
Department of Health,Salisbury NHS Foundation Trust,12-Jul-13,BEVERAGES & AMBIENT FOOD,Clinical Support and Family Services,NHS LOGISTICS,1014043464,10.45,
Department of Health,Salisbury NHS Foundation Trust,12-Jul-13,BEVERAGES & AMBIENT FOOD,Clinical Support and Family Services,NHS LOGISTICS,1014043464,16.87,
Department of Health,Salisbury NHS Foundation Trust,12-Jul-13,TISSUES HAND TOWELS & TOILET PAPER,Clinical Support and Family Services,NHS LOGISTICS,1014043464,20.1,
Department of Health,Salisbury NHS Foundation Trust,12-Jul-13,EGGS MILK OTHER DAIRY PRODUCTS,Clinical Support and Family Services,NHS LOGISTICS,1014043464,3.16,
Department of Health,Salisbury NHS Foundation Trust,12-Jul-13,DRESSINGS - PRE STERILE,Clinical Support and Family Services,NHS LOGISTICS,1014043464,0.39,
Department of Health,Salisbury NHS Foundation Trust,12-Jul-13,MEDSURGCONS - OTHER,Clinical Support and Family Services,NHS LOGISTICS,1014043464,20.83,
Department of Health,Salisbury NHS Foundation Trust,12-Jul-13,NON DISPOSABLE BED LINEN,Clinical Support and Family Services,NHS LOGISTICS,1014043464,11.42,
Department of Health,Salisbury NHS Foundation Trust,12-Jul-13,PAPER ITEMS GENERAL STATIONERY SUNDRIES,Surgery,NHS LOGISTICS,1014043464,3.99,
Department of Health,Salisbury NHS Foundation Trust,12-Jul-13,DRESSINGS - PRE STERILE,Surgery,NHS LOGISTICS,1014043464,14.23,
Department of Health,Salisbury NHS Foundation Trust,12-Jul-13,PATIENTS INCONTINENCE,Surgery,NHS LOGISTICS,1014043464,7.21,
Department of Health,Salisbury NHS Foundation Trust,12-Jul-13,PATIENTS BEDWEAR UNISEX,Medicine,NHS LOGISTICS,1014043464,52.51,
Department of Health,Salisbury NHS Foundation Trust,12-Jul-13,NON DISPOSABLE BED LINEN,Clinical Support and Family Services,NHS LOGISTICS,1014043464,11.18,
Department of Health,Salisbury NHS Foundation Trust,12-Jul-13,MEDSURGCONS-SUTURES,Medicine,NHS LOGISTICS,1014043464,56.11,
Department of Health,Salisbury NHS Foundation Trust,12-Jul-13,PATIENT APPLIANCES,Critical care,NHS LOGISTICS,1014043464,10.63,
Department of Health,Salisbury NHS Foundation Trust,12-Jul-13,PATIENT APPLIANCES,Critical care,NHS LOGISTICS,1014043464,1.92,
Department of Health,Salisbury NHS Foundation Trust,12-Jul-13,MEDSURGCONS - OTHER,Medicine,NHS LOGISTICS,1014043464,17.57,
Department of Health,Salisbury NHS Foundation Trust,12-Jul-13,PAPER ITEMS GENERAL STATIONERY SUNDRIES,Clinical Support and Family Services,NHS LOGISTICS,1014043464,7.25,
Department of Health,Salisbury NHS Foundation Trust,12-Jul-13,STATIONERY SUNDRIES,Clinical Support and Family Services,NHS LOGISTICS,1014043464,0.15,
Department of Health,Salisbury NHS Foundation Trust,12-Jul-13,STATIONERY SUNDRIES,Clinical Support and Family Services,NHS LOGISTICS,1014043464,1.62,
Department of Health,Salisbury NHS Foundation Trust,12-Jul-13,STATIONERY SUNDRIES,Clinical Support and Family Services,NHS LOGISTICS,1014043464,6.6,
Department of Health,Salisbury NHS Foundation Trust,12-Jul-13,STATIONERY SUNDRIES,Clinical Support and Family Services,NHS LOGISTICS,1014043464,3.97,
Department of Health,Salisbury NHS Foundation Trust,12-Jul-13,STATIONERY SUNDRIES,Clinical Support and Family Services,NHS LOGISTICS,1014043464,2.23,
Department of Health,Salisbury NHS Foundation Trust,12-Jul-13,STATIONERY SUNDRIES,Clinical Support and Family Services,NHS LOGISTICS,1014043464,0.93,
Department of Health,Salisbury NHS Foundation Trust,12-Jul-13,PAPER ITEMS GENERAL STATIONERY SUNDRIES,Clinical Support and Family Services,NHS LOGISTICS,1014043464,10.5,
Department of Health,Salisbury NHS Foundation Trust,12-Jul-13,PAPER ITEMS GENERAL STATIONERY SUNDRIES,Clinical Support and Family Services,NHS LOGISTICS,1014043464,55,
Department of Health,Salisbury NHS Foundation Trust,12-Jul-13,STATIONERY SUNDRIES,Clinical Support and Family Services,NHS LOGISTICS,1014043464,2,
Department of Health,Salisbury NHS Foundation Trust,12-Jul-13,PAPER ITEMS GENERAL STATIONERY SUNDRIES,Medicine,NHS LOGISTICS,1014043464,105,
Department of Health,Salisbury NHS Foundation Trust,12-Jul-13,PAPER ITEMS GENERAL STATIONERY SUNDRIES,Medicine,NHS LOGISTICS,1014043464,91.67,
Department of Health,Salisbury NHS Foundation Trust,12-Jul-13,PAPER ITEMS GENERAL STATIONERY SUNDRIES,Medicine,NHS LOGISTICS,1014043464,28,
Department of Health,Salisbury NHS Foundation Trust,12-Jul-13,OTHER MEDICAL SUPPLIES,Surgery,NHS LOGISTICS,1014043464,35.33,
Department of Health,Salisbury NHS Foundation Trust,12-Jul-13,TUBES,Surgery,NHS LOGISTICS,1014043464,20.63,
Department of Health,Salisbury NHS Foundation Trust,12-Jul-13,MEDSURGCONS - OTHER,Surgery,NHS LOGISTICS,1014043464,30.83,
Department of Health,Salisbury NHS Foundation Trust,12-Jul-13,MEDSURGCONS - OTHER,Surgery,NHS LOGISTICS,1014043464,30.83,
Department of Health,Salisbury NHS Foundation Trust,12-Jul-13,MEDSURGCONS - OTHER,Surgery,NHS LOGISTICS,1014043464,61.67,
Department of Health,Salisbury NHS Foundation Trust,12-Jul-13,MEDSURGCONS - OTHER,Surgery,NHS LOGISTICS,1014043464,14.65,
Department of Health,Salisbury NHS Foundation Trust,12-Jul-13,HABERDASHERY,Surgery,NHS LOGISTICS,1014043464,13.27,
Department of Health,Salisbury NHS Foundation Trust,12-Jul-13,CLEANING MATERIALS PRODUCTS SUNDRIES,Surgery,NHS LOGISTICS,1014043464,6.4,
Department of Health,Salisbury NHS Foundation Trust,12-Jul-13,DISPOSABLE THEATRE DRAPES WIPES,Surgery,NHS LOGISTICS,1014043464,11.27,
Department of Health,Salisbury NHS Foundation Trust,12-Jul-13,TISSUES HAND TOWELS & TOILET PAPER,Surgery,NHS LOGISTICS,1014043464,7.27,
Department of Health,Salisbury NHS Foundation Trust,12-Jul-13,TISSUES HAND TOWELS & TOILET PAPER,Surgery,NHS LOGISTICS,1014043464,2.65,
Department of Health,Salisbury NHS Foundation Trust,12-Jul-13,DISPOSABLE THEATRE DRAPES WIPES,Surgery,NHS LOGISTICS,1014043464,2.2,
Department of Health,Salisbury NHS Foundation Trust,12-Jul-13,MEDSURGCONS - OTHER,Clinical Support and Family Services,NHS LOGISTICS,1014043464,12.42,
Department of Health,Salisbury NHS Foundation Trust,12-Jul-13,BAGS SACKS - OTHER,Medicine,NHS LOGISTICS,1014043464,6.42,
Department of Health,Salisbury NHS Foundation Trust,12-Jul-13,TISSUES HAND TOWELS & TOILET PAPER,Medicine,NHS LOGISTICS,1014043464,1.82,
Department of Health,Salisbury NHS Foundation Trust,12-Jul-13,DRESSINGS - PRE STERILE,Medicine,NHS LOGISTICS,1014043464,21.21,
Department of Health,Salisbury NHS Foundation Trust,12-Jul-13,TISSUES HAND TOWELS & TOILET PAPER,Medicine,NHS LOGISTICS,1014043464,0.88,
Department of Health,Salisbury NHS Foundation Trust,12-Jul-13,TOILETRIES PERSONAL HYGIENE PRODUCTS,Medicine,NHS LOGISTICS,1014043464,4.79,
Department of Health,Salisbury NHS Foundation Trust,12-Jul-13,PATIENTS INCONTINENCE,Medicine,NHS LOGISTICS,1014043464,10.1,
Department of Health,Salisbury NHS Foundation Trust,12-Jul-13,MEDSURGCONS - OTHER,Medicine,NHS LOGISTICS,1014043464,5.21,
Department of Health,Salisbury NHS Foundation Trust,12-Jul-13,DISPOSABLE THEATRE DRAPES WIPES,Medicine,NHS LOGISTICS,1014043464,2.95,
Department of Health,Salisbury NHS Foundation Trust,12-Jul-13,DISPOSABLE THEATRE DRAPES WIPES,Medicine,NHS LOGISTICS,1014043464,17.2,
Department of Health,Salisbury NHS Foundation Trust,12-Jul-13,STATIONERY SUNDRIES,Surgery,NHS LOGISTICS,1014043464,0.5,
Department of Health,Salisbury NHS Foundation Trust,12-Jul-13,STATIONERY SUNDRIES,Surgery,NHS LOGISTICS,1014043464,1.53,
Department of Health,Salisbury NHS Foundation Trust,12-Jul-13,STATIONERY SUNDRIES,Surgery,NHS LOGISTICS,1014043464,1.53,
Department of Health,Salisbury NHS Foundation Trust,12-Jul-13,STATIONERY SUNDRIES,Surgery,NHS LOGISTICS,1014043464,2.2,
Department of Health,Salisbury NHS Foundation Trust,12-Jul-13,TISSUES HAND TOWELS & TOILET PAPER,Medicine,NHS LOGISTICS,1014043464,1.82,
Department of Health,Salisbury NHS Foundation Trust,12-Jul-13,MED SURG EQUIP REP MAINT CLEANING,Medicine,NHS LOGISTICS,1014043464,103.5,
Department of Health,Salisbury NHS Foundation Trust,12-Jul-13,TUBES,Medicine,NHS LOGISTICS,1014043464,6.16,
Department of Health,Salisbury NHS Foundation Trust,12-Jul-13,PATIENTS INCONTINENCE,Medicine,NHS LOGISTICS,1014043464,18.87,
Department of Health,Salisbury NHS Foundation Trust,12-Jul-13,OTHER MEDICAL SUPPLIES,Surgery,NHS LOGISTICS,1014043464,78.33,
Department of Health,Salisbury NHS Foundation Trust,12-Jul-13,CLEANING MATERIALS PRODUCTS SUNDRIES,Surgery,NHS LOGISTICS,1014043464,6.93,
Department of Health,Salisbury NHS Foundation Trust,12-Jul-13,M & S EQUIPELECTEQUIPINST - OTHER,Surgery,NHS LOGISTICS,1014043464,79.54,
Department of Health,Salisbury NHS Foundation Trust,12-Jul-13,MEDSURGCONS - OTHER,Surgery,NHS LOGISTICS,1014043464,41.25,
Department of Health,Salisbury NHS Foundation Trust,12-Jul-13,OTHER MEDICAL SUPPLIES,Surgery,NHS LOGISTICS,1014043464,6.52,
Department of Health,Salisbury NHS Foundation Trust,12-Jul-13,DRESSINGS - PRE STERILE,Surgery,NHS LOGISTICS,1014043464,0.9,
Department of Health,Salisbury NHS Foundation Trust,12-Jul-13,PATIENTS INCONTINENCE,Surgery,NHS LOGISTICS,1014043464,13.63,
Department of Health,Salisbury NHS Foundation Trust,12-Jul-13,MEDSURGCONS - OTHER,Surgery,NHS LOGISTICS,1014043464,5.21,
Department of Health,Salisbury NHS Foundation Trust,12-Jul-13,SURGICAL INSTRUMENTS: GENERAL,Surgery,NHS LOGISTICS,1014043464,1.4,
Department of Health,Salisbury NHS Foundation Trust,12-Jul-13,OTHER MEDICAL SUPPLIES,Medicine,NHS LOGISTICS,1014043464,13.25,
Department of Health,Salisbury NHS Foundation Trust,12-Jul-13,TISSUES HAND TOWELS & TOILET PAPER,Medicine,NHS LOGISTICS,1014043464,1.82,
Department of Health,Salisbury NHS Foundation Trust,12-Jul-13,PATIENTS INCONTINENCE,Medicine,NHS LOGISTICS,1014043464,6.83,
Department of Health,Salisbury NHS Foundation Trust,12-Jul-13,MED SURG EQUIP REP MAINT CLEANING,Medicine,NHS LOGISTICS,1014043464,34.5,
Department of Health,Salisbury NHS Foundation Trust,12-Jul-13,PATIENTS INCONTINENCE,Medicine,NHS LOGISTICS,1014043464,3.7,
Department of Health,Salisbury NHS Foundation Trust,12-Jul-13,PATIENTS INCONTINENCE,Medicine,NHS LOGISTICS,1014043464,56.6,
Department of Health,Salisbury NHS Foundation Trust,12-Jul-13,TISSUES HAND TOWELS & TOILET PAPER,Medicine,NHS LOGISTICS,1014043464,0.72,
Department of Health,Salisbury NHS Foundation Trust,12-Jul-13,DRESSINGS - PRE STERILE,Medicine,NHS LOGISTICS,1014043464,0.78,
Department of Health,Salisbury NHS Foundation Trust,12-Jul-13,OTHER MEDICAL SUPPLIES,Medicine,NHS LOGISTICS,1014043464,22.08,
Department of Health,Salisbury NHS Foundation Trust,12-Jul-13,DRESSINGS - PRE STERILE,Medicine,NHS LOGISTICS,1014043464,1.08,
Department of Health,Salisbury NHS Foundation Trust,12-Jul-13,DRESSINGS  -  PROCEDURE PACKS,Medicine,NHS LOGISTICS,1014043464,0.73,
Department of Health,Salisbury NHS Foundation Trust,12-Jul-13,TUBES,Medicine,NHS LOGISTICS,1014043464,6.16,
Department of Health,Salisbury NHS Foundation Trust,12-Jul-13,PATIENTS INCONTINENCE,Medicine,NHS LOGISTICS,1014043464,37.73,
Department of Health,Salisbury NHS Foundation Trust,12-Jul-13,DRESSINGS - PRE STERILE,Medicine,NHS LOGISTICS,1014043464,0.43,
Department of Health,Salisbury NHS Foundation Trust,12-Jul-13,DRESSINGS - PRE STERILE,Medicine,NHS LOGISTICS,1014043464,0.43,
Department of Health,Salisbury NHS Foundation Trust,12-Jul-13,OTHER MEDICAL SUPPLIES,Medicine,NHS LOGISTICS,1014043464,8.83,
Department of Health,Salisbury NHS Foundation Trust,12-Jul-13,MEDSURGCONS - OTHER,Medicine,NHS LOGISTICS,1014043464,6.05,
Department of Health,Salisbury NHS Foundation Trust,12-Jul-13,TISSUES HAND TOWELS & TOILET PAPER,Medicine,NHS LOGISTICS,1014043464,0.88,
Department of Health,Salisbury NHS Foundation Trust,12-Jul-13,MEDSURGCONS - OTHER,Medicine,NHS LOGISTICS,1014043464,9.32,
Department of Health,Salisbury NHS Foundation Trust,12-Jul-13,MEDSURGCONS - OTHER,Medicine,NHS LOGISTICS,1014043464,9.32,
Department of Health,Salisbury NHS Foundation Trust,12-Jul-13,MEDSURGCONS - OTHER,Medicine,NHS LOGISTICS,1014043464,54.58,
Department of Health,Salisbury NHS Foundation Trust,12-Jul-13,DRESSINGS - PRE STERILE,Medicine,NHS LOGISTICS,1014043464,10.33,
Department of Health,Salisbury NHS Foundation Trust,12-Jul-13,MEDSURGCONS - OTHER,Medicine,NHS LOGISTICS,1014043464,10.42,
Department of Health,Salisbury NHS Foundation Trust,12-Jul-13,TISSUES HAND TOWELS & TOILET PAPER,Medicine,NHS LOGISTICS,1014043464,0.36,
Department of Health,Salisbury NHS Foundation Trust,12-Jul-13,M & S EQUIPELECTEQUIPINST - OTHER,Clinical Support and Family Services,NHS LOGISTICS,1014043464,83.67,
Department of Health,Salisbury NHS Foundation Trust,12-Jul-13,M & S EQUIPELECTEQUIPINST - OTHER,Clinical Support and Family Services,NHS LOGISTICS,1014043464,120.5,
Department of Health,Salisbury NHS Foundation Trust,12-Jul-13,STATIONERY SUNDRIES,Critical care,NHS LOGISTICS,1014043464,3.33,
Department of Health,Salisbury NHS Foundation Trust,12-Jul-13,STATIONERY SUNDRIES,Critical care,NHS LOGISTICS,1014043464,8.8,
Department of Health,Salisbury NHS Foundation Trust,12-Jul-13,OTHER MEDICAL SUPPLIES,Medicine,NHS LOGISTICS,1014043464,39.17,
Department of Health,Salisbury NHS Foundation Trust,12-Jul-13,PATIENTS INCONTINENCE,Medicine,NHS LOGISTICS,1014043464,9.08,
Department of Health,Salisbury NHS Foundation Trust,12-Jul-13,DRESSINGS - PRE STERILE,Medicine,NHS LOGISTICS,1014043464,3.23,
Department of Health,Salisbury NHS Foundation Trust,12-Jul-13,DRESSINGS - PRE STERILE,Medicine,NHS LOGISTICS,1014043464,13.28,
Department of Health,Salisbury NHS Foundation Trust,12-Jul-13,CLEANING MATERIALS PRODUCTS SUNDRIES,Medicine,NHS LOGISTICS,1014043464,6.93,
Department of Health,Salisbury NHS Foundation Trust,12-Jul-13,PATIENTS INCONTINENCE,Medicine,NHS LOGISTICS,1014043464,4.54,
Department of Health,Salisbury NHS Foundation Trust,12-Jul-13,TOILETRIES PERSONAL HYGIENE PRODUCTS,Medicine,NHS LOGISTICS,1014043464,9.54,
Department of Health,Salisbury NHS Foundation Trust,12-Jul-13,LAB EQUIP-LABORATORY APPARATUS,Medicine,NHS LOGISTICS,1014043464,3.78,
Department of Health,Salisbury NHS Foundation Trust,12-Jul-13,MEDSURGCONS - OTHER,Medicine,NHS LOGISTICS,1014043464,15.63,
Department of Health,Salisbury NHS Foundation Trust,12-Jul-13,MEDSURGCONS - OTHER,Medicine,NHS LOGISTICS,1014043464,12.4,
Department of Health,Salisbury NHS Foundation Trust,12-Jul-13,TISSUES HAND TOWELS & TOILET PAPER,Medicine,NHS LOGISTICS,1014043464,2.15,
Department of Health,Salisbury NHS Foundation Trust,12-Jul-13,DRESSINGS - PRE STERILE,Critical care,NHS LOGISTICS,1014043464,5.51,
Department of Health,Salisbury NHS Foundation Trust,12-Jul-13,M & S EQUIPELECTEQUIPINST - OTHER,Critical care,NHS LOGISTICS,1014043464,4.5,
Department of Health,Salisbury NHS Foundation Trust,12-Jul-13,TISSUES HAND TOWELS & TOILET PAPER,Critical care,NHS LOGISTICS,1014043464,3.63,
Department of Health,Salisbury NHS Foundation Trust,12-Jul-13,DRESSINGS - PRE STERILE,Critical care,NHS LOGISTICS,1014043464,6.38,
Department of Health,Salisbury NHS Foundation Trust,12-Jul-13,M & S EQUIPELECTEQUIPINST - OTHER,Critical care,NHS LOGISTICS,1014043464,27.13,
Department of Health,Salisbury NHS Foundation Trust,12-Jul-13,MEDSURGCONS - OTHER,Critical care,NHS LOGISTICS,1014043464,5.83,
Department of Health,Salisbury NHS Foundation Trust,12-Jul-13,PATIENTS INCONTINENCE,Critical care,NHS LOGISTICS,1014043464,9.08,
Department of Health,Salisbury NHS Foundation Trust,12-Jul-13,PATIENT APPLIANCES,Critical care,NHS LOGISTICS,1014043464,3.92,
Department of Health,Salisbury NHS Foundation Trust,12-Jul-13,PATIENT APPLIANCES,Critical care,NHS LOGISTICS,1014043464,3.92,
Department of Health,Salisbury NHS Foundation Trust,12-Jul-13,MEDSURGCONS - OTHER,Critical care,NHS LOGISTICS,1014043464,10.42,
Department of Health,Salisbury NHS Foundation Trust,12-Jul-13,TOILETRIES PERSONAL HYGIENE PRODUCTS,Critical care,NHS LOGISTICS,1014043464,3.22,
Department of Health,Salisbury NHS Foundation Trust,12-Jul-13,COOKING & KITCHEN UTENSILS,Surgery,NHS LOGISTICS,1014043464,16.45,
Department of Health,Salisbury NHS Foundation Trust,12-Jul-13,DRUGS,Surgery,NHS LOGISTICS,1014043464,90.6,
Department of Health,Salisbury NHS Foundation Trust,12-Jul-13,DRUGS,Surgery,NHS LOGISTICS,1014043464,45.3,
Department of Health,Salisbury NHS Foundation Trust,12-Jul-13,OTHER MEDICAL SUPPLIES,Clinical Support and Family Services,NHS LOGISTICS,1014043464,8.83,
Department of Health,Salisbury NHS Foundation Trust,12-Jul-13,PATIENTS BEDWEAR UNISEX,Clinical Support and Family Services,NHS LOGISTICS,1014043464,4.14,
Department of Health,Salisbury NHS Foundation Trust,12-Jul-13,DRESSINGS  -  PROCEDURE PACKS,Clinical Support and Family Services,NHS LOGISTICS,1014043464,228.26,
Department of Health,Salisbury NHS Foundation Trust,12-Jul-13,DRESSINGS - PRE STERILE,Clinical Support and Family Services,NHS LOGISTICS,1014043464,11.77,
Department of Health,Salisbury NHS Foundation Trust,12-Jul-13,M & S EQUIPELECTEQUIPINST - OTHER,Clinical Support and Family Services,NHS LOGISTICS,1014043464,1.25,
Department of Health,Salisbury NHS Foundation Trust,12-Jul-13,DRESSINGS - PRE STERILE,Surgery,NHS LOGISTICS,1014043464,65.52,
Department of Health,Salisbury NHS Foundation Trust,12-Jul-13,MEDSURGCONS - OTHER,Surgery,NHS LOGISTICS,1014043464,27.5,
Department of Health,Salisbury NHS Foundation Trust,12-Jul-13,OTHER MEDICAL SUPPLIES,Surgery,NHS LOGISTICS,1014043464,11.67,
Department of Health,Salisbury NHS Foundation Trust,12-Jul-13,OTHER MEDICAL SUPPLIES,Surgery,NHS LOGISTICS,1014043464,44.67,
Department of Health,Salisbury NHS Foundation Trust,12-Jul-13,BAGS SACKS - OTHER,Surgery,NHS LOGISTICS,1014043464,12.03,
Department of Health,Salisbury NHS Foundation Trust,12-Jul-13,CLEANING MATERIALS PRODUCTS SUNDRIES,Surgery,NHS LOGISTICS,1014043464,33.4,
Department of Health,Salisbury NHS Foundation Trust,12-Jul-13,OTHER MEDICAL SUPPLIES,Surgery,NHS LOGISTICS,1014043464,19.37,
Department of Health,Salisbury NHS Foundation Trust,12-Jul-13,OTHER MEDICAL SUPPLIES,Surgery,NHS LOGISTICS,1014043464,16.53,
Department of Health,Salisbury NHS Foundation Trust,12-Jul-13,PATIENTS INCONTINENCE,Surgery,NHS LOGISTICS,1014043464,4.29,
Department of Health,Salisbury NHS Foundation Trust,12-Jul-13,NON DISPOSABLE BED LINEN,Surgery,NHS LOGISTICS,1014043464,11.18,
Department of Health,Salisbury NHS Foundation Trust,12-Jul-13,PATIENT APPLIANCES,Surgery,NHS LOGISTICS,1014043464,7.92,
Department of Health,Salisbury NHS Foundation Trust,12-Jul-13,PATIENT APPLIANCES,Surgery,NHS LOGISTICS,1014043464,7.92,
Department of Health,Salisbury NHS Foundation Trust,12-Jul-13,PATIENT APPLIANCES,Surgery,NHS LOGISTICS,1014043464,10.63,
Department of Health,Salisbury NHS Foundation Trust,12-Jul-13,OTHER MEDICAL SUPPLIES,Critical care,NHS LOGISTICS,1014043464,4.42,
Department of Health,Salisbury NHS Foundation Trust,12-Jul-13,PAPER ITEMS GENERAL STATIONERY SUNDRIES,Clinical Support and Family Services,NHS LOGISTICS,1014043464,11.83,
Department of Health,Salisbury NHS Foundation Trust,12-Jul-13,DRESSINGS - PRE STERILE,Surgery,NHS LOGISTICS,1014043464,2.25,
Department of Health,Salisbury NHS Foundation Trust,12-Jul-13,DRESSINGS - PRE STERILE,Surgery,NHS LOGISTICS,1014043464,4.13,
Department of Health,Salisbury NHS Foundation Trust,12-Jul-13,DRESSINGS - PRE STERILE,Surgery,NHS LOGISTICS,1014043464,3.76,
Department of Health,Salisbury NHS Foundation Trust,12-Jul-13,DRESSINGS - PRE STERILE,Surgery,NHS LOGISTICS,1014043464,3.57,
Department of Health,Salisbury NHS Foundation Trust,12-Jul-13,DRESSINGS - PRE STERILE,Surgery,NHS LOGISTICS,1014043464,3.15,
Department of Health,Salisbury NHS Foundation Trust,12-Jul-13,PAPER ITEMS GENERAL STATIONERY SUNDRIES,Surgery,NHS LOGISTICS,1014043464,18.67,
Department of Health,Salisbury NHS Foundation Trust,12-Jul-13,DRESSINGS - PRE STERILE,Surgery,NHS LOGISTICS,1014043464,14.32,
Department of Health,Salisbury NHS Foundation Trust,12-Jul-13,DRESSINGS - PRE STERILE,Surgery,NHS LOGISTICS,1014043464,14.43,
Department of Health,Salisbury NHS Foundation Trust,12-Jul-13,TISSUES HAND TOWELS & TOILET PAPER,Clinical Support and Family Services,NHS LOGISTICS,1014043464,3.63,
Department of Health,Salisbury NHS Foundation Trust,12-Jul-13,DRESSINGS - PRE STERILE,Clinical Support and Family Services,NHS LOGISTICS,1014043464,0.45,
Department of Health,Salisbury NHS Foundation Trust,12-Jul-13,OTHER MEDICAL SUPPLIES,Surgery,NHS LOGISTICS,1014043464,13.25,
Department of Health,Salisbury NHS Foundation Trust,12-Jul-13,DRESSINGS - PRE STERILE,Surgery,NHS LOGISTICS,1014043464,3.42,
Department of Health,Salisbury NHS Foundation Trust,12-Jul-13,OTHER MEDICAL SUPPLIES,Surgery,NHS LOGISTICS,1014043464,22.08,
Department of Health,Salisbury NHS Foundation Trust,12-Jul-13,DRESSINGS - PRE STERILE,Surgery,NHS LOGISTICS,1014043464,6.64,
Department of Health,Salisbury NHS Foundation Trust,12-Jul-13,PATIENT APPLIANCES,Clinical Support and Family Services,NHS LOGISTICS,1014043464,12.17,
Department of Health,Salisbury NHS Foundation Trust,12-Jul-13,TISSUES HAND TOWELS & TOILET PAPER,Clinical Support and Family Services,NHS LOGISTICS,1014043464,1.82,
Department of Health,Salisbury NHS Foundation Trust,12-Jul-13,TUBES,Clinical Support and Family Services,NHS LOGISTICS,1014043464,6.16,
Department of Health,Salisbury NHS Foundation Trust,12-Jul-13,TOILETRIES PERSONAL HYGIENE PRODUCTS,Clinical Support and Family Services,NHS LOGISTICS,1014043464,1.5,
Department of Health,Salisbury NHS Foundation Trust,12-Jul-13,PATIENT APPLIANCES,Clinical Support and Family Services,NHS LOGISTICS,1014043464,45.77,
Department of Health,Salisbury NHS Foundation Trust,12-Jul-13,PATIENT APPLIANCES,Clinical Support and Family Services,NHS LOGISTICS,1014043464,8.38,
Department of Health,Salisbury NHS Foundation Trust,12-Jul-13,SURGICAL INSTRUMENTS: DISPOSABLE,Clinical Support and Family Services,NHS LOGISTICS,1014043464,24.73,
Department of Health,Salisbury NHS Foundation Trust,12-Jul-13,SERVICES FROM NHS BODIES,Clinical Support and Family Services,NHS LOGISTICS,1014043464,7.5,
Department of Health,Salisbury NHS Foundation Trust,12-Jul-13,DRESSINGS - PRE STERILE,Clinical Support and Family Services,NHS LOGISTICS,1014043464,0.78,
Department of Health,Salisbury NHS Foundation Trust,12-Jul-13,SURGICAL INSTRUMENTS: GENERAL,Clinical Support and Family Services,NHS LOGISTICS,1014043464,32.85,
Department of Health,Salisbury NHS Foundation Trust,12-Jul-13,SURGICAL INSTRUMENTS: DISPOSABLE,Clinical Support and Family Services,NHS LOGISTICS,1014043464,13.38,
Department of Health,Salisbury NHS Foundation Trust,12-Jul-13,MED SURG EQUIP REP MAINT CLEANING,Clinical Support and Family Services,NHS LOGISTICS,1014043464,104.39,
Department of Health,Salisbury NHS Foundation Trust,12-Jul-13,MED SURG EQUIP REP MAINT CLEANING,Clinical Support and Family Services,NHS LOGISTICS,1014043464,104.39,
Department of Health,Salisbury NHS Foundation Trust,12-Jul-13,SURGICAL INSTRUMENTS: GENERAL,Clinical Support and Family Services,NHS LOGISTICS,1014043464,9.03,
Department of Health,Salisbury NHS Foundation Trust,12-Jul-13,OTHER MEDICAL SUPPLIES,Clinical Support and Family Services,NHS LOGISTICS,1014043464,1.33,
Department of Health,Salisbury NHS Foundation Trust,12-Jul-13,OTHER MEDICAL SUPPLIES,Clinical Support and Family Services,NHS LOGISTICS,1014043464,3.26,
Department of Health,Salisbury NHS Foundation Trust,12-Jul-13,MEDSURGCONS - OTHER,Clinical Support and Family Services,NHS LOGISTICS,1014043464,5.21,
Department of Health,Salisbury NHS Foundation Trust,12-Jul-13,OTHER MEDICAL SUPPLIES,Medicine,NHS LOGISTICS,1014043464,8.83,
Department of Health,Salisbury NHS Foundation Trust,12-Jul-13,PATIENTS INCONTINENCE,Medicine,NHS LOGISTICS,1014043464,18.17,
Department of Health,Salisbury NHS Foundation Trust,12-Jul-13,MEDSURGCONS - OTHER,Medicine,NHS LOGISTICS,1014043464,12.37,
Department of Health,Salisbury NHS Foundation Trust,12-Jul-13,DRESSINGS - PRE STERILE,Medicine,NHS LOGISTICS,1014043464,0.7,
Department of Health,Salisbury NHS Foundation Trust,12-Jul-13,OTHER MEDICAL SUPPLIES,Medicine,NHS LOGISTICS,1014043464,3.26,
Department of Health,Salisbury NHS Foundation Trust,12-Jul-13,CLEANING MATERIALS PRODUCTS SUNDRIES,Medicine,NHS LOGISTICS,1014043464,15.48,
Department of Health,Salisbury NHS Foundation Trust,12-Jul-13,PATIENTS INCONTINENCE,Medicine,NHS LOGISTICS,1014043464,9.08,
Department of Health,Salisbury NHS Foundation Trust,12-Jul-13,MEDSURGCONS - OTHER,Medicine,NHS LOGISTICS,1014043464,5.21,
Department of Health,Salisbury NHS Foundation Trust,12-Jul-13,OTHER MEDICAL SUPPLIES,Critical care,NHS LOGISTICS,1014043464,13.25,
Department of Health,Salisbury NHS Foundation Trust,12-Jul-13,DRESSINGS - PRE STERILE,Critical care,NHS LOGISTICS,1014043464,19.4,
Department of Health,Salisbury NHS Foundation Trust,12-Jul-13,DRESSINGS - PRE STERILE,Critical care,NHS LOGISTICS,1014043464,5.51,
Department of Health,Salisbury NHS Foundation Trust,12-Jul-13,STATIONERY SUNDRIES,Clinical Support and Family Services,NHS LOGISTICS,1014043464,1.47,
Department of Health,Salisbury NHS Foundation Trust,12-Jul-13,PAPER ITEMS GENERAL STATIONERY SUNDRIES,Clinical Support and Family Services,NHS LOGISTICS,1014043464,9.33,
Department of Health,Salisbury NHS Foundation Trust,12-Jul-13,TISSUES HAND TOWELS & TOILET PAPER,Clinical Support and Family Services,NHS LOGISTICS,1014043464,5.45,
Department of Health,Salisbury NHS Foundation Trust,12-Jul-13,PAPER ITEMS GENERAL STATIONERY SUNDRIES,Clinical Support and Family Services,NHS LOGISTICS,1014043464,38.27,
Department of Health,Salisbury NHS Foundation Trust,12-Jul-13,PAPER ITEMS GENERAL STATIONERY SUNDRIES,Clinical Support and Family Services,NHS LOGISTICS,1014043464,4.08,
Department of Health,Salisbury NHS Foundation Trust,12-Jul-13,TISSUES HAND TOWELS & TOILET PAPER,Clinical Support and Family Services,NHS LOGISTICS,1014043464,3.75,
Department of Health,Salisbury NHS Foundation Trust,12-Jul-13,OTHER MEDICAL SUPPLIES,Surgery,NHS LOGISTICS,1014043464,16.53,
Department of Health,Salisbury NHS Foundation Trust,12-Jul-13,PATIENT APPLIANCES,Surgery,NHS LOGISTICS,1014043464,7.92,
Department of Health,Salisbury NHS Foundation Trust,12-Jul-13,PATIENT APPLIANCES,Surgery,NHS LOGISTICS,1014043464,5.32,
Department of Health,Salisbury NHS Foundation Trust,12-Jul-13,ANAESTHETIC EQUIPMENT ACCESSORIES,Clinical Support and Family Services,NHS LOGISTICS,1014043464,16.04,
Department of Health,Salisbury NHS Foundation Trust,12-Jul-13,M & S EQUIPELECTEQUIPINST - OTHER,Clinical Support and Family Services,NHS LOGISTICS,1014043464,3.47,
Department of Health,Salisbury NHS Foundation Trust,12-Jul-13,PATIENTS CLOTHING MEN,Medicine,NHS LOGISTICS,1014043464,9.35,
Department of Health,Salisbury NHS Foundation Trust,12-Jul-13,NON DISPOSABLE BED LINEN,Medicine,NHS LOGISTICS,1014043464,11.18,
Department of Health,Salisbury NHS Foundation Trust,12-Jul-13,PATIENT APPLIANCES,Clinical Support and Family Services,NHS LOGISTICS,1014043464,32.66,
Department of Health,Salisbury NHS Foundation Trust,12-Jul-13,DRUGS,Clinical Support and Family Services,NHS LOGISTICS,1014043464,2.82,
Department of Health,Salisbury NHS Foundation Trust,12-Jul-13,DRESSINGS - PRE STERILE,Clinical Support and Family Services,NHS LOGISTICS,1014043464,0.66,
Department of Health,Salisbury NHS Foundation Trust,12-Jul-13,NON DISPOSABLE BED LINEN,Clinical Support and Family Services,NHS LOGISTICS,1014043464,5.59,
Department of Health,Salisbury NHS Foundation Trust,12-Jul-13,OTHER MEDICAL SUPPLIES,Critical care,NHS LOGISTICS,1014043464,17.67,
Department of Health,Salisbury NHS Foundation Trust,12-Jul-13,DRESSINGS - PRE STERILE,Critical care,NHS LOGISTICS,1014043464,6.64,
Department of Health,Salisbury NHS Foundation Trust,12-Jul-13,DRESSINGS - PRE STERILE,Critical care,NHS LOGISTICS,1014043464,9.7,
Department of Health,Salisbury NHS Foundation Trust,12-Jul-13,TISSUES HAND TOWELS & TOILET PAPER,Critical care,NHS LOGISTICS,1014043464,3.63,
Department of Health,Salisbury NHS Foundation Trust,12-Jul-13,TISSUES HAND TOWELS & TOILET PAPER,Critical care,NHS LOGISTICS,1014043464,0.72,
Department of Health,Salisbury NHS Foundation Trust,12-Jul-13,NON DISPOSABLE BED LINEN,Critical care,NHS LOGISTICS,1014043464,5.59,
Department of Health,Salisbury NHS Foundation Trust,12-Jul-13,DRESSINGS  -  PROCEDURE PACKS,Surgery,NHS LOGISTICS,1014043464,11.25,
Department of Health,Salisbury NHS Foundation Trust,12-Jul-13,NON DISPOSABLE BED LINEN,Clinical Support and Family Services,NHS LOGISTICS,1014043464,11.18,
Department of Health,Salisbury NHS Foundation Trust,12-Jul-13,DRESSINGS - PRE STERILE,Medicine,NHS LOGISTICS,1014043464,1.08,
Department of Health,Salisbury NHS Foundation Trust,12-Jul-13,DRESSINGS - PRE STERILE,Medicine,NHS LOGISTICS,1014043464,5.47,
Department of Health,Salisbury NHS Foundation Trust,12-Jul-13,OTHER MEDICAL SUPPLIES,Medicine,NHS LOGISTICS,1014043464,33.33,
Department of Health,Salisbury NHS Foundation Trust,12-Jul-13,PATIENTS INCONTINENCE,Medicine,NHS LOGISTICS,1014043464,5.77,
Department of Health,Salisbury NHS Foundation Trust,12-Jul-13,MEDSURGCONS - OTHER,Medicine,NHS LOGISTICS,1014043464,10.42,
Department of Health,Salisbury NHS Foundation Trust,12-Jul-13,MEDSURGCONS - OTHER,Medicine,NHS LOGISTICS,1014043464,4.13,
Department of Health,Salisbury NHS Foundation Trust,12-Jul-13,STATIONERY SUNDRIES,Clinical Support and Family Services,NHS LOGISTICS,1014043464,1.63,
Department of Health,Salisbury NHS Foundation Trust,12-Jul-13,STATIONERY SUNDRIES,Clinical Support and Family Services,NHS LOGISTICS,1014043464,9.2,
Department of Health,Salisbury NHS Foundation Trust,12-Jul-13,STATIONERY SUNDRIES,Clinical Support and Family Services,NHS LOGISTICS,1014043464,13.8,
Department of Health,Salisbury NHS Foundation Trust,12-Jul-13,STATIONERY SUNDRIES,Clinical Support and Family Services,NHS LOGISTICS,1014043464,2,
Department of Health,Salisbury NHS Foundation Trust,12-Jul-13,STATIONERY SUNDRIES,Clinical Support and Family Services,NHS LOGISTICS,1014043464,2,
Department of Health,Salisbury NHS Foundation Trust,12-Jul-13,STATIONERY SUNDRIES,Clinical Support and Family Services,NHS LOGISTICS,1014043464,0.31,
Department of Health,Salisbury NHS Foundation Trust,12-Jul-13,STATIONERY SUNDRIES,Clinical Support and Family Services,NHS LOGISTICS,1014043464,0.63,
Department of Health,Salisbury NHS Foundation Trust,12-Jul-13,MEDSURGCONS - OTHER,Medicine,NHS LOGISTICS,1014043464,32.35,
Department of Health,Salisbury NHS Foundation Trust,12-Jul-13,NON DISPOSABLE BED LINEN,Medicine,NHS LOGISTICS,1014043464,11.18,
Department of Health,Salisbury NHS Foundation Trust,12-Jul-13,PATIENT APPLIANCES,Medicine,NHS LOGISTICS,1014043464,5.32,
Department of Health,Salisbury NHS Foundation Trust,12-Jul-13,PATIENTS INCONTINENCE,Critical care,NHS LOGISTICS,1014043464,4.29,
Department of Health,Salisbury NHS Foundation Trust,12-Jul-13,NON DISPOSABLE BED LINEN,Critical care,NHS LOGISTICS,1014043464,5.59,
Department of Health,Salisbury NHS Foundation Trust,12-Jul-13,MEDSURGCONS-SUTURES,Clinical Support and Family Services,NHS LOGISTICS,1014043464,46.71,
Department of Health,Salisbury NHS Foundation Trust,12-Jul-13,DRESSINGS - PRE STERILE,Critical care,NHS LOGISTICS,1014043464,5.51,
Department of Health,Salisbury NHS Foundation Trust,12-Jul-13,TISSUES HAND TOWELS & TOILET PAPER,Clinical Support and Family Services,NHS LOGISTICS,1014043464,3.63,
Department of Health,Salisbury NHS Foundation Trust,12-Jul-13,TISSUES HAND TOWELS & TOILET PAPER,Clinical Support and Family Services,NHS LOGISTICS,1014043464,20.1,
Department of Health,Salisbury NHS Foundation Trust,12-Jul-13,DENTAL SURGERY SUNDRIES,Surgery,NHS LOGISTICS,1014043464,21.44,
Department of Health,Salisbury NHS Foundation Trust,12-Jul-13,COOKING & KITCHEN UTENSILS,Clinical Support and Family Services,NHS LOGISTICS,1014043464,13.39,
Department of Health,Salisbury NHS Foundation Trust,12-Jul-13,MEDSURGCONS - OTHER,Clinical Support and Family Services,NHS LOGISTICS,1014043464,38.42,
Department of Health,Salisbury NHS Foundation Trust,12-Jul-13,ANAESTHETIC EQUIPMENT ACCESSORIES,Surgery,NHS LOGISTICS,1014043464,42.74,
Department of Health,Salisbury NHS Foundation Trust,12-Jul-13,ANAESTHETIC EQUIPMENT ACCESSORIES,Surgery,NHS LOGISTICS,1014043464,85.48,
Department of Health,Salisbury NHS Foundation Trust,12-Jul-13,DISPOSABLE TABLE LINEN,Medicine,NHS LOGISTICS,1014043464,1.47,
Department of Health,Salisbury NHS Foundation Trust,12-Jul-13,COOKING & KITCHEN UTENSILS,Directorate of Finance and Procurement,NHS LOGISTICS,1014043464,32.95,
Department of Health,Salisbury NHS Foundation Trust,12-Jul-13,HEALTHCARE - WEAR,Surgery,NHS LOGISTICS,1014043464,37.23,
Department of Health,Salisbury NHS Foundation Trust,12-Jul-13,OFFICE BUSINESS FURNITURE,Medicine,NHS LOGISTICS,1014043464,23.7,
Department of Health,Salisbury NHS Foundation Trust,12-Jul-13,STATIONERY SUNDRIES,Clinical Support and Family Services,NHS LOGISTICS,1014043464,3.96,
Department of Health,Salisbury NHS Foundation Trust,12-Jul-13,STATIONERY SUNDRIES,Clinical Effctiveness Directorate,NHS LOGISTICS,1014043464,14.93,
Department of Health,Salisbury NHS Foundation Trust,12-Jul-13,PAPER ITEMS GENERAL STATIONERY SUNDRIES,Medicine,NHS LOGISTICS,1014043464,6.48,
Department of Health,Salisbury NHS Foundation Trust,12-Jul-13,PAPER ITEMS GENERAL STATIONERY SUNDRIES,Medicine,NHS LOGISTICS,1014043464,6.48,
Department of Health,Salisbury NHS Foundation Trust,12-Jul-13,PAPER ITEMS GENERAL STATIONERY SUNDRIES,Surgery,NHS LOGISTICS,1014043464,15.65,
Department of Health,Salisbury NHS Foundation Trust,12-Jul-13,MEDSURGCONS-LAPAROSCOPIC EQUIPMENT,Surgery,NHS LOGISTICS,1014043464,248.71,
Department of Health,Salisbury NHS Foundation Trust,12-Jul-13,MEDSURGCONS-LAPAROSCOPIC EQUIPMENT,Surgery,NHS LOGISTICS,1014043464,233.71,
Department of Health,Salisbury NHS Foundation Trust,12-Jul-13,OTHER MEDICAL SUPPLIES,Surgery,NHS LOGISTICS,1014043464,106.38,
Department of Health,Salisbury NHS Foundation Trust,12-Jul-13,COOKING & KITCHEN UTENSILS,Salisbury Linien Services,NHS LOGISTICS,1014043464,17.13,
Department of Health,Salisbury NHS Foundation Trust,12-Jul-13,MEDSURGCONS-SUTURES,Surgery,NHS LOGISTICS,1014043464,35.53,
Department of Health,Salisbury NHS Foundation Trust,12-Jul-13,MEDSURGCONS-SUTURES,Surgery,NHS LOGISTICS,1014043464,61.67,
Department of Health,Salisbury NHS Foundation Trust,12-Jul-13,MEDSURGCONS-SUTURES,Surgery,NHS LOGISTICS,1014043464,56.92,
Department of Health,Salisbury NHS Foundation Trust,12-Jul-13,MEDSURGCONS-SUTURES,Surgery,NHS LOGISTICS,1014043464,61.52,
Department of Health,Salisbury NHS Foundation Trust,12-Jul-13,MEDSURGCONS-SUTURES,Surgery,NHS LOGISTICS,1014043464,53.43,
Department of Health,Salisbury NHS Foundation Trust,12-Jul-13,MEDSURGCONS-SUTURES,Surgery,NHS LOGISTICS,1014043464,66.8,
Department of Health,Salisbury NHS Foundation Trust,12-Jul-13,MEDSURGCONS-SUTURES,Surgery,NHS LOGISTICS,1014043464,68.48,
Department of Health,Salisbury NHS Foundation Trust,12-Jul-13,MEDSURGCONS-SUTURES,Surgery,NHS LOGISTICS,1014043464,62.01,
Department of Health,Salisbury NHS Foundation Trust,12-Jul-13,MEDSURGCONS-SUTURES,Surgery,NHS LOGISTICS,1014043464,121.9,
Department of Health,Salisbury NHS Foundation Trust,12-Jul-13,MEDSURGCONS-SUTURES,Surgery,NHS LOGISTICS,1014043464,89.18,
Department of Health,Salisbury NHS Foundation Trust,12-Jul-13,MEDSURGCONS-SUTURES,Surgery,NHS LOGISTICS,1014043464,141.43,
Department of Health,Salisbury NHS Foundation Trust,12-Jul-13,MEDSURGCONS-SUTURES,Surgery,NHS LOGISTICS,1014043464,108.06,
Department of Health,Salisbury NHS Foundation Trust,12-Jul-13,MEDSURGCONS-SUTURES,Surgery,NHS LOGISTICS,1014043464,54.05,
Department of Health,Salisbury NHS Foundation Trust,12-Jul-13,MEDSURGCONS-SUTURES,Surgery,NHS LOGISTICS,1014043464,18.61,
Department of Health,Salisbury NHS Foundation Trust,12-Jul-13,MEDSURGCONS-SUTURES,Surgery,NHS LOGISTICS,1014043464,38.52,
Department of Health,Salisbury NHS Foundation Trust,12-Jul-13,OTHER MEDICAL SUPPLIES,Surgery,NHS LOGISTICS,1014043464,16.53,
Department of Health,Salisbury NHS Foundation Trust,12-Jul-13,PATIENT APPLIANCES,Surgery,NHS LOGISTICS,1014043464,7.92,
Department of Health,Salisbury NHS Foundation Trust,12-Jul-13,PATIENT APPLIANCES,Surgery,NHS LOGISTICS,1014043464,7.92,
Department of Health,Salisbury NHS Foundation Trust,12-Jul-13,MEDSURGCONS - OTHER,Surgery,NHS LOGISTICS,1014043464,49.24,
Department of Health,Salisbury NHS Foundation Trust,12-Jul-13,MEDSURGCONS - OTHER,Surgery,NHS LOGISTICS,1014043464,49.24,
Department of Health,Salisbury NHS Foundation Trust,12-Jul-13,MEDSURGCONS - OTHER,Surgery,NHS LOGISTICS,1014043464,48.75,
Department of Health,Salisbury NHS Foundation Trust,12-Jul-13,MEDSURGCONS - OTHER,Surgery,NHS LOGISTICS,1014043464,17.13,
Department of Health,Salisbury NHS Foundation Trust,12-Jul-13,MEDSURGCONS - OTHER,Surgery,NHS LOGISTICS,1014043464,11.95,
Department of Health,Salisbury NHS Foundation Trust,12-Jul-13,M & S EQUIPELECTEQUIPINST - OTHER,Medicine,NHS LOGISTICS,1014043464,2.33,
Department of Health,Salisbury NHS Foundation Trust,12-Jul-13,TISSUES HAND TOWELS & TOILET PAPER,Clinical Support and Family Services,NHS LOGISTICS,1014043464,1.82,
Department of Health,Salisbury NHS Foundation Trust,12-Jul-13,OTHER MEDICAL SUPPLIES,Clinical Support and Family Services,NHS LOGISTICS,1014043464,2.07,
Department of Health,Salisbury NHS Foundation Trust,12-Jul-13,OTHER MEDICAL SUPPLIES,Clinical Support and Family Services,NHS LOGISTICS,1014043464,4.2,
Department of Health,Salisbury NHS Foundation Trust,12-Jul-13,OTHER MEDICAL SUPPLIES,Clinical Support and Family Services,NHS LOGISTICS,1014043464,8.42,
Department of Health,Salisbury NHS Foundation Trust,12-Jul-13,TISSUES HAND TOWELS & TOILET PAPER,Clinical Support and Family Services,NHS LOGISTICS,1014043464,1.88,
Department of Health,Salisbury NHS Foundation Trust,12-Jul-13,TOILETRIES PERSONAL HYGIENE PRODUCTS,Clinical Support and Family Services,NHS LOGISTICS,1014043464,3.83,
Department of Health,Salisbury NHS Foundation Trust,12-Jul-13,MEDSURGCONS - OTHER,Clinical Support and Family Services,NHS LOGISTICS,1014043464,5.71,
Department of Health,Salisbury NHS Foundation Trust,12-Jul-13,HEALTHCARE - WEAR,Clinical Support and Family Services,NHS LOGISTICS,1014043464,6.77,
Department of Health,Salisbury NHS Foundation Trust,12-Jul-13,TISSUES HAND TOWELS & TOILET PAPER,Clinical Support and Family Services,NHS LOGISTICS,1014043464,46.5,
Department of Health,Salisbury NHS Foundation Trust,12-Jul-13,DRESSINGS  -  PROCEDURE PACKS,Clinical Support and Family Services,NHS LOGISTICS,1014043464,1.13,
Department of Health,Salisbury NHS Foundation Trust,12-Jul-13,DRESSINGS - PRE STERILE,Clinical Support and Family Services,NHS LOGISTICS,1014043464,5.89,
Department of Health,Salisbury NHS Foundation Trust,12-Jul-13,DRESSINGS - PRE STERILE,Clinical Support and Family Services,NHS LOGISTICS,1014043464,1.08,
Department of Health,Salisbury NHS Foundation Trust,12-Jul-13,OTHER MEDICAL SUPPLIES,Clinical Support and Family Services,NHS LOGISTICS,1014043464,81.68,
Department of Health,Salisbury NHS Foundation Trust,12-Jul-13,OTHER MEDICAL SUPPLIES,Clinical Support and Family Services,NHS LOGISTICS,1014043464,81.68,
Department of Health,Salisbury NHS Foundation Trust,12-Jul-13,MEDSURGCONS - OTHER,Clinical Support and Family Services,NHS LOGISTICS,1014043464,6.87,
Department of Health,Salisbury NHS Foundation Trust,12-Jul-13,MEDSURGCONS - OTHER,Clinical Support and Family Services,NHS LOGISTICS,1014043464,9.89,
Department of Health,Salisbury NHS Foundation Trust,12-Jul-13,MEDSURGCONS - OTHER,Clinical Support and Family Services,NHS LOGISTICS,1014043464,3.88,
Department of Health,Salisbury NHS Foundation Trust,12-Jul-13,DRESSINGS  -  PROCEDURE PACKS,Clinical Support and Family Services,NHS LOGISTICS,1014043464,1.92,
Department of Health,Salisbury NHS Foundation Trust,12-Jul-13,DRESSINGS - PRE STERILE,Clinical Support and Family Services,NHS LOGISTICS,1014043464,5.98,
Department of Health,Salisbury NHS Foundation Trust,12-Jul-13,OTHER MEDICAL SUPPLIES,Clinical Support and Family Services,NHS LOGISTICS,1014043464,1.42,
Department of Health,Salisbury NHS Foundation Trust,12-Jul-13,OTHER MEDICAL SUPPLIES,Clinical Support and Family Services,NHS LOGISTICS,1014043464,4.42,
Department of Health,Salisbury NHS Foundation Trust,12-Jul-13,DRESSINGS - PRE STERILE,Clinical Support and Family Services,NHS LOGISTICS,1014043464,1.71,
Department of Health,Salisbury NHS Foundation Trust,12-Jul-13,MEDSURGCONS - OTHER,Clinical Support and Family Services,NHS LOGISTICS,1014043464,14.97,
Department of Health,Salisbury NHS Foundation Trust,12-Jul-13,CLEANING MATERIALS PRODUCTS SUNDRIES,Clinical Support and Family Services,NHS LOGISTICS,1014043464,7.53,
Department of Health,Salisbury NHS Foundation Trust,12-Jul-13,ELECTRICAL EQUIPMENT x,Clinical Support and Family Services,NHS LOGISTICS,1014043464,5,
Department of Health,Salisbury NHS Foundation Trust,12-Jul-13,DRESSINGS  -  PROCEDURE PACKS,Clinical Support and Family Services,NHS LOGISTICS,1014043464,0.38,
Department of Health,Salisbury NHS Foundation Trust,12-Jul-13,DISPOSABLE THEATRE DRAPES WIPES,Clinical Support and Family Services,NHS LOGISTICS,1014043464,4.9,
Department of Health,Salisbury NHS Foundation Trust,12-Jul-13,MEDSURGCONS - OTHER,Clinical Support and Family Services,NHS LOGISTICS,1014043464,11.42,
Department of Health,Salisbury NHS Foundation Trust,12-Jul-13,MEDSURGCONS - OTHER,Clinical Support and Family Services,NHS LOGISTICS,1014043464,17.13,
Department of Health,Salisbury NHS Foundation Trust,12-Jul-13,MEDSURGCONS - OTHER,Clinical Support and Family Services,NHS LOGISTICS,1014043464,11.42,
Department of Health,Salisbury NHS Foundation Trust,12-Jul-13,MEDSURGCONS - OTHER,Clinical Support and Family Services,NHS LOGISTICS,1014043464,10.78,
Department of Health,Salisbury NHS Foundation Trust,12-Jul-13,OTHER MEDICAL SUPPLIES,Clinical Support and Family Services,NHS LOGISTICS,1014043464,2.07,
Department of Health,Salisbury NHS Foundation Trust,12-Jul-13,OTHER MEDICAL SUPPLIES,Clinical Support and Family Services,NHS LOGISTICS,1014043464,2.1,
Department of Health,Salisbury NHS Foundation Trust,12-Jul-13,LAB EQUIP-LABORATORY APPARATUS,Clinical Support and Family Services,NHS LOGISTICS,1014043464,7.55,
Department of Health,Salisbury NHS Foundation Trust,12-Jul-13,M & S EQUIPELECTEQUIPINST - OTHER,Clinical Support and Family Services,NHS LOGISTICS,1014043464,3.79,
Department of Health,Salisbury NHS Foundation Trust,12-Jul-13,TISSUES HAND TOWELS & TOILET PAPER,Clinical Support and Family Services,NHS LOGISTICS,1014043464,20.1,
Department of Health,Salisbury NHS Foundation Trust,12-Jul-13,PATIENTS INCONTINENCE,Clinical Support and Family Services,NHS LOGISTICS,1014043464,22.45,
Department of Health,Salisbury NHS Foundation Trust,12-Jul-13,DRESSINGS - PRE STERILE,Clinical Support and Family Services,NHS LOGISTICS,1014043464,8.47,
Department of Health,Salisbury NHS Foundation Trust,12-Jul-13,DRESSINGS - PRE STERILE,Clinical Support and Family Services,NHS LOGISTICS,1014043464,360.33,
Department of Health,Salisbury NHS Foundation Trust,12-Jul-13,DRESSINGS - PRE STERILE,Clinical Support and Family Services,NHS LOGISTICS,1014043464,101.63,
Department of Health,Salisbury NHS Foundation Trust,12-Jul-13,DRESSINGS - PRE STERILE,Clinical Support and Family Services,NHS LOGISTICS,1014043464,105.47,
Department of Health,Salisbury NHS Foundation Trust,12-Jul-13,DRUGS,Clinical Support and Family Services,NHS LOGISTICS,1014043464,15.3,
Department of Health,Salisbury NHS Foundation Trust,12-Jul-13,DRESSINGS - PRE STERILE,Clinical Support and Family Services,NHS LOGISTICS,1014043464,59.17,
Department of Health,Salisbury NHS Foundation Trust,12-Jul-13,DRESSINGS - PRE STERILE,Clinical Support and Family Services,NHS LOGISTICS,1014043464,70,
Department of Health,Salisbury NHS Foundation Trust,12-Jul-13,DRESSINGS - PRE STERILE,Clinical Support and Family Services,NHS LOGISTICS,1014043464,67.04,
Department of Health,Salisbury NHS Foundation Trust,12-Jul-13,SERVICES FROM NHS BODIES,Clinical Support and Family Services,NHS LOGISTICS,1014043464,15,
Department of Health,Salisbury NHS Foundation Trust,12-Jul-13,SERVICES FROM NHS BODIES,Clinical Support and Family Services,NHS LOGISTICS,1014043464,327.2,
Department of Health,Salisbury NHS Foundation Trust,12-Jul-13,DRESSINGS - PRE STERILE,Clinical Support and Family Services,NHS LOGISTICS,1014043464,84.58,
Department of Health,Salisbury NHS Foundation Trust,12-Jul-13,DRESSINGS - PRE STERILE,Clinical Support and Family Services,NHS LOGISTICS,1014043464,120.9,
Department of Health,Salisbury NHS Foundation Trust,12-Jul-13,MED SURG EQUIP REP MAINT CLEANING,Clinical Support and Family Services,NHS LOGISTICS,1014043464,100.33,
Department of Health,Salisbury NHS Foundation Trust,12-Jul-13,OTHER MEDICAL SUPPLIES,Clinical Support and Family Services,NHS LOGISTICS,1014043464,14,
Department of Health,Salisbury NHS Foundation Trust,12-Jul-13,DRUGS,Clinical Support and Family Services,NHS LOGISTICS,1014043464,155.5,
Department of Health,Salisbury NHS Foundation Trust,12-Jul-13,EGGS MILK OTHER DAIRY PRODUCTS,Facilities Directorate,NHS LOGISTICS,1014043464,74.06,
Department of Health,Salisbury NHS Foundation Trust,12-Jul-13,BEVERAGES & AMBIENT FOOD,Facilities Directorate,NHS LOGISTICS,1014043464,57.18,
Department of Health,Salisbury NHS Foundation Trust,12-Jul-13,BEVERAGES & AMBIENT FOOD,Facilities Directorate,NHS LOGISTICS,1014043464,16.38,
Department of Health,Salisbury NHS Foundation Trust,12-Jul-13,BEVERAGES & AMBIENT FOOD,Facilities Directorate,NHS LOGISTICS,1014043464,18,
Department of Health,Salisbury NHS Foundation Trust,12-Jul-13,BEVERAGES & AMBIENT FOOD,Facilities Directorate,NHS LOGISTICS,1014043464,9.6,
Department of Health,Salisbury NHS Foundation Trust,12-Jul-13,BEVERAGES & AMBIENT FOOD,Facilities Directorate,NHS LOGISTICS,1014043464,7.38,
Department of Health,Salisbury NHS Foundation Trust,12-Jul-13,BEVERAGES & AMBIENT FOOD,Facilities Directorate,NHS LOGISTICS,1014043464,8.86,
Department of Health,Salisbury NHS Foundation Trust,12-Jul-13,BEVERAGES & AMBIENT FOOD,Facilities Directorate,NHS LOGISTICS,1014043464,33.16,
Department of Health,Salisbury NHS Foundation Trust,12-Jul-13,BEVERAGES & AMBIENT FOOD,Facilities Directorate,NHS LOGISTICS,1014043464,31,
Department of Health,Salisbury NHS Foundation Trust,12-Jul-13,BEVERAGES & AMBIENT FOOD,Facilities Directorate,NHS LOGISTICS,1014043464,22.54,
Department of Health,Salisbury NHS Foundation Trust,12-Jul-13,BEVERAGES & AMBIENT FOOD,Facilities Directorate,NHS LOGISTICS,1014043464,15.64,
Department of Health,Salisbury NHS Foundation Trust,12-Jul-13,BEVERAGES & AMBIENT FOOD,Facilities Directorate,NHS LOGISTICS,1014043464,14.01,
Department of Health,Salisbury NHS Foundation Trust,12-Jul-13,BEVERAGES & AMBIENT FOOD,Facilities Directorate,NHS LOGISTICS,1014043464,9.84,
Department of Health,Salisbury NHS Foundation Trust,12-Jul-13,EGGS MILK OTHER DAIRY PRODUCTS,Facilities Directorate,NHS LOGISTICS,1014043464,58.88,
Department of Health,Salisbury NHS Foundation Trust,12-Jul-13,BEVERAGES & AMBIENT FOOD,Facilities Directorate,NHS LOGISTICS,1014043464,16.92,
Department of Health,Salisbury NHS Foundation Trust,12-Jul-13,FRUIT & VEGETABLES,Facilities Directorate,NHS LOGISTICS,1014043464,24.6,
Department of Health,Salisbury NHS Foundation Trust,12-Jul-13,EGGS MILK OTHER DAIRY PRODUCTS,Facilities Directorate,NHS LOGISTICS,1014043464,74.4,
Department of Health,Salisbury NHS Foundation Trust,12-Jul-13,LIQUID REFRESHMENTS,Facilities Directorate,NHS LOGISTICS,1014043464,131.2,
Department of Health,Salisbury NHS Foundation Trust,12-Jul-13,BEVERAGES & AMBIENT FOOD,Facilities Directorate,NHS LOGISTICS,1014043464,29.1,
Department of Health,Salisbury NHS Foundation Trust,12-Jul-13,BEVERAGES & AMBIENT FOOD,Facilities Directorate,NHS LOGISTICS,1014043464,62.04,
Department of Health,Salisbury NHS Foundation Trust,12-Jul-13,BEVERAGES & AMBIENT FOOD,Facilities Directorate,NHS LOGISTICS,1014043464,20.52,
Department of Health,Salisbury NHS Foundation Trust,12-Jul-13,FRUIT & VEGETABLES,Facilities Directorate,NHS LOGISTICS,1014043464,42.72,
Department of Health,Salisbury NHS Foundation Trust,12-Jul-13,FRUIT & VEGETABLES,Facilities Directorate,NHS LOGISTICS,1014043464,10.92,
Department of Health,Salisbury NHS Foundation Trust,12-Jul-13,FRUIT & VEGETABLES,Facilities Directorate,NHS LOGISTICS,1014043464,50.4,
Department of Health,Salisbury NHS Foundation Trust,12-Jul-13,FRUIT & VEGETABLES,Facilities Directorate,NHS LOGISTICS,1014043464,21.54,
Department of Health,Salisbury NHS Foundation Trust,12-Jul-13,FRUIT & VEGETABLES,Facilities Directorate,NHS LOGISTICS,1014043464,4.92,
Department of Health,Salisbury NHS Foundation Trust,12-Jul-13,FRUIT & VEGETABLES,Facilities Directorate,NHS LOGISTICS,1014043464,18.12,
Department of Health,Salisbury NHS Foundation Trust,12-Jul-13,LIQUID REFRESHMENTS,Facilities Directorate,NHS LOGISTICS,1014043464,10.23,
Department of Health,Salisbury NHS Foundation Trust,12-Jul-13,LIQUID REFRESHMENTS,Facilities Directorate,NHS LOGISTICS,1014043464,11.32,
Department of Health,Salisbury NHS Foundation Trust,12-Jul-13,FRUIT & VEGETABLES,Facilities Directorate,NHS LOGISTICS,1014043464,0.69,
Department of Health,Salisbury NHS Foundation Trust,12-Jul-13,FRUIT & VEGETABLES,Facilities Directorate,NHS LOGISTICS,1014043464,2.44,
Department of Health,Salisbury NHS Foundation Trust,12-Jul-13,BEVERAGES & AMBIENT FOOD,Facilities Directorate,NHS LOGISTICS,1014043464,7,
Department of Health,Salisbury NHS Foundation Trust,12-Jul-13,BEVERAGES & AMBIENT FOOD,Facilities Directorate,NHS LOGISTICS,1014043464,6.72,
Department of Health,Salisbury NHS Foundation Trust,12-Jul-13,BEVERAGES & AMBIENT FOOD,Facilities Directorate,NHS LOGISTICS,1014043464,18.66,
Department of Health,Salisbury NHS Foundation Trust,12-Jul-13,BEVERAGES & AMBIENT FOOD,Facilities Directorate,NHS LOGISTICS,1014043464,14.6,
Department of Health,Salisbury NHS Foundation Trust,12-Jul-13,FLAVOURINGS HERBS SPICES,Facilities Directorate,NHS LOGISTICS,1014043464,1.97,
Department of Health,Salisbury NHS Foundation Trust,12-Jul-13,FLAVOURINGS HERBS SPICES,Facilities Directorate,NHS LOGISTICS,1014043464,3.52,
Department of Health,Salisbury NHS Foundation Trust,12-Jul-13,LIQUID REFRESHMENTS,Facilities Directorate,NHS LOGISTICS,1014043464,13.8,
Department of Health,Salisbury NHS Foundation Trust,12-Jul-13,LIQUID REFRESHMENTS,Facilities Directorate,NHS LOGISTICS,1014043464,9.2,
Department of Health,Salisbury NHS Foundation Trust,12-Jul-13,LIQUID REFRESHMENTS,Facilities Directorate,NHS LOGISTICS,1014043464,4.43,
Department of Health,Salisbury NHS Foundation Trust,12-Jul-13,BEVERAGES & AMBIENT FOOD,Facilities Directorate,NHS LOGISTICS,1014043464,34.92,
Department of Health,Salisbury NHS Foundation Trust,12-Jul-13,FRUIT & VEGETABLES,Facilities Directorate,NHS LOGISTICS,1014043464,4.96,
Department of Health,Salisbury NHS Foundation Trust,12-Jul-13,FRUIT & VEGETABLES,Facilities Directorate,NHS LOGISTICS,1014043464,13.2,
Department of Health,Salisbury NHS Foundation Trust,12-Jul-13,FRUIT & VEGETABLES,Facilities Directorate,NHS LOGISTICS,1014043464,5.85,
Department of Health,Salisbury NHS Foundation Trust,12-Jul-13,FRUIT & VEGETABLES,Facilities Directorate,NHS LOGISTICS,1014043464,11.1,
Department of Health,Salisbury NHS Foundation Trust,12-Jul-13,BEVERAGES & AMBIENT FOOD,Facilities Directorate,NHS LOGISTICS,1014043464,18.06,
Department of Health,Salisbury NHS Foundation Trust,12-Jul-13,BEVERAGES & AMBIENT FOOD,Facilities Directorate,NHS LOGISTICS,1014043464,8.78,
Department of Health,Salisbury NHS Foundation Trust,12-Jul-13,FRUIT & VEGETABLES,Facilities Directorate,NHS LOGISTICS,1014043464,2,
Department of Health,Salisbury NHS Foundation Trust,12-Jul-13,FRUIT & VEGETABLES,Facilities Directorate,NHS LOGISTICS,1014043464,0.93,
Department of Health,Salisbury NHS Foundation Trust,12-Jul-13,BEVERAGES & AMBIENT FOOD,Facilities Directorate,NHS LOGISTICS,1014043464,5.1,
Department of Health,Salisbury NHS Foundation Trust,12-Jul-13,FRUIT & VEGETABLES,Facilities Directorate,NHS LOGISTICS,1014043464,1.32,
Department of Health,Salisbury NHS Foundation Trust,12-Jul-13,LIQUID REFRESHMENTS,Facilities Directorate,NHS LOGISTICS,1014043464,1.03,
Department of Health,Salisbury NHS Foundation Trust,12-Jul-13,HEALTHCARE - WEAR,Facilities Directorate,NHS LOGISTICS,1014043464,3.87,
Department of Health,Salisbury NHS Foundation Trust,12-Jul-13,HEALTHCARE - WEAR,Facilities Directorate,NHS LOGISTICS,1014043464,2.73,
Department of Health,Salisbury NHS Foundation Trust,12-Jul-13,HEALTHCARE - WEAR,Facilities Directorate,NHS LOGISTICS,1014043464,9.27,
Department of Health,Salisbury NHS Foundation Trust,12-Jul-13,HEALTHCARE - WEAR,Facilities Directorate,NHS LOGISTICS,1014043464,27.1,
Department of Health,Salisbury NHS Foundation Trust,12-Jul-13,MEDSURGCONS - OTHER,Facilities Directorate,NHS LOGISTICS,1014043464,29.92,
Department of Health,Salisbury NHS Foundation Trust,12-Jul-13,MEDSURGCONS - OTHER,Facilities Directorate,NHS LOGISTICS,1014043464,20.13,
Department of Health,Salisbury NHS Foundation Trust,12-Jul-13,DRESSINGS - PRE STERILE,Facilities Directorate,NHS LOGISTICS,1014043464,8.95,
Department of Health,Salisbury NHS Foundation Trust,12-Jul-13,DRESSINGS - PRE STERILE,Facilities Directorate,NHS LOGISTICS,1014043464,2.53,
Department of Health,Salisbury NHS Foundation Trust,12-Jul-13,DRESSINGS - PRE STERILE,Facilities Directorate,NHS LOGISTICS,1014043464,12.4,
Department of Health,Salisbury NHS Foundation Trust,12-Jul-13,DRUGS,Facilities Directorate,NHS LOGISTICS,1014043464,7.8,
Department of Health,Salisbury NHS Foundation Trust,12-Jul-13,TOILETRIES PERSONAL HYGIENE PRODUCTS,Facilities Directorate,NHS LOGISTICS,1014043464,23.8,
Department of Health,Salisbury NHS Foundation Trust,12-Jul-13,STATIONERY SUNDRIES,Facilities Directorate,NHS LOGISTICS,1014043464,6.65,
Department of Health,Salisbury NHS Foundation Trust,12-Jul-13,PAPER ITEMS GENERAL STATIONERY SUNDRIES,Facilities Directorate,NHS LOGISTICS,1014043464,14.58,
Department of Health,Salisbury NHS Foundation Trust,12-Jul-13,PAPER ITEMS GENERAL STATIONERY SUNDRIES,Facilities Directorate,NHS LOGISTICS,1014043464,18.67,
Department of Health,Salisbury NHS Foundation Trust,12-Jul-13,STATIONERY SUNDRIES,Facilities Directorate,NHS LOGISTICS,1014043464,1.63,
Department of Health,Salisbury NHS Foundation Trust,12-Jul-13,STATIONERY SUNDRIES,Facilities Directorate,NHS LOGISTICS,1014043464,7,
Department of Health,Salisbury NHS Foundation Trust,12-Jul-13,OPTICAL  -  OTHER,Surgery,NHS LOGISTICS,1014043464,19.44,
Department of Health,Salisbury NHS Foundation Trust,12-Jul-13,PATIENT APPLIANCES,Surgery,NHS LOGISTICS,1014043464,7.92,
Department of Health,Salisbury NHS Foundation Trust,12-Jul-13,PATIENT APPLIANCES,Surgery,NHS LOGISTICS,1014043464,7.92,
Department of Health,Salisbury NHS Foundation Trust,12-Jul-13,DRUGS,Surgery,NHS LOGISTICS,1014043464,12.5,
Department of Health,Salisbury NHS Foundation Trust,12-Jul-13,MEDSURGCONS - OTHER,Surgery,NHS LOGISTICS,1014043464,17.13,
Department of Health,Salisbury NHS Foundation Trust,12-Jul-13,MEDSURGCONS - OTHER,Surgery,NHS LOGISTICS,1014043464,45.67,
Department of Health,Salisbury NHS Foundation Trust,12-Jul-13,MEDSURGCONS - OTHER,Surgery,NHS LOGISTICS,1014043464,17.13,
Department of Health,Salisbury NHS Foundation Trust,12-Jul-13,MEDSURGCONS-LAPAROSCOPIC EQUIPMENT,Surgery,NHS LOGISTICS,1014043464,248.71,
Department of Health,Salisbury NHS Foundation Trust,12-Jul-13,M & S EQUIPELECTEQUIPINST - OTHER,Surgery,NHS LOGISTICS,1014043464,77,
Department of Health,Salisbury NHS Foundation Trust,12-Jul-13,DRESSINGS - PRE STERILE,Surgery,NHS LOGISTICS,1014043464,28.87,
Department of Health,Salisbury NHS Foundation Trust,12-Jul-13,DRESSINGS - PRE STERILE,Surgery,NHS LOGISTICS,1014043464,10.08,
Department of Health,Salisbury NHS Foundation Trust,12-Jul-13,DRESSINGS - PRE STERILE,Surgery,NHS LOGISTICS,1014043464,9.28,
Department of Health,Salisbury NHS Foundation Trust,12-Jul-13,MEDSURGCONS - OTHER,Surgery,NHS LOGISTICS,1014043464,15.2,
Department of Health,Salisbury NHS Foundation Trust,12-Jul-13,SURGICAL INSTRUMENTS: GENERAL,Surgery,NHS LOGISTICS,1014043464,6.06,
Department of Health,Salisbury NHS Foundation Trust,12-Jul-13,SURGICAL INSTRUMENTS: GENERAL,Surgery,NHS LOGISTICS,1014043464,6.06,
Department of Health,Salisbury NHS Foundation Trust,12-Jul-13,MEDSURGCONS-SUTURES,Surgery,NHS LOGISTICS,1014043464,36.16,
Department of Health,Salisbury NHS Foundation Trust,12-Jul-13,MEDSURGCONS-SUTURES,Surgery,NHS LOGISTICS,1014043464,27.83,
Department of Health,Salisbury NHS Foundation Trust,12-Jul-13,MEDSURGCONS-SUTURES,Surgery,NHS LOGISTICS,1014043464,22.27,
Department of Health,Salisbury NHS Foundation Trust,12-Jul-13,MEDSURGCONS-SUTURES,Surgery,NHS LOGISTICS,1014043464,47.14,
Department of Health,Salisbury NHS Foundation Trust,12-Jul-13,MEDSURGCONS-SUTURES,Surgery,NHS LOGISTICS,1014043464,52.65,
Department of Health,Salisbury NHS Foundation Trust,12-Jul-13,MEDSURGCONS-SUTURES,Surgery,NHS LOGISTICS,1014043464,43.81,
Department of Health,Salisbury NHS Foundation Trust,12-Jul-13,MEDSURGCONS-SUTURES,Surgery,NHS LOGISTICS,1014043464,44.59,
Department of Health,Salisbury NHS Foundation Trust,12-Jul-13,BAGS SACKS - OTHER,Medicine,NHS LOGISTICS,1014043464,2.36,
Department of Health,Salisbury NHS Foundation Trust,12-Jul-13,TISSUES HAND TOWELS & TOILET PAPER,Medicine,NHS LOGISTICS,1014043464,16.35,
Department of Health,Salisbury NHS Foundation Trust,12-Jul-13,MEDSURGCONS - OTHER,Medicine,NHS LOGISTICS,1014043464,76.42,
Department of Health,Salisbury NHS Foundation Trust,12-Jul-13,MEDSURGCONS - OTHER,Medicine,NHS LOGISTICS,1014043464,51.12,
Department of Health,Salisbury NHS Foundation Trust,12-Jul-13,MEDSURGCONS - OTHER,Medicine,NHS LOGISTICS,1014043464,5.71,
Department of Health,Salisbury NHS Foundation Trust,12-Jul-13,MEDSURGCONS - OTHER,Medicine,NHS LOGISTICS,1014043464,5.71,
Department of Health,Salisbury NHS Foundation Trust,12-Jul-13,ELECTRICAL EQUIPMENT x,Medicine,NHS LOGISTICS,1014043464,3.33,
Department of Health,Salisbury NHS Foundation Trust,12-Jul-13,ELECTRICAL EQUIPMENT x,Medicine,NHS LOGISTICS,1014043464,10.67,
Department of Health,Salisbury NHS Foundation Trust,12-Jul-13,BABY TEXTURE MODIFIED FOODS,Clinical Support and Family Services,NHS LOGISTICS,1014043464,17.7,
Department of Health,Salisbury NHS Foundation Trust,12-Jul-13,MEDSURGCONS - OTHER,Clinical Support and Family Services,NHS LOGISTICS,1014043464,4.17,
Department of Health,Salisbury NHS Foundation Trust,12-Jul-13,MEDSURGCONS-SUTURES,Surgery,NHS LOGISTICS,1014043464,27.38,
Department of Health,Salisbury NHS Foundation Trust,12-Jul-13,MEDSURGCONS-SUTURES,Surgery,NHS LOGISTICS,1014043464,113.83,
Department of Health,Salisbury NHS Foundation Trust,12-Jul-13,MEDSURGCONS-SUTURES,Surgery,NHS LOGISTICS,1014043464,68.13,
Department of Health,Salisbury NHS Foundation Trust,12-Jul-13,MEDSURGCONS-SUTURES,Surgery,NHS LOGISTICS,1014043464,29.53,
Department of Health,Salisbury NHS Foundation Trust,12-Jul-13,MEDSURGCONS-SUTURES,Surgery,NHS LOGISTICS,1014043464,92.28,
Department of Health,Salisbury NHS Foundation Trust,12-Jul-13,MEDSURGCONS-SUTURES,Surgery,NHS LOGISTICS,1014043464,80.15,
Department of Health,Salisbury NHS Foundation Trust,12-Jul-13,MEDSURGCONS-SUTURES,Surgery,NHS LOGISTICS,1014043464,133.6,
Department of Health,Salisbury NHS Foundation Trust,12-Jul-13,MEDSURGCONS-SUTURES,Surgery,NHS LOGISTICS,1014043464,22.27,
Department of Health,Salisbury NHS Foundation Trust,12-Jul-13,MEDSURGCONS-SUTURES,Surgery,NHS LOGISTICS,1014043464,45.65,
Department of Health,Salisbury NHS Foundation Trust,12-Jul-13,MEDSURGCONS-SUTURES,Surgery,NHS LOGISTICS,1014043464,67.9,
Department of Health,Salisbury NHS Foundation Trust,12-Jul-13,MEDSURGCONS-SUTURES,Surgery,NHS LOGISTICS,1014043464,133.78,
Department of Health,Salisbury NHS Foundation Trust,12-Jul-13,MEDSURGCONS-SUTURES,Surgery,NHS LOGISTICS,1014043464,324.18,
Department of Health,Salisbury NHS Foundation Trust,12-Jul-13,MEDSURGCONS-SUTURES,Surgery,NHS LOGISTICS,1014043464,35.83,
Department of Health,Salisbury NHS Foundation Trust,12-Jul-13,MEDSURGCONS-SUTURES,Surgery,NHS LOGISTICS,1014043464,144.23,
Department of Health,Salisbury NHS Foundation Trust,12-Jul-13,MEDSURGCONS-SUTURES,Surgery,NHS LOGISTICS,1014043464,38.38,
Department of Health,Salisbury NHS Foundation Trust,12-Jul-13,MEDSURGCONS-SUTURES,Surgery,NHS LOGISTICS,1014043464,18.18,
Department of Health,Salisbury NHS Foundation Trust,12-Jul-13,MEDSURGCONS-SUTURES,Surgery,NHS LOGISTICS,1014043464,63.13,
Department of Health,Salisbury NHS Foundation Trust,12-Jul-13,MEDSURGCONS-SUTURES,Surgery,NHS LOGISTICS,1014043464,105.1,
Department of Health,Salisbury NHS Foundation Trust,12-Jul-13,MEDSURGCONS-SUTURES,Surgery,NHS LOGISTICS,1014043464,98.9,
Department of Health,Salisbury NHS Foundation Trust,12-Jul-13,MEDSURGCONS-SUTURES,Surgery,NHS LOGISTICS,1014043464,70.68,
Department of Health,Salisbury NHS Foundation Trust,12-Jul-13,MEDSURGCONS-SUTURES,Surgery,NHS LOGISTICS,1014043464,77.62,
Department of Health,Salisbury NHS Foundation Trust,12-Jul-13,MEDSURGCONS-SUTURES,Surgery,NHS LOGISTICS,1014043464,54.75,
Department of Health,Salisbury NHS Foundation Trust,12-Jul-13,M & S EQUIPELECTEQUIPINST - OTHER,Critical care,NHS LOGISTICS,1014043464,27.13,
Department of Health,Salisbury NHS Foundation Trust,12-Jul-13,MEDSURGCONS - OTHER,Surgery,NHS LOGISTICS,1014043464,14.29,
Department of Health,Salisbury NHS Foundation Trust,12-Jul-13,MEDSURGCONS-SUTURES,Surgery,NHS LOGISTICS,1014043464,43.81,
Department of Health,Salisbury NHS Foundation Trust,12-Jul-13,OTHER MEDICAL SUPPLIES,Surgery,NHS LOGISTICS,1014043464,76,
Department of Health,Salisbury NHS Foundation Trust,12-Jul-13,BAGS SACKS - OTHER,Surgery,NHS LOGISTICS,1014043464,82.2,
Department of Health,Salisbury NHS Foundation Trust,12-Jul-13,BAGS SACKS - OTHER,Surgery,NHS LOGISTICS,1014043464,28.33,
Department of Health,Salisbury NHS Foundation Trust,12-Jul-13,BAGS SACKS - OTHER,Surgery,NHS LOGISTICS,1014043464,92.4,
Department of Health,Salisbury NHS Foundation Trust,12-Jul-13,BAGS SACKS - OTHER,Surgery,NHS LOGISTICS,1014043464,13.2,
Department of Health,Salisbury NHS Foundation Trust,12-Jul-13,MEDSURGCONS - OTHER,Medicine,NHS LOGISTICS,1014043464,16.32,
Department of Health,Salisbury NHS Foundation Trust,12-Jul-13,M & S EQUIPELECTEQUIPINST - OTHER,Medicine,NHS LOGISTICS,1014043464,7.4,
Department of Health,Salisbury NHS Foundation Trust,12-Jul-13,M & S EQUIPELECTEQUIPINST - OTHER,Surgery,NHS LOGISTICS,1014043464,115.5,
Department of Health,Salisbury NHS Foundation Trust,12-Jul-13,M & S EQUIPELECTEQUIPINST - OTHER,Surgery,NHS LOGISTICS,1014043464,31.5,
Department of Health,Salisbury NHS Foundation Trust,12-Jul-13,BEVERAGES & AMBIENT FOOD,Surgery,NHS LOGISTICS,1014043464,29.46,
Department of Health,Salisbury NHS Foundation Trust,12-Jul-13,BEVERAGES & AMBIENT FOOD,Surgery,NHS LOGISTICS,1014043464,1.52,
Department of Health,Salisbury NHS Foundation Trust,12-Jul-13,BEVERAGES & AMBIENT FOOD,Surgery,NHS LOGISTICS,1014043464,1.01,
Department of Health,Salisbury NHS Foundation Trust,12-Jul-13,M & S EQUIPELECTEQUIPINST - OTHER,Medicine,NHS LOGISTICS,1014043464,27.13,
Department of Health,Salisbury NHS Foundation Trust,12-Jul-13,PAPER ITEMS GENERAL STATIONERY SUNDRIES,Clinical Support and Family Services,NHS LOGISTICS,1014043464,4,
Department of Health,Salisbury NHS Foundation Trust,12-Jul-13,STATIONERY SUNDRIES,Surgery,NHS LOGISTICS,1014043464,14.2,
Department of Health,Salisbury NHS Foundation Trust,12-Jul-13,BAGS SACKS - OTHER,Surgery,NHS LOGISTICS,1014043464,17.5,
Department of Health,Salisbury NHS Foundation Trust,12-Jul-13,MEDSURGCONS-SUTURES,Surgery,NHS LOGISTICS,1014043464,87.62,
Department of Health,Salisbury NHS Foundation Trust,12-Jul-13,MEDSURGCONS-SUTURES,Surgery,NHS LOGISTICS,1014043464,22.27,
Department of Health,Salisbury NHS Foundation Trust,12-Jul-13,MEDSURGCONS-SUTURES,Surgery,NHS LOGISTICS,1014043464,52.55,
Department of Health,Salisbury NHS Foundation Trust,12-Jul-13,MEDSURGCONS-SUTURES,Surgery,NHS LOGISTICS,1014043464,40.13,
Department of Health,Salisbury NHS Foundation Trust,12-Jul-13,MEDSURGCONS-SUTURES,Surgery,NHS LOGISTICS,1014043464,71.05,
Department of Health,Salisbury NHS Foundation Trust,12-Jul-13,MEDSURGCONS-SUTURES,Surgery,NHS LOGISTICS,1014043464,45.65,
Department of Health,Salisbury NHS Foundation Trust,12-Jul-13,MEDSURGCONS-SUTURES,Surgery,NHS LOGISTICS,1014043464,56.92,
Department of Health,Salisbury NHS Foundation Trust,12-Jul-13,MEDSURGCONS-SUTURES,Surgery,NHS LOGISTICS,1014043464,34.07,
Department of Health,Salisbury NHS Foundation Trust,12-Jul-13,MEDSURGCONS-SUTURES,Surgery,NHS LOGISTICS,1014043464,61.52,
Department of Health,Salisbury NHS Foundation Trust,12-Jul-13,MEDSURGCONS-SUTURES,Surgery,NHS LOGISTICS,1014043464,62.35,
Department of Health,Salisbury NHS Foundation Trust,12-Jul-13,MEDSURGCONS-SUTURES,Surgery,NHS LOGISTICS,1014043464,44.53,
Department of Health,Salisbury NHS Foundation Trust,12-Jul-13,MEDSURGCONS-SUTURES,Surgery,NHS LOGISTICS,1014043464,56.11,
Department of Health,Salisbury NHS Foundation Trust,12-Jul-13,MEDSURGCONS-SUTURES,Surgery,NHS LOGISTICS,1014043464,61.63,
Department of Health,Salisbury NHS Foundation Trust,12-Jul-13,MEDSURGCONS-SUTURES,Surgery,NHS LOGISTICS,1014043464,22.83,
Department of Health,Salisbury NHS Foundation Trust,12-Jul-13,MEDSURGCONS-SUTURES,Surgery,NHS LOGISTICS,1014043464,23.51,
Department of Health,Salisbury NHS Foundation Trust,12-Jul-13,MEDSURGCONS-SUTURES,Surgery,NHS LOGISTICS,1014043464,124.02,
Department of Health,Salisbury NHS Foundation Trust,12-Jul-13,MEDSURGCONS-SUTURES,Surgery,NHS LOGISTICS,1014043464,33.13,
Department of Health,Salisbury NHS Foundation Trust,12-Jul-13,MEDSURGCONS-SUTURES,Surgery,NHS LOGISTICS,1014043464,37.55,
Department of Health,Salisbury NHS Foundation Trust,12-Jul-13,MEDSURGCONS-SUTURES,Surgery,NHS LOGISTICS,1014043464,43.81,
Department of Health,Salisbury NHS Foundation Trust,12-Jul-13,MEDSURGCONS-SUTURES,Surgery,NHS LOGISTICS,1014043464,89.18,
Department of Health,Salisbury NHS Foundation Trust,12-Jul-13,MEDSURGCONS-SUTURES,Surgery,NHS LOGISTICS,1014043464,125.99,
Department of Health,Salisbury NHS Foundation Trust,12-Jul-13,MEDSURGCONS-SUTURES,Surgery,NHS LOGISTICS,1014043464,108.06,
Department of Health,Salisbury NHS Foundation Trust,12-Jul-13,MEDSURGCONS-SUTURES,Surgery,NHS LOGISTICS,1014043464,29.78,
Department of Health,Salisbury NHS Foundation Trust,12-Jul-13,MEDSURGCONS-SUTURES,Surgery,NHS LOGISTICS,1014043464,48.09,
Department of Health,Salisbury NHS Foundation Trust,12-Jul-13,MEDSURGCONS-SUTURES,Surgery,NHS LOGISTICS,1014043464,18.61,
Department of Health,Salisbury NHS Foundation Trust,12-Jul-13,MEDSURGCONS-SUTURES,Surgery,NHS LOGISTICS,1014043464,26.83,
Department of Health,Salisbury NHS Foundation Trust,12-Jul-13,MEDSURGCONS-SUTURES,Surgery,NHS LOGISTICS,1014043464,322.25,
Department of Health,Salisbury NHS Foundation Trust,12-Jul-13,MEDSURGCONS-SUTURES,Surgery,NHS LOGISTICS,1014043464,283.47,
Department of Health,Salisbury NHS Foundation Trust,12-Jul-13,MEDSURGCONS-SUTURES,Surgery,NHS LOGISTICS,1014043464,62.01,
Department of Health,Salisbury NHS Foundation Trust,12-Jul-13,EGGS MILK OTHER DAIRY PRODUCTS,Facilities Directorate,NHS LOGISTICS,1014043464,148.12,
Department of Health,Salisbury NHS Foundation Trust,12-Jul-13,FRUIT & VEGETABLES,Facilities Directorate,NHS LOGISTICS,1014043464,40.16,
Department of Health,Salisbury NHS Foundation Trust,12-Jul-13,BEVERAGES & AMBIENT FOOD,Facilities Directorate,NHS LOGISTICS,1014043464,28.59,
Department of Health,Salisbury NHS Foundation Trust,12-Jul-13,BEVERAGES & AMBIENT FOOD,Facilities Directorate,NHS LOGISTICS,1014043464,8.19,
Department of Health,Salisbury NHS Foundation Trust,12-Jul-13,BEVERAGES & AMBIENT FOOD,Facilities Directorate,NHS LOGISTICS,1014043464,18,
Department of Health,Salisbury NHS Foundation Trust,12-Jul-13,BEVERAGES & AMBIENT FOOD,Facilities Directorate,NHS LOGISTICS,1014043464,9.6,
Department of Health,Salisbury NHS Foundation Trust,12-Jul-13,BEVERAGES & AMBIENT FOOD,Facilities Directorate,NHS LOGISTICS,1014043464,12.75,
Department of Health,Salisbury NHS Foundation Trust,12-Jul-13,BEVERAGES & AMBIENT FOOD,Facilities Directorate,NHS LOGISTICS,1014043464,12.75,
Department of Health,Salisbury NHS Foundation Trust,12-Jul-13,BEVERAGES & AMBIENT FOOD,Facilities Directorate,NHS LOGISTICS,1014043464,16.72,
Department of Health,Salisbury NHS Foundation Trust,12-Jul-13,BEVERAGES & AMBIENT FOOD,Facilities Directorate,NHS LOGISTICS,1014043464,31,
Department of Health,Salisbury NHS Foundation Trust,12-Jul-13,BEVERAGES & AMBIENT FOOD,Facilities Directorate,NHS LOGISTICS,1014043464,2.5,
Department of Health,Salisbury NHS Foundation Trust,12-Jul-13,BEVERAGES & AMBIENT FOOD,Facilities Directorate,NHS LOGISTICS,1014043464,3.28,
Department of Health,Salisbury NHS Foundation Trust,12-Jul-13,BEVERAGES & AMBIENT FOOD,Facilities Directorate,NHS LOGISTICS,1014043464,6.34,
Department of Health,Salisbury NHS Foundation Trust,12-Jul-13,BEVERAGES & AMBIENT FOOD,Facilities Directorate,NHS LOGISTICS,1014043464,3.32,
Department of Health,Salisbury NHS Foundation Trust,12-Jul-13,BEVERAGES & AMBIENT FOOD,Facilities Directorate,NHS LOGISTICS,1014043464,9.76,
Department of Health,Salisbury NHS Foundation Trust,12-Jul-13,FLAVOURINGS HERBS SPICES,Facilities Directorate,NHS LOGISTICS,1014043464,14.22,
Department of Health,Salisbury NHS Foundation Trust,12-Jul-13,FLAVOURINGS HERBS SPICES,Facilities Directorate,NHS LOGISTICS,1014043464,8.07,
Department of Health,Salisbury NHS Foundation Trust,12-Jul-13,BEVERAGES & AMBIENT FOOD,Facilities Directorate,NHS LOGISTICS,1014043464,11.27,
Department of Health,Salisbury NHS Foundation Trust,12-Jul-13,BEVERAGES & AMBIENT FOOD,Facilities Directorate,NHS LOGISTICS,1014043464,15.64,
Department of Health,Salisbury NHS Foundation Trust,12-Jul-13,BEVERAGES & AMBIENT FOOD,Facilities Directorate,NHS LOGISTICS,1014043464,18.24,
Department of Health,Salisbury NHS Foundation Trust,12-Jul-13,BEVERAGES & AMBIENT FOOD,Facilities Directorate,NHS LOGISTICS,1014043464,4.59,
Department of Health,Salisbury NHS Foundation Trust,12-Jul-13,FRUIT & VEGETABLES,Facilities Directorate,NHS LOGISTICS,1014043464,4.81,
Department of Health,Salisbury NHS Foundation Trust,12-Jul-13,FRUIT & VEGETABLES,Facilities Directorate,NHS LOGISTICS,1014043464,7.6,
Department of Health,Salisbury NHS Foundation Trust,12-Jul-13,LIQUID REFRESHMENTS,Facilities Directorate,NHS LOGISTICS,1014043464,3.83,
Department of Health,Salisbury NHS Foundation Trust,12-Jul-13,BEVERAGES & AMBIENT FOOD,Facilities Directorate,NHS LOGISTICS,1014043464,5.86,
Department of Health,Salisbury NHS Foundation Trust,12-Jul-13,BEVERAGES & AMBIENT FOOD,Facilities Directorate,NHS LOGISTICS,1014043464,9.84,
Department of Health,Salisbury NHS Foundation Trust,12-Jul-13,EGGS MILK OTHER DAIRY PRODUCTS,Facilities Directorate,NHS LOGISTICS,1014043464,16.03,
Department of Health,Salisbury NHS Foundation Trust,12-Jul-13,FLAVOURINGS HERBS SPICES,Facilities Directorate,NHS LOGISTICS,1014043464,24.24,
Department of Health,Salisbury NHS Foundation Trust,12-Jul-13,FRUIT & VEGETABLES,Facilities Directorate,NHS LOGISTICS,1014043464,29.52,
Department of Health,Salisbury NHS Foundation Trust,12-Jul-13,EGGS MILK OTHER DAIRY PRODUCTS,Facilities Directorate,NHS LOGISTICS,1014043464,55.8,
Department of Health,Salisbury NHS Foundation Trust,12-Jul-13,LIQUID REFRESHMENTS,Facilities Directorate,NHS LOGISTICS,1014043464,131.2,
Department of Health,Salisbury NHS Foundation Trust,12-Jul-13,BEVERAGES & AMBIENT FOOD,Facilities Directorate,NHS LOGISTICS,1014043464,43.65,
Department of Health,Salisbury NHS Foundation Trust,12-Jul-13,BEVERAGES & AMBIENT FOOD,Facilities Directorate,NHS LOGISTICS,1014043464,103.4,
Department of Health,Salisbury NHS Foundation Trust,12-Jul-13,BABY TEXTURE MODIFIED FOODS,Facilities Directorate,NHS LOGISTICS,1014043464,18.62,
Department of Health,Salisbury NHS Foundation Trust,12-Jul-13,BABY TEXTURE MODIFIED FOODS,Facilities Directorate,NHS LOGISTICS,1014043464,34.64,
Department of Health,Salisbury NHS Foundation Trust,12-Jul-13,BEVERAGES & AMBIENT FOOD,Facilities Directorate,NHS LOGISTICS,1014043464,10.26,
Department of Health,Salisbury NHS Foundation Trust,12-Jul-13,DIETETIC FOOD,Facilities Directorate,NHS LOGISTICS,1014043464,19.68,
Department of Health,Salisbury NHS Foundation Trust,12-Jul-13,LIQUID REFRESHMENTS,Facilities Directorate,NHS LOGISTICS,1014043464,5.12,
Department of Health,Salisbury NHS Foundation Trust,12-Jul-13,FRUIT & VEGETABLES,Facilities Directorate,NHS LOGISTICS,1014043464,6.66,
Department of Health,Salisbury NHS Foundation Trust,12-Jul-13,FRUIT & VEGETABLES,Facilities Directorate,NHS LOGISTICS,1014043464,18.12,
Department of Health,Salisbury NHS Foundation Trust,12-Jul-13,FRUIT & VEGETABLES,Facilities Directorate,NHS LOGISTICS,1014043464,29.04,
Department of Health,Salisbury NHS Foundation Trust,12-Jul-13,FRUIT & VEGETABLES,Facilities Directorate,NHS LOGISTICS,1014043464,3.28,
Department of Health,Salisbury NHS Foundation Trust,12-Jul-13,FRUIT & VEGETABLES,Facilities Directorate,NHS LOGISTICS,1014043464,50.4,
Department of Health,Salisbury NHS Foundation Trust,12-Jul-13,FRUIT & VEGETABLES,Facilities Directorate,NHS LOGISTICS,1014043464,10.92,
Department of Health,Salisbury NHS Foundation Trust,12-Jul-13,FRUIT & VEGETABLES,Facilities Directorate,NHS LOGISTICS,1014043464,12.06,
Department of Health,Salisbury NHS Foundation Trust,12-Jul-13,FRUIT & VEGETABLES,Facilities Directorate,NHS LOGISTICS,1014043464,10.26,
Department of Health,Salisbury NHS Foundation Trust,12-Jul-13,FRUIT & VEGETABLES,Facilities Directorate,NHS LOGISTICS,1014043464,53.4,
Department of Health,Salisbury NHS Foundation Trust,12-Jul-13,LIQUID REFRESHMENTS,Facilities Directorate,NHS LOGISTICS,1014043464,32.1,
Department of Health,Salisbury NHS Foundation Trust,12-Jul-13,LIQUID REFRESHMENTS,Facilities Directorate,NHS LOGISTICS,1014043464,21.4,
Department of Health,Salisbury NHS Foundation Trust,12-Jul-13,LIQUID REFRESHMENTS,Facilities Directorate,NHS LOGISTICS,1014043464,34.9,
Department of Health,Salisbury NHS Foundation Trust,12-Jul-13,LIQUID REFRESHMENTS,Facilities Directorate,NHS LOGISTICS,1014043464,18.4,
Department of Health,Salisbury NHS Foundation Trust,12-Jul-13,BEVERAGES & AMBIENT FOOD,Facilities Directorate,NHS LOGISTICS,1014043464,21.08,
Department of Health,Salisbury NHS Foundation Trust,12-Jul-13,BEVERAGES & AMBIENT FOOD,Facilities Directorate,NHS LOGISTICS,1014043464,19.74,
Department of Health,Salisbury NHS Foundation Trust,12-Jul-13,BEVERAGES & AMBIENT FOOD,Facilities Directorate,NHS LOGISTICS,1014043464,18.66,
Department of Health,Salisbury NHS Foundation Trust,12-Jul-13,BEVERAGES & AMBIENT FOOD,Facilities Directorate,NHS LOGISTICS,1014043464,14.6,
Department of Health,Salisbury NHS Foundation Trust,12-Jul-13,BEVERAGES & AMBIENT FOOD,Facilities Directorate,NHS LOGISTICS,1014043464,12.96,
Department of Health,Salisbury NHS Foundation Trust,12-Jul-13,FRUIT & VEGETABLES,Facilities Directorate,NHS LOGISTICS,1014043464,8.38,
Department of Health,Salisbury NHS Foundation Trust,12-Jul-13,FLAVOURINGS HERBS SPICES,Facilities Directorate,NHS LOGISTICS,1014043464,1.61,
Department of Health,Salisbury NHS Foundation Trust,12-Jul-13,FLAVOURINGS HERBS SPICES,Facilities Directorate,NHS LOGISTICS,1014043464,3.29,
Department of Health,Salisbury NHS Foundation Trust,12-Jul-13,FLAVOURINGS HERBS SPICES,Facilities Directorate,NHS LOGISTICS,1014043464,3.01,
Department of Health,Salisbury NHS Foundation Trust,12-Jul-13,FLAVOURINGS HERBS SPICES,Facilities Directorate,NHS LOGISTICS,1014043464,2.43,
Department of Health,Salisbury NHS Foundation Trust,12-Jul-13,BEVERAGES & AMBIENT FOOD,Facilities Directorate,NHS LOGISTICS,1014043464,7.74,
Department of Health,Salisbury NHS Foundation Trust,12-Jul-13,BEVERAGES & AMBIENT FOOD,Facilities Directorate,NHS LOGISTICS,1014043464,12.42,
Department of Health,Salisbury NHS Foundation Trust,12-Jul-13,LIQUID REFRESHMENTS,Facilities Directorate,NHS LOGISTICS,1014043464,4.6,
Department of Health,Salisbury NHS Foundation Trust,12-Jul-13,LIQUID REFRESHMENTS,Facilities Directorate,NHS LOGISTICS,1014043464,11.5,
Department of Health,Salisbury NHS Foundation Trust,12-Jul-13,LIQUID REFRESHMENTS,Facilities Directorate,NHS LOGISTICS,1014043464,4.96,
Department of Health,Salisbury NHS Foundation Trust,12-Jul-13,LIQUID REFRESHMENTS,Facilities Directorate,NHS LOGISTICS,1014043464,6.65,
Department of Health,Salisbury NHS Foundation Trust,12-Jul-13,DIETETIC FOOD,Facilities Directorate,NHS LOGISTICS,1014043464,13.92,
Department of Health,Salisbury NHS Foundation Trust,12-Jul-13,BEVERAGES & AMBIENT FOOD,Facilities Directorate,NHS LOGISTICS,1014043464,15.19,
Department of Health,Salisbury NHS Foundation Trust,12-Jul-13,BEVERAGES & AMBIENT FOOD,Facilities Directorate,NHS LOGISTICS,1014043464,34.92,
Department of Health,Salisbury NHS Foundation Trust,12-Jul-13,TISSUES HAND TOWELS & TOILET PAPER,Facilities Directorate,NHS LOGISTICS,1014043464,20.1,
Department of Health,Salisbury NHS Foundation Trust,12-Jul-13,MEDSURGCONS - OTHER,Facilities Directorate,NHS LOGISTICS,1014043464,15.1,
Department of Health,Salisbury NHS Foundation Trust,12-Jul-13,BEVERAGES & AMBIENT FOOD,Facilities Directorate,NHS LOGISTICS,1014043464,35.58,
Department of Health,Salisbury NHS Foundation Trust,12-Jul-13,BEVERAGES & AMBIENT FOOD,Facilities Directorate,NHS LOGISTICS,1014043464,8.78,
Department of Health,Salisbury NHS Foundation Trust,12-Jul-13,HEALTHCARE - WEAR,Facilities Directorate,NHS LOGISTICS,1014043464,103.6,
Department of Health,Salisbury NHS Foundation Trust,12-Jul-13,FRUIT & VEGETABLES,Facilities Directorate,NHS LOGISTICS,1014043464,20.4,
Department of Health,Salisbury NHS Foundation Trust,12-Jul-13,FRUIT & VEGETABLES,Facilities Directorate,NHS LOGISTICS,1014043464,14.1,
Department of Health,Salisbury NHS Foundation Trust,12-Jul-13,FRUIT & VEGETABLES,Facilities Directorate,NHS LOGISTICS,1014043464,10.56,
Department of Health,Salisbury NHS Foundation Trust,12-Jul-13,FRUIT & VEGETABLES,Facilities Directorate,NHS LOGISTICS,1014043464,30.48,
Department of Health,Salisbury NHS Foundation Trust,12-Jul-13,FRUIT & VEGETABLES,Facilities Directorate,NHS LOGISTICS,1014043464,4.96,
Department of Health,Salisbury NHS Foundation Trust,12-Jul-13,FLAVOURINGS HERBS SPICES,Facilities Directorate,NHS LOGISTICS,1014043464,18.72,
Department of Health,Salisbury NHS Foundation Trust,12-Jul-13,DRESSINGS - PRE STERILE,Clinical Support and Family Services,NHS LOGISTICS,1014043464,0.29,
Department of Health,Salisbury NHS Foundation Trust,12-Jul-13,DRESSINGS - PRE STERILE,Facilities Directorate,NHS LOGISTICS,1014043464,0.45,
Department of Health,Salisbury NHS Foundation Trust,12-Jul-13,CHILDRENS HEARING AIDS,Surgery,NHS LOGISTICS,1014043464,41.82,
Department of Health,Salisbury NHS Foundation Trust,12-Jul-13,MEDSURGCONS - OTHER,Medicine,NHS LOGISTICS,1014043464,19.07,
Department of Health,Salisbury NHS Foundation Trust,12-Jul-13,PAPER ITEMS GENERAL STATIONERY SUNDRIES,Clinical Support and Family Services,NHS LOGISTICS,1014043464,11.79,
Department of Health,Salisbury NHS Foundation Trust,12-Jul-13,LAB EQUIP-LABORATORY APPARATUS,Clinical Support and Family Services,NHS LOGISTICS,1014043464,9.81,
Department of Health,Salisbury NHS Foundation Trust,12-Jul-13,LAB EQUIP-LABORATORY APPARATUS,Clinical Support and Family Services,NHS LOGISTICS,1014043464,7.88,
Department of Health,Salisbury NHS Foundation Trust,12-Jul-13,TISSUES HAND TOWELS & TOILET PAPER,Clinical Support and Family Services,NHS LOGISTICS,1014043464,2.18,
Department of Health,Salisbury NHS Foundation Trust,12-Jul-13,MEDSURGCONS - OTHER,Clinical Support and Family Services,NHS LOGISTICS,1014043464,7.93,
Department of Health,Salisbury NHS Foundation Trust,12-Jul-13,MEDSURGCONS - OTHER,Clinical Support and Family Services,NHS LOGISTICS,1014043464,7.93,
Department of Health,Salisbury NHS Foundation Trust,12-Jul-13,STATIONERY SUNDRIES,Corporate Directorate,NHS LOGISTICS,1014043464,0.4,
Department of Health,Salisbury NHS Foundation Trust,12-Jul-13,STATIONERY SUNDRIES,Corporate Directorate,NHS LOGISTICS,1014043464,0.4,
Department of Health,Salisbury NHS Foundation Trust,12-Jul-13,CLEANING MATERIALS PRODUCTS SUNDRIES,Corporate Directorate,NHS LOGISTICS,1014043464,0.57,
Department of Health,Salisbury NHS Foundation Trust,12-Jul-13,ADULTS HEARING AIDS,Surgery,NHS LOGISTICS,1014043464,26,
Department of Health,Salisbury NHS Foundation Trust,12-Jul-13,ADULTS HEARING AIDS,Surgery,NHS LOGISTICS,1014043464,4.68,
Department of Health,Salisbury NHS Foundation Trust,12-Jul-13,ADULTS HEARING AIDS,Surgery,NHS LOGISTICS,1014043464,68.64,
Department of Health,Salisbury NHS Foundation Trust,12-Jul-13,ADULTS HEARING AIDS,Surgery,NHS LOGISTICS,1014043464,11.09,
Department of Health,Salisbury NHS Foundation Trust,12-Jul-13,STATIONERY SUNDRIES,Clinical Support and Family Services,NHS LOGISTICS,1014043464,0.55,
Department of Health,Salisbury NHS Foundation Trust,12-Jul-13,DRESSINGS - PRE STERILE,Critical care,NHS LOGISTICS,1014043464,0.87,
Department of Health,Salisbury NHS Foundation Trust,12-Jul-13,SURGICAL INSTRUMENTS: GENERAL,Clinical Support and Family Services,NHS LOGISTICS,1014043464,12.23,
Department of Health,Salisbury NHS Foundation Trust,12-Jul-13,STATIONERY SUNDRIES,Surgery,NHS LOGISTICS,1014043464,1.2,
Department of Health,Salisbury NHS Foundation Trust,12-Jul-13,MEDSURGCONS - OTHER,Surgery,NHS LOGISTICS,1014043464,7.67,
Department of Health,Salisbury NHS Foundation Trust,12-Jul-13,SURGICAL INSTRUMENTS: GENERAL,Surgery,NHS LOGISTICS,1014043464,17.33,
Department of Health,Salisbury NHS Foundation Trust,12-Jul-13,LAB EQUIP-ANALYSERS,Clinical Support and Family Services,NHS LOGISTICS,1014043464,13.1,
Department of Health,Salisbury NHS Foundation Trust,12-Jul-13,STATIONERY SUNDRIES,Clinical Effctiveness Directorate,NHS LOGISTICS,1014043464,2.38,
Department of Health,Salisbury NHS Foundation Trust,12-Jul-13,STATIONERY SUNDRIES,Clinical Effctiveness Directorate,NHS LOGISTICS,1014043464,4.07,
Department of Health,Salisbury NHS Foundation Trust,12-Jul-13,PAPER ITEMS GENERAL STATIONERY SUNDRIES,Surgery,NHS LOGISTICS,1014043464,7.47,
Department of Health,Salisbury NHS Foundation Trust,12-Jul-13,MEDSURGCONS - OTHER,Clinical Support and Family Services,NHS LOGISTICS,1014043464,7,
Department of Health,Salisbury NHS Foundation Trust,12-Jul-13,MEDSURGCONS - OTHER,Clinical Support and Family Services,NHS LOGISTICS,1014043464,4.66,
Department of Health,Salisbury NHS Foundation Trust,12-Jul-13,MEDSURGCONS - OTHER,Clinical Support and Family Services,NHS LOGISTICS,1014043464,4.66,
Department of Health,Salisbury NHS Foundation Trust,12-Jul-13,DISPOSABLE THEATRE DRAPES WIPES,Clinical Support and Family Services,NHS LOGISTICS,1014043464,8.49,
Department of Health,Salisbury NHS Foundation Trust,12-Jul-13,DISPOSABLE THEATRE DRAPES WIPES,Clinical Support and Family Services,NHS LOGISTICS,1014043464,2.5,
Department of Health,Salisbury NHS Foundation Trust,12-Jul-13,STATIONERY SUNDRIES,Clinical Effctiveness Directorate,NHS LOGISTICS,1014043464,1.76,
Department of Health,Salisbury NHS Foundation Trust,12-Jul-13,STATIONERY SUNDRIES,Medicine,NHS LOGISTICS,1014043464,0.15,
Department of Health,Salisbury NHS Foundation Trust,12-Jul-13,PAPER ITEMS GENERAL STATIONERY SUNDRIES,Medicine,NHS LOGISTICS,1014043464,0.6,
Department of Health,Salisbury NHS Foundation Trust,12-Jul-13,STATIONERY SUNDRIES,Medicine,NHS LOGISTICS,1014043464,0.32,
Department of Health,Salisbury NHS Foundation Trust,12-Jul-13,PAPER ITEMS GENERAL STATIONERY SUNDRIES,Medicine,NHS LOGISTICS,1014043464,7.47,
Department of Health,Salisbury NHS Foundation Trust,12-Jul-13,STATIONERY SUNDRIES,Medicine,NHS LOGISTICS,1014043464,0.21,
Department of Health,Salisbury NHS Foundation Trust,12-Jul-13,STATIONERY SUNDRIES,Medicine,NHS LOGISTICS,1014043464,0.4,
Department of Health,Salisbury NHS Foundation Trust,12-Jul-13,STATIONERY SUNDRIES,Medicine,NHS LOGISTICS,1014043464,1.33,
Department of Health,Salisbury NHS Foundation Trust,12-Jul-13,STATIONERY SUNDRIES,Medicine,NHS LOGISTICS,1014043464,0.43,
Department of Health,Salisbury NHS Foundation Trust,12-Jul-13,PAPER ITEMS GENERAL STATIONERY SUNDRIES,Medicine,NHS LOGISTICS,1014043464,7.47,
Department of Health,Salisbury NHS Foundation Trust,12-Jul-13,HEALTHCARE - WEAR,Facilities Directorate,NHS LOGISTICS,1014043464,5.47,
Department of Health,Salisbury NHS Foundation Trust,12-Jul-13,STATIONERY SUNDRIES,Medicine,NHS LOGISTICS,1014043464,0.55,
Department of Health,Salisbury NHS Foundation Trust,12-Jul-13,STATIONERY SUNDRIES,Medicine,NHS LOGISTICS,1014043464,1.2,
Department of Health,Salisbury NHS Foundation Trust,12-Jul-13,PAPER ITEMS GENERAL STATIONERY SUNDRIES,Corporate Directorate,NHS LOGISTICS,1014043464,0.58,
Department of Health,Salisbury NHS Foundation Trust,12-Jul-13,PAPER ITEMS GENERAL STATIONERY SUNDRIES,Corporate Directorate,NHS LOGISTICS,1014043464,0.15,
Department of Health,Salisbury NHS Foundation Trust,12-Jul-13,STATIONERY SUNDRIES,Corporate Directorate,NHS LOGISTICS,1014043464,0.25,
Department of Health,Salisbury NHS Foundation Trust,12-Jul-13,STATIONERY SUNDRIES,Corporate Directorate,NHS LOGISTICS,1014043464,0.19,
Department of Health,Salisbury NHS Foundation Trust,12-Jul-13,STATIONERY SUNDRIES,Corporate Directorate,NHS LOGISTICS,1014043464,0.21,
Department of Health,Salisbury NHS Foundation Trust,12-Jul-13,STATIONERY SUNDRIES,Corporate Directorate,NHS LOGISTICS,1014043464,0.21,
Department of Health,Salisbury NHS Foundation Trust,12-Jul-13,MEDSURGCONS - OTHER,Clinical Support and Family Services,NHS LOGISTICS,1014043464,4.3,
Department of Health,Salisbury NHS Foundation Trust,12-Jul-13,MEDSURGCONS - OTHER,Clinical Support and Family Services,NHS LOGISTICS,1014043464,3.96,
Department of Health,Salisbury NHS Foundation Trust,12-Jul-13,MEDSURGCONS - OTHER,Clinical Support and Family Services,NHS LOGISTICS,1014043464,6.26,
Department of Health,Salisbury NHS Foundation Trust,12-Jul-13,MEDSURGCONS - OTHER,Clinical Support and Family Services,NHS LOGISTICS,1014043464,13.69,
Department of Health,Salisbury NHS Foundation Trust,12-Jul-13,MEDSURGCONS - OTHER,Clinical Support and Family Services,NHS LOGISTICS,1014043464,2.08,
Department of Health,Salisbury NHS Foundation Trust,12-Jul-13,TISSUES HAND TOWELS & TOILET PAPER,Clinical Support and Family Services,NHS LOGISTICS,1014043464,4.02,
Department of Health,Salisbury NHS Foundation Trust,12-Jul-13,DRESSINGS  -  PROCEDURE PACKS,Clinical Support and Family Services,NHS LOGISTICS,1014043464,4.33,
Department of Health,Salisbury NHS Foundation Trust,12-Jul-13,PAPER ITEMS GENERAL STATIONERY SUNDRIES,Clinical Support and Family Services,NHS LOGISTICS,1014043464,9.28,
Department of Health,Salisbury NHS Foundation Trust,12-Jul-13,STATIONERY SUNDRIES,Medicine,NHS LOGISTICS,1014043464,0.15,
Department of Health,Salisbury NHS Foundation Trust,12-Jul-13,TOILETRIES PERSONAL HYGIENE PRODUCTS,Medicine,NHS LOGISTICS,1014043464,1.3,
Department of Health,Salisbury NHS Foundation Trust,12-Jul-13,CLEANING MATERIALS PRODUCTS SUNDRIES,Clinical Support and Family Services,NHS LOGISTICS,1014043464,1.58,
Department of Health,Salisbury NHS Foundation Trust,12-Jul-13,PAPER ITEMS GENERAL STATIONERY SUNDRIES,Clinical Support and Family Services,NHS LOGISTICS,1014043464,1.74,
Department of Health,Salisbury NHS Foundation Trust,12-Jul-13,PAPER ITEMS GENERAL STATIONERY SUNDRIES,Clinical Support and Family Services,NHS LOGISTICS,1014043464,0.73,
Department of Health,Salisbury NHS Foundation Trust,12-Jul-13,PAPER ITEMS GENERAL STATIONERY SUNDRIES,Clinical Support and Family Services,NHS LOGISTICS,1014043464,0.06,
Department of Health,Salisbury NHS Foundation Trust,12-Jul-13,OFFICE EQUIP MACHINERY  -  OTHER,Clinical Support and Family Services,NHS LOGISTICS,1014043464,0.4,
Department of Health,Salisbury NHS Foundation Trust,12-Jul-13,PAPER ITEMS GENERAL STATIONERY SUNDRIES,Clinical Support and Family Services,NHS LOGISTICS,1014043464,11.12,
Department of Health,Salisbury NHS Foundation Trust,12-Jul-13,PAPER ITEMS GENERAL STATIONERY SUNDRIES,Clinical Support and Family Services,NHS LOGISTICS,1014043464,1.23,
Department of Health,Salisbury NHS Foundation Trust,12-Jul-13,STATIONERY SUNDRIES,Clinical Support and Family Services,NHS LOGISTICS,1014043464,0.43,
Department of Health,Salisbury NHS Foundation Trust,12-Jul-13,STATIONERY SUNDRIES,Clinical Support and Family Services,NHS LOGISTICS,1014043464,0.12,
Department of Health,Salisbury NHS Foundation Trust,12-Jul-13,STATIONERY SUNDRIES,Clinical Support and Family Services,NHS LOGISTICS,1014043464,0.04,
Department of Health,Salisbury NHS Foundation Trust,12-Jul-13,STATIONERY SUNDRIES,Clinical Support and Family Services,NHS LOGISTICS,1014043464,0.19,
Department of Health,Salisbury NHS Foundation Trust,12-Jul-13,DRESSINGS  -  PROCEDURE PACKS,Surgery,NHS LOGISTICS,1014043464,0.35,
Department of Health,Salisbury NHS Foundation Trust,12-Jul-13,DRESSINGS  -  PROCEDURE PACKS,Surgery,NHS LOGISTICS,1014043464,0.88,
Department of Health,Salisbury NHS Foundation Trust,12-Jul-13,LAB EQUIP-LABORATORY APPARATUS,Clinical Support and Family Services,NHS LOGISTICS,1014043464,5.05,
Department of Health,Salisbury NHS Foundation Trust,12-Jul-13,LAB EQUIP-LABORATORY APPARATUS,Clinical Support and Family Services,NHS LOGISTICS,1014043464,23.5,
Department of Health,Salisbury NHS Foundation Trust,12-Jul-13,LAB EQUIP-LABORATORY APPARATUS,Clinical Support and Family Services,NHS LOGISTICS,1014043464,11.28,
Department of Health,Salisbury NHS Foundation Trust,12-Jul-13,LAB EQUIP-LABORATORY APPARATUS,Clinical Support and Family Services,NHS LOGISTICS,1014043464,16.82,
Department of Health,Salisbury NHS Foundation Trust,12-Jul-13,LAB EQUIP-LABORATORY APPARATUS,Clinical Support and Family Services,NHS LOGISTICS,1014043464,2.59,
Department of Health,Salisbury NHS Foundation Trust,12-Jul-13,LAB EQUIP-LABORATORY APPARATUS,Clinical Support and Family Services,NHS LOGISTICS,1014043464,148.27,
Department of Health,Salisbury NHS Foundation Trust,12-Jul-13,LAB EQUIP-LABORATORY APPARATUS,Clinical Support and Family Services,NHS LOGISTICS,1014043464,10.17,
Department of Health,Salisbury NHS Foundation Trust,12-Jul-13,LAB EQUIP-LABORATORY APPARATUS,Clinical Support and Family Services,NHS LOGISTICS,1014043464,24.57,
Department of Health,Salisbury NHS Foundation Trust,12-Jul-13,LAB EQUIP-LABORATORY APPARATUS,Clinical Support and Family Services,NHS LOGISTICS,1014043464,35.58,
Department of Health,Salisbury NHS Foundation Trust,12-Jul-13,LAB EQUIP-LABORATORY APPARATUS,Clinical Support and Family Services,NHS LOGISTICS,1014043464,14.65,
Department of Health,Salisbury NHS Foundation Trust,12-Jul-13,OTHER MEDICAL SUPPLIES,Clinical Support and Family Services,NHS LOGISTICS,1014043464,36.27,
Department of Health,Salisbury NHS Foundation Trust,12-Jul-13,DRESSINGS - PRE STERILE,Clinical Support and Family Services,NHS LOGISTICS,1014043464,0.42,
Department of Health,Salisbury NHS Foundation Trust,12-Jul-13,DRESSINGS - PRE STERILE,Clinical Support and Family Services,NHS LOGISTICS,1014043464,0.58,
Department of Health,Salisbury NHS Foundation Trust,12-Jul-13,LAB EQUIP-LABORATORY APPARATUS,Clinical Support and Family Services,NHS LOGISTICS,1014043464,6.36,
Department of Health,Salisbury NHS Foundation Trust,12-Jul-13,PATIENTS BEDWEAR UNISEX,Surgery,NHS LOGISTICS,1014043464,21,
Department of Health,Salisbury NHS Foundation Trust,12-Jul-13,PAPER ITEMS GENERAL STATIONERY SUNDRIES,Surgery,NHS LOGISTICS,1014043464,2.55,
Department of Health,Salisbury NHS Foundation Trust,12-Jul-13,PAPER ITEMS GENERAL STATIONERY SUNDRIES,Surgery,NHS LOGISTICS,1014043464,9.17,
Department of Health,Salisbury NHS Foundation Trust,12-Jul-13,MEDSURGCONS - OTHER,Surgery,NHS LOGISTICS,1014043464,6.17,
Department of Health,Salisbury NHS Foundation Trust,12-Jul-13,DRESSINGS - PRE STERILE,Surgery,NHS LOGISTICS,1014043464,13.1,
Department of Health,Salisbury NHS Foundation Trust,12-Jul-13,DRESSINGS - PRE STERILE,Critical care,NHS LOGISTICS,1014043464,6.76,
Department of Health,Salisbury NHS Foundation Trust,12-Jul-13,STATIONERY SUNDRIES,Clinical Support and Family Services,NHS LOGISTICS,1014043464,0.65,
Department of Health,Salisbury NHS Foundation Trust,12-Jul-13,PAPER ITEMS GENERAL STATIONERY SUNDRIES,Clinical Support and Family Services,NHS LOGISTICS,1014043464,3.48,
Department of Health,Salisbury NHS Foundation Trust,12-Jul-13,PAPER ITEMS GENERAL STATIONERY SUNDRIES,Clinical Support and Family Services,NHS LOGISTICS,1014043464,11.12,
Department of Health,Salisbury NHS Foundation Trust,12-Jul-13,STATIONERY SUNDRIES,Clinical Support and Family Services,NHS LOGISTICS,1014043464,0.43,
Department of Health,Salisbury NHS Foundation Trust,12-Jul-13,OTHER MEDICAL SUPPLIES,Surgery,NHS LOGISTICS,1014043464,4.42,
Department of Health,Salisbury NHS Foundation Trust,12-Jul-13,OTHER MEDICAL SUPPLIES,Medicine,NHS LOGISTICS,1014043464,0.88,
Department of Health,Salisbury NHS Foundation Trust,12-Jul-13,OTHER MEDICAL SUPPLIES,Medicine,NHS LOGISTICS,1014043464,120,
Department of Health,Salisbury NHS Foundation Trust,12-Jul-13,OTHER MEDICAL SUPPLIES,Medicine,NHS LOGISTICS,1014043464,2.05,
Department of Health,Salisbury NHS Foundation Trust,12-Jul-13,HEALTHCARE - WEAR,Medicine,NHS LOGISTICS,1014043464,2.06,
Department of Health,Salisbury NHS Foundation Trust,12-Jul-13,TISSUES HAND TOWELS & TOILET PAPER,Medicine,NHS LOGISTICS,1014043464,0.44,
Department of Health,Salisbury NHS Foundation Trust,12-Jul-13,OTHER MEDICAL SUPPLIES,Medicine,NHS LOGISTICS,1014043464,0.6,
Department of Health,Salisbury NHS Foundation Trust,12-Jul-13,DRESSINGS - PRE STERILE,Medicine,NHS LOGISTICS,1014043464,5.45,
Department of Health,Salisbury NHS Foundation Trust,12-Jul-13,DRESSINGS - PRE STERILE,Medicine,NHS LOGISTICS,1014043464,0.23,
Department of Health,Salisbury NHS Foundation Trust,12-Jul-13,MEDSURGCONS - OTHER,Medicine,NHS LOGISTICS,1014043464,2.08,
Department of Health,Salisbury NHS Foundation Trust,12-Jul-13,MEDSURGCONS - OTHER,Human Resources,NHS LOGISTICS,1014043464,1.13,
Department of Health,Salisbury NHS Foundation Trust,12-Jul-13,PAPER ITEMS GENERAL STATIONERY SUNDRIES,Surgery,NHS LOGISTICS,1014043464,1.22,
Department of Health,Salisbury NHS Foundation Trust,12-Jul-13,PAPER ITEMS GENERAL STATIONERY SUNDRIES,Surgery,NHS LOGISTICS,1014043464,2.26,
Department of Health,Salisbury NHS Foundation Trust,12-Jul-13,STATIONERY SUNDRIES,Surgery,NHS LOGISTICS,1014043464,0.61,
Department of Health,Salisbury NHS Foundation Trust,12-Jul-13,STATIONERY SUNDRIES,Surgery,NHS LOGISTICS,1014043464,0.55,
Department of Health,Salisbury NHS Foundation Trust,12-Jul-13,STATIONERY SUNDRIES,Surgery,NHS LOGISTICS,1014043464,0.55,
Department of Health,Salisbury NHS Foundation Trust,12-Jul-13,STATIONERY SUNDRIES,Surgery,NHS LOGISTICS,1014043464,0.55,
Department of Health,Salisbury NHS Foundation Trust,12-Jul-13,OTHER MEDICAL SUPPLIES,Medicine,NHS LOGISTICS,1014043464,4.42,
Department of Health,Salisbury NHS Foundation Trust,12-Jul-13,PATIENTS INCONTINENCE,Medicine,NHS LOGISTICS,1014043464,1.82,
Department of Health,Salisbury NHS Foundation Trust,12-Jul-13,TISSUES HAND TOWELS & TOILET PAPER,Medicine,NHS LOGISTICS,1014043464,0.07,
Department of Health,Salisbury NHS Foundation Trust,12-Jul-13,PATIENT APPLIANCES,Medicine,NHS LOGISTICS,1014043464,1.58,
Department of Health,Salisbury NHS Foundation Trust,12-Jul-13,PATIENT APPLIANCES,Medicine,NHS LOGISTICS,1014043464,0.38,
Department of Health,Salisbury NHS Foundation Trust,12-Jul-13,OTHER MEDICAL SUPPLIES,Medicine,NHS LOGISTICS,1014043464,4.42,
Department of Health,Salisbury NHS Foundation Trust,12-Jul-13,DRESSINGS - PRE STERILE,Medicine,NHS LOGISTICS,1014043464,1.33,
Department of Health,Salisbury NHS Foundation Trust,12-Jul-13,TISSUES HAND TOWELS & TOILET PAPER,Medicine,NHS LOGISTICS,1014043464,0.36,
Department of Health,Salisbury NHS Foundation Trust,12-Jul-13,PATIENTS INCONTINENCE,Medicine,NHS LOGISTICS,1014043464,5.43,
Department of Health,Salisbury NHS Foundation Trust,12-Jul-13,PATIENTS INCONTINENCE,Medicine,NHS LOGISTICS,1014043464,11.32,
Department of Health,Salisbury NHS Foundation Trust,12-Jul-13,MEDSURGCONS - OTHER,Medicine,NHS LOGISTICS,1014043464,3.58,
Department of Health,Salisbury NHS Foundation Trust,12-Jul-13,NON DISPOSABLE BED LINEN,Medicine,NHS LOGISTICS,1014043464,4.35,
Department of Health,Salisbury NHS Foundation Trust,12-Jul-13,PATIENT APPLIANCES,Medicine,NHS LOGISTICS,1014043464,1.58,
Department of Health,Salisbury NHS Foundation Trust,12-Jul-13,OTHER MEDICAL SUPPLIES,Medicine,NHS LOGISTICS,1014043464,4.42,
Department of Health,Salisbury NHS Foundation Trust,12-Jul-13,DRESSINGS - PRE STERILE,Medicine,NHS LOGISTICS,1014043464,13.28,
Department of Health,Salisbury NHS Foundation Trust,12-Jul-13,MED SURG EQUIP REP MAINT CLEANING,Medicine,NHS LOGISTICS,1014043464,6.9,
Department of Health,Salisbury NHS Foundation Trust,12-Jul-13,OTHER MEDICAL SUPPLIES,Medicine,NHS LOGISTICS,1014043464,1.14,
Department of Health,Salisbury NHS Foundation Trust,12-Jul-13,PATIENTS INCONTINENCE,Medicine,NHS LOGISTICS,1014043464,3.03,
Department of Health,Salisbury NHS Foundation Trust,12-Jul-13,DRESSINGS - PRE STERILE,Medicine,NHS LOGISTICS,1014043464,0.09,
Department of Health,Salisbury NHS Foundation Trust,12-Jul-13,NON DISPOSABLE BED LINEN,Medicine,NHS LOGISTICS,1014043464,4.35,
Department of Health,Salisbury NHS Foundation Trust,12-Jul-13,PATIENT APPLIANCES,Medicine,NHS LOGISTICS,1014043464,1.58,
Department of Health,Salisbury NHS Foundation Trust,12-Jul-13,PATIENT APPLIANCES,Medicine,NHS LOGISTICS,1014043464,1.06,
Department of Health,Salisbury NHS Foundation Trust,12-Jul-13,PATIENT APPLIANCES,Medicine,NHS LOGISTICS,1014043464,0.38,
Department of Health,Salisbury NHS Foundation Trust,12-Jul-13,DRESSINGS - PRE STERILE,Critical care,NHS LOGISTICS,1014043464,1.91,
Department of Health,Salisbury NHS Foundation Trust,12-Jul-13,DRESSINGS  -  PROCEDURE PACKS,Critical care,NHS LOGISTICS,1014043464,2.25,
Department of Health,Salisbury NHS Foundation Trust,12-Jul-13,PAPER ITEMS GENERAL STATIONERY SUNDRIES,Corporate Directorate,NHS LOGISTICS,1014043464,3.8,
Department of Health,Salisbury NHS Foundation Trust,12-Jul-13,PAPER ITEMS GENERAL STATIONERY SUNDRIES,Corporate Directorate,NHS LOGISTICS,1014043464,3.25,
Department of Health,Salisbury NHS Foundation Trust,12-Jul-13,PAPER ITEMS GENERAL STATIONERY SUNDRIES,Corporate Directorate,NHS LOGISTICS,1014043464,9.17,
Department of Health,Salisbury NHS Foundation Trust,12-Jul-13,STATIONERY SUNDRIES,Corporate Directorate,NHS LOGISTICS,1014043464,0.8,
Department of Health,Salisbury NHS Foundation Trust,12-Jul-13,STATIONERY SUNDRIES,Surgery,NHS LOGISTICS,1014043464,1.67,
Department of Health,Salisbury NHS Foundation Trust,12-Jul-13,BAGS SACKS - OTHER,Facilities Directorate,NHS LOGISTICS,1014043464,2.32,
Department of Health,Salisbury NHS Foundation Trust,12-Jul-13,BAGS SACKS - OTHER,Facilities Directorate,NHS LOGISTICS,1014043464,17.72,
Department of Health,Salisbury NHS Foundation Trust,12-Jul-13,BAGS SACKS - OTHER,Facilities Directorate,NHS LOGISTICS,1014043464,3.3,
Department of Health,Salisbury NHS Foundation Trust,12-Jul-13,BAGS SACKS - OTHER,Facilities Directorate,NHS LOGISTICS,1014043464,5.49,
Department of Health,Salisbury NHS Foundation Trust,12-Jul-13,CLEANING MATERIALS PRODUCTS SUNDRIES,Facilities Directorate,NHS LOGISTICS,1014043464,6.6,
Department of Health,Salisbury NHS Foundation Trust,12-Jul-13,CLEANING MATERIALS PRODUCTS SUNDRIES,Facilities Directorate,NHS LOGISTICS,1014043464,13.2,
Department of Health,Salisbury NHS Foundation Trust,12-Jul-13,LIQUID REFRESHMENTS,Facilities Directorate,NHS LOGISTICS,1014043464,0.77,
Department of Health,Salisbury NHS Foundation Trust,12-Jul-13,CLEANING MATERIALS PRODUCTS SUNDRIES,Facilities Directorate,NHS LOGISTICS,1014043464,5.31,
Department of Health,Salisbury NHS Foundation Trust,12-Jul-13,MEDSURGCONS - OTHER,Facilities Directorate,NHS LOGISTICS,1014043464,1.86,
Department of Health,Salisbury NHS Foundation Trust,12-Jul-13,CLEANING MATERIALS PRODUCTS SUNDRIES,Facilities Directorate,NHS LOGISTICS,1014043464,13.92,
Department of Health,Salisbury NHS Foundation Trust,12-Jul-13,CLEANING MATERIALS PRODUCTS SUNDRIES,Surgery,NHS LOGISTICS,1014043464,2.27,
Department of Health,Salisbury NHS Foundation Trust,12-Jul-13,DISPOSABLE THEATRE DRAPES WIPES,Surgery,NHS LOGISTICS,1014043464,2.25,
Department of Health,Salisbury NHS Foundation Trust,12-Jul-13,OTHER MEDICAL SUPPLIES,Medicine,NHS LOGISTICS,1014043464,0.35,
Department of Health,Salisbury NHS Foundation Trust,12-Jul-13,MEDSURGCONS - OTHER,Medicine,NHS LOGISTICS,1014043464,1.76,
Department of Health,Salisbury NHS Foundation Trust,12-Jul-13,OTHER MEDICAL SUPPLIES,Medicine,NHS LOGISTICS,1014043464,23.08,
Department of Health,Salisbury NHS Foundation Trust,12-Jul-13,TISSUES HAND TOWELS & TOILET PAPER,Medicine,NHS LOGISTICS,1014043464,0.36,
Department of Health,Salisbury NHS Foundation Trust,12-Jul-13,PATIENTS INCONTINENCE,Medicine,NHS LOGISTICS,1014043464,0.73,
Department of Health,Salisbury NHS Foundation Trust,12-Jul-13,PATIENTS INCONTINENCE,Medicine,NHS LOGISTICS,1014043464,0.37,
Department of Health,Salisbury NHS Foundation Trust,12-Jul-13,PATIENTS INCONTINENCE,Medicine,NHS LOGISTICS,1014043464,7.55,
Department of Health,Salisbury NHS Foundation Trust,12-Jul-13,PAPER ITEMS GENERAL STATIONERY SUNDRIES,Clinical Support and Family Services,NHS LOGISTICS,1014043464,10.57,
Department of Health,Salisbury NHS Foundation Trust,12-Jul-13,PAPER ITEMS GENERAL STATIONERY SUNDRIES,Clinical Support and Family Services,NHS LOGISTICS,1014043464,1.23,
Department of Health,Salisbury NHS Foundation Trust,12-Jul-13,PAPER ITEMS GENERAL STATIONERY SUNDRIES,Clinical Support and Family Services,NHS LOGISTICS,1014043464,2.66,
Department of Health,Salisbury NHS Foundation Trust,12-Jul-13,DRESSINGS - PRE STERILE,Medicine,NHS LOGISTICS,1014043464,5.38,
Department of Health,Salisbury NHS Foundation Trust,12-Jul-13,DRESSINGS - PRE STERILE,Medicine,NHS LOGISTICS,1014043464,6.92,
Department of Health,Salisbury NHS Foundation Trust,12-Jul-13,DRESSINGS - PRE STERILE,Medicine,NHS LOGISTICS,1014043464,4.42,
Department of Health,Salisbury NHS Foundation Trust,12-Jul-13,TISSUES HAND TOWELS & TOILET PAPER,Medicine,NHS LOGISTICS,1014043464,0.18,
Department of Health,Salisbury NHS Foundation Trust,12-Jul-13,MEDSURGCONS-SUTURES,Medicine,NHS LOGISTICS,1014043464,4.58,
Department of Health,Salisbury NHS Foundation Trust,12-Jul-13,MED SURG EQUIP REP MAINT CLEANING,Medicine,NHS LOGISTICS,1014043464,9.66,
Department of Health,Salisbury NHS Foundation Trust,12-Jul-13,STATIONERY SUNDRIES,Medicine,NHS LOGISTICS,1014043464,0.32,
Department of Health,Salisbury NHS Foundation Trust,12-Jul-13,PAPER ITEMS GENERAL STATIONERY SUNDRIES,Medicine,NHS LOGISTICS,1014043464,0.25,
Department of Health,Salisbury NHS Foundation Trust,12-Jul-13,STATIONERY SUNDRIES,Medicine,NHS LOGISTICS,1014043464,0.19,
Department of Health,Salisbury NHS Foundation Trust,12-Jul-13,STATIONERY SUNDRIES,Medicine,NHS LOGISTICS,1014043464,0.19,
Department of Health,Salisbury NHS Foundation Trust,12-Jul-13,STATIONERY SUNDRIES,Medicine,NHS LOGISTICS,1014043464,0.31,
Department of Health,Salisbury NHS Foundation Trust,12-Jul-13,HARD/SOFTWARE-COMPUTER ACCESSORIES  TEST EQUIPMENT,Medicine,NHS LOGISTICS,1014043464,2.71,
Department of Health,Salisbury NHS Foundation Trust,12-Jul-13,HARD/SOFTWARE-COMPUTER ACCESSORIES  TEST EQUIPMENT,Medicine,NHS LOGISTICS,1014043464,2.19,
Department of Health,Salisbury NHS Foundation Trust,12-Jul-13,STATIONERY SUNDRIES,Medicine,NHS LOGISTICS,1014043464,0.61,
Department of Health,Salisbury NHS Foundation Trust,12-Jul-13,REFUSE DISPOSAL - CLINICAL CONT SERVICES,Facilities Directorate,NHS LOGISTICS,1014043464,73.72,
Department of Health,Salisbury NHS Foundation Trust,12-Jul-13,PAPER ITEMS GENERAL STATIONERY SUNDRIES,Clinical Support and Family Services,NHS LOGISTICS,1014043464,1.25,
Department of Health,Salisbury NHS Foundation Trust,12-Jul-13,STATIONERY SUNDRIES,Clinical Support and Family Services,NHS LOGISTICS,1014043464,0.44,
Department of Health,Salisbury NHS Foundation Trust,12-Jul-13,STATIONERY SUNDRIES,Clinical Support and Family Services,NHS LOGISTICS,1014043464,0.09,
Department of Health,Salisbury NHS Foundation Trust,12-Jul-13,HARD/SOFTWARE-MEDIA  TAPES  DISCS,Surgery,NHS LOGISTICS,1014043464,0.73,
Department of Health,Salisbury NHS Foundation Trust,12-Jul-13,STATIONERY SUNDRIES,Surgery,NHS LOGISTICS,1014043464,4.07,
Department of Health,Salisbury NHS Foundation Trust,12-Jul-13,PAPER ITEMS GENERAL STATIONERY SUNDRIES,Surgery,NHS LOGISTICS,1014043464,8.75,
Department of Health,Salisbury NHS Foundation Trust,12-Jul-13,PAPER ITEMS GENERAL STATIONERY SUNDRIES,Surgery,NHS LOGISTICS,1014043464,0.87,
Department of Health,Salisbury NHS Foundation Trust,12-Jul-13,PAPER ITEMS GENERAL STATIONERY SUNDRIES,Medicine,NHS LOGISTICS,1014043464,7.47,
Department of Health,Salisbury NHS Foundation Trust,12-Jul-13,STATIONERY SUNDRIES,Medicine,NHS LOGISTICS,1014043464,0.16,
Department of Health,Salisbury NHS Foundation Trust,12-Jul-13,PAPER ITEMS GENERAL STATIONERY SUNDRIES,Medicine,NHS LOGISTICS,1014043464,5.6,
Department of Health,Salisbury NHS Foundation Trust,12-Jul-13,LAB EQUIP-LABORATORY APPARATUS,Surgery,NHS LOGISTICS,1014043464,1.37,
Department of Health,Salisbury NHS Foundation Trust,12-Jul-13,MEDSURGCONS - OTHER,Clinical Support and Family Services,NHS LOGISTICS,1014043464,0.66,
Department of Health,Salisbury NHS Foundation Trust,12-Jul-13,MEDSURGCONS - OTHER,Clinical Support and Family Services,NHS LOGISTICS,1014043464,2.63,
Department of Health,Salisbury NHS Foundation Trust,12-Jul-13,MEDSURGCONS - OTHER,Clinical Support and Family Services,NHS LOGISTICS,1014043464,0.28,
Department of Health,Salisbury NHS Foundation Trust,12-Jul-13,OTHER MEDICAL SUPPLIES,Clinical Support and Family Services,NHS LOGISTICS,1014043464,0.46,
Department of Health,Salisbury NHS Foundation Trust,12-Jul-13,MEDSURGCONS-SUTURES,Clinical Support and Family Services,NHS LOGISTICS,1014043464,5.34,
Department of Health,Salisbury NHS Foundation Trust,12-Jul-13,MEDSURGCONS-SUTURES,Clinical Support and Family Services,NHS LOGISTICS,1014043464,13.63,
Department of Health,Salisbury NHS Foundation Trust,12-Jul-13,TUBES,Clinical Support and Family Services,NHS LOGISTICS,1014043464,0.47,
Department of Health,Salisbury NHS Foundation Trust,12-Jul-13,TUBES,Clinical Support and Family Services,NHS LOGISTICS,1014043464,0.69,
Department of Health,Salisbury NHS Foundation Trust,12-Jul-13,NON DISPOSABLE BED LINEN,Clinical Support and Family Services,NHS LOGISTICS,1014043464,4.5,
Department of Health,Salisbury NHS Foundation Trust,12-Jul-13,PAPER ITEMS GENERAL STATIONERY SUNDRIES,Surgery,NHS LOGISTICS,1014043464,0.16,
Department of Health,Salisbury NHS Foundation Trust,12-Jul-13,PAPER ITEMS GENERAL STATIONERY SUNDRIES,Surgery,NHS LOGISTICS,1014043464,0.05,
Department of Health,Salisbury NHS Foundation Trust,12-Jul-13,STATIONERY SUNDRIES,Surgery,NHS LOGISTICS,1014043464,0.15,
Department of Health,Salisbury NHS Foundation Trust,12-Jul-13,STATIONERY SUNDRIES,Surgery,NHS LOGISTICS,1014043464,0.18,
Department of Health,Salisbury NHS Foundation Trust,12-Jul-13,DRUGS,Clinical Support and Family Services,NHS LOGISTICS,1014043464,3.18,
Department of Health,Salisbury NHS Foundation Trust,12-Jul-13,M & S EQUIPELECTEQUIPINST - OTHER,Clinical Support and Family Services,NHS LOGISTICS,1014043464,2.19,
Department of Health,Salisbury NHS Foundation Trust,12-Jul-13,DRESSINGS - PRE STERILE,Critical care,NHS LOGISTICS,1014043464,1.33,
Department of Health,Salisbury NHS Foundation Trust,12-Jul-13,TISSUES HAND TOWELS & TOILET PAPER,Critical care,NHS LOGISTICS,1014043464,1.09,
Department of Health,Salisbury NHS Foundation Trust,12-Jul-13,CLEANING MATERIALS PRODUCTS SUNDRIES,Critical care,NHS LOGISTICS,1014043464,1.46,
Department of Health,Salisbury NHS Foundation Trust,12-Jul-13,PATIENTS INCONTINENCE,Critical care,NHS LOGISTICS,1014043464,0.68,
Department of Health,Salisbury NHS Foundation Trust,12-Jul-13,PATIENTS INCONTINENCE,Critical care,NHS LOGISTICS,1014043464,1.82,
Department of Health,Salisbury NHS Foundation Trust,12-Jul-13,MEDSURGCONS - OTHER,Critical care,NHS LOGISTICS,1014043464,2.08,
Department of Health,Salisbury NHS Foundation Trust,12-Jul-13,TOILETRIES PERSONAL HYGIENE PRODUCTS,Critical care,NHS LOGISTICS,1014043464,0.64,
Department of Health,Salisbury NHS Foundation Trust,12-Jul-13,NON DISPOSABLE BED LINEN,Critical care,NHS LOGISTICS,1014043464,2.24,
Department of Health,Salisbury NHS Foundation Trust,12-Jul-13,PATIENT APPLIANCES,Critical care,NHS LOGISTICS,1014043464,1.06,
Department of Health,Salisbury NHS Foundation Trust,12-Jul-13,STATIONERY SUNDRIES,Surgery,NHS LOGISTICS,1014043464,0.03,
Department of Health,Salisbury NHS Foundation Trust,12-Jul-13,STATIONERY SUNDRIES,Surgery,NHS LOGISTICS,1014043464,0.02,
Department of Health,Salisbury NHS Foundation Trust,12-Jul-13,STATIONERY SUNDRIES,Surgery,NHS LOGISTICS,1014043464,0.32,
Department of Health,Salisbury NHS Foundation Trust,12-Jul-13,PAPER ITEMS GENERAL STATIONERY SUNDRIES,Surgery,NHS LOGISTICS,1014043464,0.53,
Department of Health,Salisbury NHS Foundation Trust,12-Jul-13,PAPER ITEMS GENERAL STATIONERY SUNDRIES,Surgery,NHS LOGISTICS,1014043464,0.13,
Department of Health,Salisbury NHS Foundation Trust,12-Jul-13,STATIONERY SUNDRIES,Surgery,NHS LOGISTICS,1014043464,0.21,
Department of Health,Salisbury NHS Foundation Trust,12-Jul-13,STATIONERY SUNDRIES,Surgery,NHS LOGISTICS,1014043464,0.92,
Department of Health,Salisbury NHS Foundation Trust,12-Jul-13,MEDSURGCONS - OTHER,Clinical Support and Family Services,NHS LOGISTICS,1014043464,9.34,
Department of Health,Salisbury NHS Foundation Trust,12-Jul-13,TUBES,Clinical Support and Family Services,NHS LOGISTICS,1014043464,1.23,
Department of Health,Salisbury NHS Foundation Trust,12-Jul-13,TOILETRIES PERSONAL HYGIENE PRODUCTS,Clinical Support and Family Services,NHS LOGISTICS,1014043464,0.77,
Department of Health,Salisbury NHS Foundation Trust,12-Jul-13,DRESSINGS - PRE STERILE,Clinical Support and Family Services,NHS LOGISTICS,1014043464,0.32,
Department of Health,Salisbury NHS Foundation Trust,12-Jul-13,PAPER ITEMS GENERAL STATIONERY SUNDRIES,Medicine,NHS LOGISTICS,1014043464,3.73,
Department of Health,Salisbury NHS Foundation Trust,12-Jul-13,OTHER MEDICAL SUPPLIES,Clinical Support and Family Services,NHS LOGISTICS,1014043464,1.77,
Department of Health,Salisbury NHS Foundation Trust,12-Jul-13,DRESSINGS  -  PROCEDURE PACKS,Clinical Support and Family Services,NHS LOGISTICS,1014043464,8.87,
Department of Health,Salisbury NHS Foundation Trust,12-Jul-13,MED SURG EQUIP REP MAINT CLEANING,Clinical Support and Family Services,NHS LOGISTICS,1014043464,2.22,
Department of Health,Salisbury NHS Foundation Trust,12-Jul-13,PATIENT APPLIANCES,Clinical Support and Family Services,NHS LOGISTICS,1014043464,1.06,
Department of Health,Salisbury NHS Foundation Trust,12-Jul-13,CLEANING MATERIALS PRODUCTS SUNDRIES,Human Resources,NHS LOGISTICS,1014043464,0.73,
Department of Health,Salisbury NHS Foundation Trust,12-Jul-13,TISSUES HAND TOWELS & TOILET PAPER,Human Resources,NHS LOGISTICS,1014043464,1.33,
Department of Health,Salisbury NHS Foundation Trust,12-Jul-13,DRESSINGS - PRE STERILE,Critical care,NHS LOGISTICS,1014043464,2.66,
Department of Health,Salisbury NHS Foundation Trust,12-Jul-13,CLEANING MATERIALS PRODUCTS SUNDRIES,Critical care,NHS LOGISTICS,1014043464,1.58,
Department of Health,Salisbury NHS Foundation Trust,12-Jul-13,PATIENT APPLIANCES,Critical care,NHS LOGISTICS,1014043464,1.06,
Department of Health,Salisbury NHS Foundation Trust,12-Jul-13,DRESSINGS - PRE STERILE,Critical care,NHS LOGISTICS,1014043464,2.66,
Department of Health,Salisbury NHS Foundation Trust,12-Jul-13,DRESSINGS - PRE STERILE,Critical care,NHS LOGISTICS,1014043464,0.17,
Department of Health,Salisbury NHS Foundation Trust,12-Jul-13,TISSUES HAND TOWELS & TOILET PAPER,Critical care,NHS LOGISTICS,1014043464,0.36,
Department of Health,Salisbury NHS Foundation Trust,12-Jul-13,PATIENTS INCONTINENCE,Critical care,NHS LOGISTICS,1014043464,0.91,
Department of Health,Salisbury NHS Foundation Trust,12-Jul-13,DRESSINGS - PRE STERILE,Critical care,NHS LOGISTICS,1014043464,1.1,
Department of Health,Salisbury NHS Foundation Trust,12-Jul-13,NON DISPOSABLE BED LINEN,Critical care,NHS LOGISTICS,1014043464,2.24,
Department of Health,Salisbury NHS Foundation Trust,12-Jul-13,PATIENT APPLIANCES,Critical care,NHS LOGISTICS,1014043464,1.06,
Department of Health,Salisbury NHS Foundation Trust,12-Jul-13,PATIENTS BEDWEAR UNISEX,Medicine,NHS LOGISTICS,1014043464,21,
Department of Health,Salisbury NHS Foundation Trust,12-Jul-13,STATIONERY SUNDRIES,Critical care,NHS LOGISTICS,1014043464,0.53,
Department of Health,Salisbury NHS Foundation Trust,12-Jul-13,PAPER ITEMS GENERAL STATIONERY SUNDRIES,Critical care,NHS LOGISTICS,1014043464,1.23,
Department of Health,Salisbury NHS Foundation Trust,12-Jul-13,PAPER ITEMS GENERAL STATIONERY SUNDRIES,Critical care,NHS LOGISTICS,1014043464,1.6,
Department of Health,Salisbury NHS Foundation Trust,12-Jul-13,PAPER ITEMS GENERAL STATIONERY SUNDRIES,Critical care,NHS LOGISTICS,1014043464,0.8,
Department of Health,Salisbury NHS Foundation Trust,12-Jul-13,OFFICE EQUIP MACHINERY  -  OTHER,Critical care,NHS LOGISTICS,1014043464,0.64,
Department of Health,Salisbury NHS Foundation Trust,12-Jul-13,CLEANING MATERIALS PRODUCTS SUNDRIES,Critical care,NHS LOGISTICS,1014043464,0.57,
Department of Health,Salisbury NHS Foundation Trust,12-Jul-13,DRESSINGS - PRE STERILE,Medicine,NHS LOGISTICS,1014043464,8.35,
Department of Health,Salisbury NHS Foundation Trust,12-Jul-13,DRUGS,Surgery,NHS LOGISTICS,1014043464,9.06,
Department of Health,Salisbury NHS Foundation Trust,12-Jul-13,DRUGS,Surgery,NHS LOGISTICS,1014043464,9.06,
Department of Health,Salisbury NHS Foundation Trust,12-Jul-13,BAGS SACKS - OTHER,Clinical Support and Family Services,NHS LOGISTICS,1014043464,0.96,
Department of Health,Salisbury NHS Foundation Trust,12-Jul-13,OTHER MEDICAL SUPPLIES,Clinical Support and Family Services,NHS LOGISTICS,1014043464,2.85,
Department of Health,Salisbury NHS Foundation Trust,12-Jul-13,MEDSURGCONS - OTHER,Clinical Support and Family Services,NHS LOGISTICS,1014043464,6.26,
Department of Health,Salisbury NHS Foundation Trust,12-Jul-13,DRESSINGS  -  PROCEDURE PACKS,Surgery,NHS LOGISTICS,1014043464,2.42,
Department of Health,Salisbury NHS Foundation Trust,12-Jul-13,TUBES,Surgery,NHS LOGISTICS,1014043464,8.25,
Department of Health,Salisbury NHS Foundation Trust,12-Jul-13,TOILETRIES PERSONAL HYGIENE PRODUCTS,Surgery,NHS LOGISTICS,1014043464,6.15,
Department of Health,Salisbury NHS Foundation Trust,12-Jul-13,DRESSINGS - PRE STERILE,Surgery,NHS LOGISTICS,1014043464,2.68,
Department of Health,Salisbury NHS Foundation Trust,12-Jul-13,PAPER ITEMS GENERAL STATIONERY SUNDRIES,Surgery,NHS LOGISTICS,1014043464,1.87,
Department of Health,Salisbury NHS Foundation Trust,12-Jul-13,MEDSURGCONS - OTHER,Surgery,NHS LOGISTICS,1014043464,1.98,
Department of Health,Salisbury NHS Foundation Trust,12-Jul-13,MEDSURGCONS - OTHER,Surgery,NHS LOGISTICS,1014043464,2.02,
Department of Health,Salisbury NHS Foundation Trust,12-Jul-13,MEDSURGCONS - OTHER,Surgery,NHS LOGISTICS,1014043464,1.37,
Department of Health,Salisbury NHS Foundation Trust,12-Jul-13,DRESSINGS - PRE STERILE,Surgery,NHS LOGISTICS,1014043464,1.2,
Department of Health,Salisbury NHS Foundation Trust,12-Jul-13,OTHER MEDICAL SUPPLIES,Surgery,NHS LOGISTICS,1014043464,5.33,
Department of Health,Salisbury NHS Foundation Trust,12-Jul-13,DISPOSABLE THEATRE DRAPES WIPES,Surgery,NHS LOGISTICS,1014043464,3.75,
Department of Health,Salisbury NHS Foundation Trust,12-Jul-13,DISPOSABLE THEATRE DRAPES WIPES,Surgery,NHS LOGISTICS,1014043464,1.52,
Department of Health,Salisbury NHS Foundation Trust,12-Jul-13,ANAESTHETIC EQUIPMENT ACCESSORIES,Surgery,NHS LOGISTICS,1014043464,8.55,
Department of Health,Salisbury NHS Foundation Trust,12-Jul-13,PAPER ITEMS GENERAL STATIONERY SUNDRIES,Medicine,NHS LOGISTICS,1014043464,1.3,
Department of Health,Salisbury NHS Foundation Trust,12-Jul-13,PAPER ITEMS GENERAL STATIONERY SUNDRIES,Medicine,NHS LOGISTICS,1014043464,1.3,
Department of Health,Salisbury NHS Foundation Trust,12-Jul-13,MEDSURGCONS-SUTURES,Surgery,NHS LOGISTICS,1014043464,11.38,
Department of Health,Salisbury NHS Foundation Trust,12-Jul-13,MEDSURGCONS-SUTURES,Surgery,NHS LOGISTICS,1014043464,3.72,
Department of Health,Salisbury NHS Foundation Trust,12-Jul-13,MEDSURGCONS-SUTURES,Surgery,NHS LOGISTICS,1014043464,7.7,
Department of Health,Salisbury NHS Foundation Trust,12-Jul-13,MEDSURGCONS-SUTURES,Surgery,NHS LOGISTICS,1014043464,12.3,
Department of Health,Salisbury NHS Foundation Trust,12-Jul-13,MEDSURGCONS-SUTURES,Surgery,NHS LOGISTICS,1014043464,21.61,
Department of Health,Salisbury NHS Foundation Trust,12-Jul-13,MEDSURGCONS-SUTURES,Surgery,NHS LOGISTICS,1014043464,7.11,
Department of Health,Salisbury NHS Foundation Trust,12-Jul-13,MEDSURGCONS-SUTURES,Surgery,NHS LOGISTICS,1014043464,10.69,
Department of Health,Salisbury NHS Foundation Trust,12-Jul-13,MEDSURGCONS-SUTURES,Surgery,NHS LOGISTICS,1014043464,12.4,
Department of Health,Salisbury NHS Foundation Trust,12-Jul-13,MEDSURGCONS-SUTURES,Surgery,NHS LOGISTICS,1014043464,24.38,
Department of Health,Salisbury NHS Foundation Trust,12-Jul-13,MEDSURGCONS-SUTURES,Surgery,NHS LOGISTICS,1014043464,17.84,
Department of Health,Salisbury NHS Foundation Trust,12-Jul-13,MEDSURGCONS-SUTURES,Surgery,NHS LOGISTICS,1014043464,10.81,
Department of Health,Salisbury NHS Foundation Trust,12-Jul-13,MEDSURGCONS-SUTURES,Surgery,NHS LOGISTICS,1014043464,13.7,
Department of Health,Salisbury NHS Foundation Trust,12-Jul-13,MEDSURGCONS-SUTURES,Surgery,NHS LOGISTICS,1014043464,12.33,
Department of Health,Salisbury NHS Foundation Trust,12-Jul-13,MEDSURGCONS-SUTURES,Surgery,NHS LOGISTICS,1014043464,13.36,
Department of Health,Salisbury NHS Foundation Trust,12-Jul-13,MEDSURGCONS-SUTURES,Surgery,NHS LOGISTICS,1014043464,28.29,
Department of Health,Salisbury NHS Foundation Trust,12-Jul-13,DISPOSABLE TABLE LINEN,Medicine,NHS LOGISTICS,1014043464,0.29,
Department of Health,Salisbury NHS Foundation Trust,12-Jul-13,COOKING & KITCHEN UTENSILS,Directorate of Finance and Procurement,NHS LOGISTICS,1014043464,6.59,
Department of Health,Salisbury NHS Foundation Trust,12-Jul-13,PAPER ITEMS GENERAL STATIONERY SUNDRIES,Surgery,NHS LOGISTICS,1014043464,3.13,
Department of Health,Salisbury NHS Foundation Trust,12-Jul-13,COOKING & KITCHEN UTENSILS,Salisbury Linien Services,NHS LOGISTICS,1014043464,3.43,
Department of Health,Salisbury NHS Foundation Trust,12-Jul-13,STATIONERY SUNDRIES,Clinical Support and Family Services,NHS LOGISTICS,1014043464,0.79,
Department of Health,Salisbury NHS Foundation Trust,12-Jul-13,STATIONERY SUNDRIES,Clinical Effctiveness Directorate,NHS LOGISTICS,1014043464,2.99,
Department of Health,Salisbury NHS Foundation Trust,12-Jul-13,OTHER MEDICAL SUPPLIES,Surgery,NHS LOGISTICS,1014043464,21.28,
Department of Health,Salisbury NHS Foundation Trust,12-Jul-13,HEALTHCARE - WEAR,Surgery,NHS LOGISTICS,1014043464,15.57,
Department of Health,Salisbury NHS Foundation Trust,12-Jul-13,HEALTHCARE - WEAR,Surgery,NHS LOGISTICS,1014043464,16.26,
Department of Health,Salisbury NHS Foundation Trust,12-Jul-13,HEALTHCARE - WEAR,Surgery,NHS LOGISTICS,1014043464,16.26,
Department of Health,Salisbury NHS Foundation Trust,12-Jul-13,ADULTS HEARING AIDS,Surgery,NHS LOGISTICS,1014043464,472.6,
Department of Health,Salisbury NHS Foundation Trust,12-Jul-13,TISSUES HAND TOWELS & TOILET PAPER,Surgery,NHS LOGISTICS,1014043464,2.18,
Department of Health,Salisbury NHS Foundation Trust,12-Jul-13,TISSUES HAND TOWELS & TOILET PAPER,Surgery,NHS LOGISTICS,1014043464,0.18,
Department of Health,Salisbury NHS Foundation Trust,12-Jul-13,MEDSURGCONS - OTHER,Surgery,NHS LOGISTICS,1014043464,4.37,
Department of Health,Salisbury NHS Foundation Trust,12-Jul-13,DRESSINGS - PRE STERILE,Surgery,NHS LOGISTICS,1014043464,0.08,
Department of Health,Salisbury NHS Foundation Trust,12-Jul-13,M & S EQUIPELECTEQUIPINST - OTHER,Surgery,NHS LOGISTICS,1014043464,3.67,
Department of Health,Salisbury NHS Foundation Trust,12-Jul-13,PAPER ITEMS GENERAL STATIONERY SUNDRIES,Critical care,NHS LOGISTICS,1014043464,3.73,
Department of Health,Salisbury NHS Foundation Trust,12-Jul-13,PAPER ITEMS GENERAL STATIONERY SUNDRIES,Clinical Support and Family Services,NHS LOGISTICS,1014043464,0.53,
Department of Health,Salisbury NHS Foundation Trust,12-Jul-13,PAPER ITEMS GENERAL STATIONERY SUNDRIES,Clinical Support and Family Services,NHS LOGISTICS,1014043464,0.15,
Department of Health,Salisbury NHS Foundation Trust,12-Jul-13,PAPER ITEMS GENERAL STATIONERY SUNDRIES,Clinical Support and Family Services,NHS LOGISTICS,1014043464,0.1,
Department of Health,Salisbury NHS Foundation Trust,12-Jul-13,STATIONERY SUNDRIES,Clinical Support and Family Services,NHS LOGISTICS,1014043464,0.37,
Department of Health,Salisbury NHS Foundation Trust,12-Jul-13,PAPER ITEMS GENERAL STATIONERY SUNDRIES,Clinical Support and Family Services,NHS LOGISTICS,1014043464,7.47,
Department of Health,Salisbury NHS Foundation Trust,12-Jul-13,STATIONERY SUNDRIES,Clinical Support and Family Services,NHS LOGISTICS,1014043464,0.55,
Department of Health,Salisbury NHS Foundation Trust,12-Jul-13,STATIONERY SUNDRIES,Clinical Support and Family Services,NHS LOGISTICS,1014043464,0.31,
Department of Health,Salisbury NHS Foundation Trust,12-Jul-13,STATIONERY SUNDRIES,Clinical Support and Family Services,NHS LOGISTICS,1014043464,0.18,
Department of Health,Salisbury NHS Foundation Trust,12-Jul-13,OTHER MEDICAL SUPPLIES,Surgery,NHS LOGISTICS,1014043464,7.07,
Department of Health,Salisbury NHS Foundation Trust,12-Jul-13,MEDSURGCONS-LAPAROSCOPIC EQUIPMENT,Surgery,NHS LOGISTICS,1014043464,26.94,
Department of Health,Salisbury NHS Foundation Trust,12-Jul-13,DRESSINGS - PRE STERILE,Surgery,NHS LOGISTICS,1014043464,6.48,
Department of Health,Salisbury NHS Foundation Trust,12-Jul-13,DRESSINGS - PRE STERILE,Surgery,NHS LOGISTICS,1014043464,6.55,
Department of Health,Salisbury NHS Foundation Trust,12-Jul-13,DRESSINGS  -  PROCEDURE PACKS,Surgery,NHS LOGISTICS,1014043464,0.56,
Department of Health,Salisbury NHS Foundation Trust,12-Jul-13,MEDSURGCONS - OTHER,Surgery,NHS LOGISTICS,1014043464,4.13,
Department of Health,Salisbury NHS Foundation Trust,12-Jul-13,DRESSINGS  -  PROCEDURE PACKS,Surgery,NHS LOGISTICS,1014043464,0.58,
Department of Health,Salisbury NHS Foundation Trust,12-Jul-13,DRESSINGS  -  PROCEDURE PACKS,Surgery,NHS LOGISTICS,1014043464,1.22,
Department of Health,Salisbury NHS Foundation Trust,12-Jul-13,DRESSINGS - PRE STERILE,Surgery,NHS LOGISTICS,1014043464,0.73,
Department of Health,Salisbury NHS Foundation Trust,12-Jul-13,DRUGS,Surgery,NHS LOGISTICS,1014043464,9.06,
Department of Health,Salisbury NHS Foundation Trust,12-Jul-13,DRUGS,Surgery,NHS LOGISTICS,1014043464,7.72,
Department of Health,Salisbury NHS Foundation Trust,12-Jul-13,DRESSINGS - PRE STERILE,Surgery,NHS LOGISTICS,1014043464,4.01,
Department of Health,Salisbury NHS Foundation Trust,12-Jul-13,DRESSINGS - PRE STERILE,Surgery,NHS LOGISTICS,1014043464,0.45,
Department of Health,Salisbury NHS Foundation Trust,12-Jul-13,MEDSURGCONS - OTHER,Surgery,NHS LOGISTICS,1014043464,1.98,
Department of Health,Salisbury NHS Foundation Trust,12-Jul-13,MEDSURGCONS - OTHER,Surgery,NHS LOGISTICS,1014043464,1.95,
Department of Health,Salisbury NHS Foundation Trust,12-Jul-13,DRESSINGS - PRE STERILE,Surgery,NHS LOGISTICS,1014043464,0.78,
Department of Health,Salisbury NHS Foundation Trust,12-Jul-13,DRESSINGS - PRE STERILE,Surgery,NHS LOGISTICS,1014043464,6.96,
Department of Health,Salisbury NHS Foundation Trust,12-Jul-13,PATIENT APPLIANCES,Surgery,NHS LOGISTICS,1014043464,1.06,
Department of Health,Salisbury NHS Foundation Trust,12-Jul-13,DISPOSABLE THEATRE DRAPES WIPES,Surgery,NHS LOGISTICS,1014043464,1.9,
Department of Health,Salisbury NHS Foundation Trust,12-Jul-13,DISPOSABLE THEATRE DRAPES WIPES,Surgery,NHS LOGISTICS,1014043464,2.25,
Department of Health,Salisbury NHS Foundation Trust,12-Jul-13,DRESSINGS - PRE STERILE,Surgery,NHS LOGISTICS,1014043464,2.11,
Department of Health,Salisbury NHS Foundation Trust,12-Jul-13,DRESSINGS  -  PROCEDURE PACKS,Surgery,NHS LOGISTICS,1014043464,0.47,
Department of Health,Salisbury NHS Foundation Trust,12-Jul-13,DRESSINGS  -  PROCEDURE PACKS,Surgery,NHS LOGISTICS,1014043464,2.73,
Department of Health,Salisbury NHS Foundation Trust,12-Jul-13,DRESSINGS - PRE STERILE,Surgery,NHS LOGISTICS,1014043464,5.87,
Department of Health,Salisbury NHS Foundation Trust,12-Jul-13,DRESSINGS - PRE STERILE,Surgery,NHS LOGISTICS,1014043464,7.88,
Department of Health,Salisbury NHS Foundation Trust,12-Jul-13,DRESSINGS - PRE STERILE,Surgery,NHS LOGISTICS,1014043464,7.63,
Department of Health,Salisbury NHS Foundation Trust,12-Jul-13,OTHER MEDICAL SUPPLIES,Surgery,NHS LOGISTICS,1014043464,5.3,
Department of Health,Salisbury NHS Foundation Trust,12-Jul-13,DRESSINGS  -  PROCEDURE PACKS,Surgery,NHS LOGISTICS,1014043464,1.88,
Department of Health,Salisbury NHS Foundation Trust,12-Jul-13,DRESSINGS - PRE STERILE,Surgery,NHS LOGISTICS,1014043464,0.68,
Department of Health,Salisbury NHS Foundation Trust,12-Jul-13,PAPER ITEMS GENERAL STATIONERY SUNDRIES,Clinical Support and Family Services,NHS LOGISTICS,1014043464,5.56,
Department of Health,Salisbury NHS Foundation Trust,12-Jul-13,PAPER ITEMS GENERAL STATIONERY SUNDRIES,Clinical Support and Family Services,NHS LOGISTICS,1014043464,1.23,
Department of Health,Salisbury NHS Foundation Trust,12-Jul-13,PAPER ITEMS GENERAL STATIONERY SUNDRIES,Clinical Support and Family Services,NHS LOGISTICS,1014043464,7.47,
Department of Health,Salisbury NHS Foundation Trust,12-Jul-13,MEDSURGCONS - OTHER,Surgery,NHS LOGISTICS,1014043464,4.62,
Department of Health,Salisbury NHS Foundation Trust,12-Jul-13,PATIENTS INCONTINENCE,Surgery,NHS LOGISTICS,1014043464,3.41,
Department of Health,Salisbury NHS Foundation Trust,12-Jul-13,PATIENT APPLIANCES,Surgery,NHS LOGISTICS,1014043464,0.78,
Department of Health,Salisbury NHS Foundation Trust,12-Jul-13,PATIENT APPLIANCES,Surgery,NHS LOGISTICS,1014043464,0.78,
Department of Health,Salisbury NHS Foundation Trust,12-Jul-13,DRESSINGS - PRE STERILE,Surgery,NHS LOGISTICS,1014043464,0.17,
Department of Health,Salisbury NHS Foundation Trust,12-Jul-13,TISSUES HAND TOWELS & TOILET PAPER,Surgery,NHS LOGISTICS,1014043464,0.14,
Department of Health,Salisbury NHS Foundation Trust,12-Jul-13,NON DISPOSABLE BED LINEN,Surgery,NHS LOGISTICS,1014043464,4.35,
Department of Health,Salisbury NHS Foundation Trust,12-Jul-13,PATIENT APPLIANCES,Surgery,NHS LOGISTICS,1014043464,1.58,
Department of Health,Salisbury NHS Foundation Trust,12-Jul-13,PATIENT APPLIANCES,Surgery,NHS LOGISTICS,1014043464,1.58,
Department of Health,Salisbury NHS Foundation Trust,12-Jul-13,PATIENT APPLIANCES,Surgery,NHS LOGISTICS,1014043464,1.06,
Department of Health,Salisbury NHS Foundation Trust,12-Jul-13,OPTICAL  -  OTHER,Surgery,NHS LOGISTICS,1014043464,8.72,
Department of Health,Salisbury NHS Foundation Trust,12-Jul-13,DRUGS,Surgery,NHS LOGISTICS,1014043464,1.54,
Department of Health,Salisbury NHS Foundation Trust,12-Jul-13,OTHER MEDICAL SUPPLIES,Medicine,NHS LOGISTICS,1014043464,7.83,
Department of Health,Salisbury NHS Foundation Trust,12-Jul-13,PATIENTS INCONTINENCE,Medicine,NHS LOGISTICS,1014043464,1.82,
Department of Health,Salisbury NHS Foundation Trust,12-Jul-13,DRESSINGS - PRE STERILE,Medicine,NHS LOGISTICS,1014043464,0.22,
Department of Health,Salisbury NHS Foundation Trust,12-Jul-13,DRESSINGS - PRE STERILE,Medicine,NHS LOGISTICS,1014043464,2.66,
Department of Health,Salisbury NHS Foundation Trust,12-Jul-13,MEDSURGCONS - OTHER,Medicine,NHS LOGISTICS,1014043464,0.23,
Department of Health,Salisbury NHS Foundation Trust,12-Jul-13,MEDSURGCONS - OTHER,Medicine,NHS LOGISTICS,1014043464,5.47,
Department of Health,Salisbury NHS Foundation Trust,12-Jul-13,PATIENT APPLIANCES,Medicine,NHS LOGISTICS,1014043464,2.47,
Department of Health,Salisbury NHS Foundation Trust,12-Jul-13,PATIENT APPLIANCES,Medicine,NHS LOGISTICS,1014043464,4.12,
Department of Health,Salisbury NHS Foundation Trust,12-Jul-13,PATIENT APPLIANCES,Medicine,NHS LOGISTICS,1014043464,1.65,
Department of Health,Salisbury NHS Foundation Trust,12-Jul-13,PATIENT APPLIANCES,Medicine,NHS LOGISTICS,1014043464,4.94,
Department of Health,Salisbury NHS Foundation Trust,12-Jul-13,PATIENT APPLIANCES,Medicine,NHS LOGISTICS,1014043464,3.29,
Department of Health,Salisbury NHS Foundation Trust,12-Jul-13,MEDSURGCONS - OTHER,Medicine,NHS LOGISTICS,1014043464,0.43,
Department of Health,Salisbury NHS Foundation Trust,12-Jul-13,OTHER MEDICAL SUPPLIES,Medicine,NHS LOGISTICS,1014043464,0.65,
Department of Health,Salisbury NHS Foundation Trust,12-Jul-13,OTHER MEDICAL SUPPLIES,Medicine,NHS LOGISTICS,1014043464,1.14,
Department of Health,Salisbury NHS Foundation Trust,12-Jul-13,DRUGS,Medicine,NHS LOGISTICS,1014043464,1.54,
Department of Health,Salisbury NHS Foundation Trust,12-Jul-13,LAB EQUIP-ANALYSERS,Medicine,NHS LOGISTICS,1014043464,0.79,
Department of Health,Salisbury NHS Foundation Trust,12-Jul-13,MEDSURGCONS-SUTURES,Medicine,NHS LOGISTICS,1014043464,2.68,
Department of Health,Salisbury NHS Foundation Trust,12-Jul-13,MEDSURGCONS - OTHER,Medicine,NHS LOGISTICS,1014043464,11.94,
Department of Health,Salisbury NHS Foundation Trust,12-Jul-13,MEDSURGCONS - OTHER,Medicine,NHS LOGISTICS,1014043464,1.37,
Department of Health,Salisbury NHS Foundation Trust,12-Jul-13,MEDSURGCONS - OTHER,Medicine,NHS LOGISTICS,1014043464,1.37,
Department of Health,Salisbury NHS Foundation Trust,12-Jul-13,MEDSURGCONS - OTHER,Medicine,NHS LOGISTICS,1014043464,4.17,
Department of Health,Salisbury NHS Foundation Trust,12-Jul-13,MEDSURGCONS - OTHER,Medicine,NHS LOGISTICS,1014043464,1.65,
Department of Health,Salisbury NHS Foundation Trust,12-Jul-13,NON DISPOSABLE BED LINEN,Medicine,NHS LOGISTICS,1014043464,4.35,
Department of Health,Salisbury NHS Foundation Trust,12-Jul-13,DRESSINGS - PRE STERILE,Critical care,NHS LOGISTICS,1014043464,2.47,
Department of Health,Salisbury NHS Foundation Trust,12-Jul-13,DRESSINGS - PRE STERILE,Critical care,NHS LOGISTICS,1014043464,0.55,
Department of Health,Salisbury NHS Foundation Trust,12-Jul-13,TISSUES HAND TOWELS & TOILET PAPER,Critical care,NHS LOGISTICS,1014043464,2.18,
Department of Health,Salisbury NHS Foundation Trust,12-Jul-13,DRESSINGS - PRE STERILE,Critical care,NHS LOGISTICS,1014043464,5.64,
Department of Health,Salisbury NHS Foundation Trust,12-Jul-13,DRESSINGS - PRE STERILE,Critical care,NHS LOGISTICS,1014043464,5.58,
Department of Health,Salisbury NHS Foundation Trust,12-Jul-13,DRESSINGS - PRE STERILE,Critical care,NHS LOGISTICS,1014043464,11.08,
Department of Health,Salisbury NHS Foundation Trust,12-Jul-13,DRESSINGS - PRE STERILE,Critical care,NHS LOGISTICS,1014043464,3.96,
Department of Health,Salisbury NHS Foundation Trust,12-Jul-13,DRESSINGS - PRE STERILE,Critical care,NHS LOGISTICS,1014043464,4.03,
Department of Health,Salisbury NHS Foundation Trust,12-Jul-13,DRESSINGS - PRE STERILE,Critical care,NHS LOGISTICS,1014043464,3.96,
Department of Health,Salisbury NHS Foundation Trust,12-Jul-13,DRESSINGS - PRE STERILE,Critical care,NHS LOGISTICS,1014043464,9.11,
Department of Health,Salisbury NHS Foundation Trust,12-Jul-13,DRESSINGS - PRE STERILE,Critical care,NHS LOGISTICS,1014043464,4.56,
Department of Health,Salisbury NHS Foundation Trust,12-Jul-13,DRESSINGS - PRE STERILE,Critical care,NHS LOGISTICS,1014043464,9.22,
Department of Health,Salisbury NHS Foundation Trust,12-Jul-13,DRESSINGS - PRE STERILE,Critical care,NHS LOGISTICS,1014043464,4.56,
Department of Health,Salisbury NHS Foundation Trust,12-Jul-13,PATIENT APPLIANCES,Critical care,NHS LOGISTICS,1014043464,4.32,
Department of Health,Salisbury NHS Foundation Trust,12-Jul-13,DRESSINGS - PRE STERILE,Critical care,NHS LOGISTICS,1014043464,27.25,
Department of Health,Salisbury NHS Foundation Trust,12-Jul-13,DRESSINGS - PRE STERILE,Critical care,NHS LOGISTICS,1014043464,1.33,
Department of Health,Salisbury NHS Foundation Trust,12-Jul-13,DRESSINGS - PRE STERILE,Critical care,NHS LOGISTICS,1014043464,0.46,
Department of Health,Salisbury NHS Foundation Trust,12-Jul-13,DRESSINGS - PRE STERILE,Critical care,NHS LOGISTICS,1014043464,0.38,
Department of Health,Salisbury NHS Foundation Trust,12-Jul-13,MEDSURGCONS-SUTURES,Critical care,NHS LOGISTICS,1014043464,7.21,
Department of Health,Salisbury NHS Foundation Trust,12-Jul-13,MEDSURGCONS - OTHER,Critical care,NHS LOGISTICS,1014043464,0.7,
Department of Health,Salisbury NHS Foundation Trust,12-Jul-13,MEDSURGCONS-SUTURES,Critical care,NHS LOGISTICS,1014043464,8.76,
Department of Health,Salisbury NHS Foundation Trust,12-Jul-13,PATIENT APPLIANCES,Critical care,NHS LOGISTICS,1014043464,3.28,
Department of Health,Salisbury NHS Foundation Trust,12-Jul-13,PATIENT APPLIANCES,Critical care,NHS LOGISTICS,1014043464,3.28,
Department of Health,Salisbury NHS Foundation Trust,12-Jul-13,PATIENT APPLIANCES,Critical care,NHS LOGISTICS,1014043464,3.28,
Department of Health,Salisbury NHS Foundation Trust,12-Jul-13,OTHER MEDICAL SUPPLIES,Clinical Support and Family Services,NHS LOGISTICS,1014043464,16.34,
Department of Health,Salisbury NHS Foundation Trust,12-Jul-13,OTHER MEDICAL SUPPLIES,Clinical Support and Family Services,NHS LOGISTICS,1014043464,16.03,
Department of Health,Salisbury NHS Foundation Trust,12-Jul-13,BABY TEXTURE MODIFIED FOODS,Clinical Support and Family Services,NHS LOGISTICS,1014043464,2.95,
Department of Health,Salisbury NHS Foundation Trust,12-Jul-13,BABY TEXTURE MODIFIED FOODS,Clinical Support and Family Services,NHS LOGISTICS,1014043464,2.95,
Department of Health,Salisbury NHS Foundation Trust,12-Jul-13,TISSUES HAND TOWELS & TOILET PAPER,Clinical Support and Family Services,NHS LOGISTICS,1014043464,0.36,
